Body_Code,Body_Name,Service,GL Code,GL Code Desc,Posting Date,Doc Number,Doc Net Amount,Supplier Name
http://statistics.data.gov.uk/id/local-authority/38,Oxfordshire County Council,Route Treatment (Veg & Signs),5526,Payments to Private Contractors,26/11/2020,2200819635,"-159,294.61",Skanska Construction UK Ltd Sp
http://statistics.data.gov.uk/id/local-authority/38,Oxfordshire County Council,Support at Home U65 Learning Disability,5688,,11/11/2020,3110854770,"-106,991.41",Autism at Kingwood Limited
http://statistics.data.gov.uk/id/local-authority/38,Oxfordshire County Council,Support at Home U65 Learning Disability,5688,,11/11/2020,3110853951,"-99,998.71",SEEABILITY
http://statistics.data.gov.uk/id/local-authority/38,Oxfordshire County Council,CONTRACT & PERF MNGT,5526,Payments to Private Contractors,12/11/2020,2200814848,"-75,027.86",Skanska Construction UK Ltd Sp
http://statistics.data.gov.uk/id/local-authority/38,Oxfordshire County Council,CHC Fast Track - Care Homes - Over 65,5687,,11/11/2020,3110855016,"-59,428.55",LAWTON GROUP LTD
http://statistics.data.gov.uk/id/local-authority/38,Oxfordshire County Council,ContrO ASC Payments Control Account,5689,,04/11/2020,3110848412,"-45,629.00",Day & Night Care Assistance
http://statistics.data.gov.uk/id/local-authority/38,Oxfordshire County Council,Care Homes - Over 65 Mental Health,5686,,11/11/2020,3110855075,"-44,930.72",Orders of St John
http://statistics.data.gov.uk/id/local-authority/38,Oxfordshire County Council,Interim Funding  - Care Homes - Over 65,5687,,11/11/2020,3110854048,"-35,256.00",Chacombe Park Care Home
http://statistics.data.gov.uk/id/local-authority/38,Oxfordshire County Council,CAP CHRGES-PRIM SCHS,8102,Payments to main contractor,02/11/2020,2200810841,"-35,199.72",Hughes and Associates Property Serv
http://statistics.data.gov.uk/id/local-authority/38,Oxfordshire County Council,ContrO ASC Payments Control Account,5689,,04/11/2020,3110848052,"-32,209.00",Acquire Care Ltd
http://statistics.data.gov.uk/id/local-authority/38,Oxfordshire County Council,ICT Operations & Maintenance,5072,Telephone - Equipment,10/11/2020,2200813877,"-28,939.00",VODAFONE LTD
http://statistics.data.gov.uk/id/local-authority/38,Oxfordshire County Council,ContrO ASC Payments Control Account,5689,,04/11/2020,3110848619,"-25,414.00",Oxford Private Care
http://statistics.data.gov.uk/id/local-authority/38,Oxfordshire County Council,ContrO ASC Payments Control Account,5689,,04/11/2020,3110848315,"-23,699.00",Charterville Care At Home Ltd
http://statistics.data.gov.uk/id/local-authority/38,Oxfordshire County Council,High Cost INMSS Placements,5537,Payments to Other Establishments,27/11/2020,3110862644,"-17,640.00",LVS Oxford
http://statistics.data.gov.uk/id/local-authority/38,Oxfordshire County Council,Funded Nursing Care  - Over 65,5692,,11/11/2020,3110854023,"-17,196.82",SANCTUARY CARE LTD
http://statistics.data.gov.uk/id/local-authority/38,Oxfordshire County Council,Support at Home U65 Learning Disability,5690,,11/11/2020,3110852357,"-16,836.82",H F TRUST LTD
http://statistics.data.gov.uk/id/local-authority/38,Oxfordshire County Council,ContrO ASC Payments Control Account,5689,,04/11/2020,3110848199,"-16,575.00",Bridges Home Care Ltd
http://statistics.data.gov.uk/id/local-authority/38,Oxfordshire County Council,,1441,Uncleared Misc Income Receipts,06/11/2020,9800582513,"-14,927.76",A2B Castle Cars Ltd
http://statistics.data.gov.uk/id/local-authority/38,Oxfordshire County Council,CHC Fast Track - Care Homes - Over 65,5687,,11/11/2020,3110853975,"-13,792.42",CARE UK COMMUNITY PARTNERSHIPS LIMI
http://statistics.data.gov.uk/id/local-authority/38,Oxfordshire County Council,LIBRARY COLLECTIONS,4539,"Books, DVDs and CDs",12/11/2020,2200814784,"-13,501.00",BUREAU VAN DIJK ELECTRONIC
http://statistics.data.gov.uk/id/local-authority/38,Oxfordshire County Council,Continuing Care - Care Homes - 65+,5687,,11/11/2020,3110856532,"-12,920.00",MARIA MALLABAND CARE GROUP
http://statistics.data.gov.uk/id/local-authority/38,Oxfordshire County Council,Interim Funding  - Care Homes - Over 65,5687,,11/11/2020,3110855249,"-12,492.85",Gracewell Healthcare 3 Ltd
http://statistics.data.gov.uk/id/local-authority/38,Oxfordshire County Council,Funded Nursing Care  - Over 65,5692,,11/11/2020,3110854670,"-12,319.95",CUMNOR HILL HOUSE
http://statistics.data.gov.uk/id/local-authority/38,Oxfordshire County Council,RISING BOLLARDS,4861,Hired and Contracted Services,25/11/2020,2200819213,"-11,925.00",ATG ACCESS LTD
http://statistics.data.gov.uk/id/local-authority/38,Oxfordshire County Council,Care Homes - Over 65 Memory & Cognition,5686,,11/11/2020,3110853978,"-10,567.86",CARE UK COMMUNITY PARTNERSHIPS LIMI
http://statistics.data.gov.uk/id/local-authority/38,Oxfordshire County Council,Care Homes - Over 65 Physical Sypport,5686,,11/11/2020,3110853927,"-10,274.29",SANCTUARY CARE LTD
http://statistics.data.gov.uk/id/local-authority/38,Oxfordshire County Council,NURSERY ED FUND,5537,Payments to Other Establishments,12/11/2020,3110856785,"-9,344.16",Our Lady#s Abingdon Junior School
http://statistics.data.gov.uk/id/local-authority/38,Oxfordshire County Council,Care Homes - Under 65 Physical Sypport,5685,B*Cycle tracks,11/11/2020,3110853910,"-9,053.69",Elmfield Cottage
http://statistics.data.gov.uk/id/local-authority/38,Oxfordshire County Council,Support at Home 65+ Physical Support,5686,,11/11/2020,3110854271,"-8,925.72",Orders of St John
http://statistics.data.gov.uk/id/local-authority/38,Oxfordshire County Council,Funded Nursing Care  - Over 65,5692,,11/11/2020,3110852675,"-8,481.90",Banbury Heights Nursing Home
http://statistics.data.gov.uk/id/local-authority/38,Oxfordshire County Council,Continuing Care - Care Homes - 65+,5687,,11/11/2020,3110856494,"-8,359.28",Wardington House Nursing Home
http://statistics.data.gov.uk/id/local-authority/38,Oxfordshire County Council,Care Homes - Over 65 Physical Sypport,5686,,11/11/2020,3110856310,"-8,142.85",Four Seasons (Headington) Ltd
http://statistics.data.gov.uk/id/local-authority/38,Oxfordshire County Council,Care Homes - Over 65 Physical Sypport,5685,B*Cycle tracks,11/11/2020,3110855527,"-8,022.19",LAWTON GROUP LTD
http://statistics.data.gov.uk/id/local-authority/38,Oxfordshire County Council,Care Homes - Over 65 Physical Sypport,5687,,11/11/2020,3110856554,"-7,900.01",MARIA MALLABAND CARE GROUP
http://statistics.data.gov.uk/id/local-authority/38,Oxfordshire County Council,Support at Home 65+ Physical Support,5686,,11/11/2020,3110854530,"-7,708.58",Orders of St John
http://statistics.data.gov.uk/id/local-authority/38,Oxfordshire County Council,Continuing Care - Care Homes - 65+,5687,,11/11/2020,3110856583,"-7,683.43",Caring Homes Healthcare Group Ltd
http://statistics.data.gov.uk/id/local-authority/38,Oxfordshire County Council,Care Homes - Over 65 Physical Sypport,5686,,11/11/2020,3110856081,"-7,307.14",St Johns Residential Home
http://statistics.data.gov.uk/id/local-authority/38,Oxfordshire County Council,ContrO ASC Payments Control Account,5689,,04/11/2020,3110848582,"-6,609.00",KCARE NURSING AGENCY
http://statistics.data.gov.uk/id/local-authority/38,Oxfordshire County Council,Care Homes - Over 65 Physical Sypport,5687,,11/11/2020,3110853207,"-6,403.46",Acacia Lodge Care Home
http://statistics.data.gov.uk/id/local-authority/38,Oxfordshire County Council,Care Homes - Over 65 Physical Sypport,5687,,11/11/2020,3110856225,"-6,222.86",The Grange Care Centre
http://statistics.data.gov.uk/id/local-authority/38,Oxfordshire County Council,Support at Home 65+ Physical Support,5686,,11/11/2020,3110854311,"-6,187.15",Orders of St John
http://statistics.data.gov.uk/id/local-authority/38,Oxfordshire County Council,CHC Fast Track - Care Homes - Over 65,5687,,11/11/2020,3110855426,"-6,000.00",Cedar Court Care Home
http://statistics.data.gov.uk/id/local-authority/38,Oxfordshire County Council,Care Homes - Over 65 Physical Sypport,5687,,11/11/2020,3110854054,"-5,883.53",SANCTUARY CARE LTD
http://statistics.data.gov.uk/id/local-authority/38,Oxfordshire County Council,Care Homes - Over 65 Memory & Cognition,5687,,11/11/2020,3110854618,"-5,802.47",Coxwell Hall & Mews Nursing Home
http://statistics.data.gov.uk/id/local-authority/38,Oxfordshire County Council,CHC Fast Track - Care Homes - Over 65,5687,,11/11/2020,3110854802,"-5,740.00",Orders of St John
http://statistics.data.gov.uk/id/local-authority/38,Oxfordshire County Council,Procurement Rebates & Income,7203,Other Miscellaneous Income,17/11/2020,3110857586,"-5,698.56",Completely Care Recruitment Cons
http://statistics.data.gov.uk/id/local-authority/38,Oxfordshire County Council,Care Homes - Under 65 MH - OBC Contract,5686,,11/11/2020,3110855904,"-5,211.43",2 Care
http://statistics.data.gov.uk/id/local-authority/38,Oxfordshire County Council,YP PATHWAY,5604,,27/11/2020,3110862688,"-5,042.10",Response Organisation
http://statistics.data.gov.uk/id/local-authority/38,Oxfordshire County Council,Care Homes - Over 65 Physical Sypport,5685,B*Cycle tracks,11/11/2020,3110854123,"-5,028.32",SANCTUARY CARE LTD
http://statistics.data.gov.uk/id/local-authority/38,Oxfordshire County Council,Oxfordshire Adoption Support Fund,4859,Medical and Counselling Fees,12/11/2020,2200814932,"-5,000.00",FAMILY FUTURES CIC
http://statistics.data.gov.uk/id/local-authority/38,Oxfordshire County Council,Test and Trace Grant,4940,Other Services,16/11/2020,2200815777,"-4,900.00",Oxford City Council
http://statistics.data.gov.uk/id/local-authority/38,Oxfordshire County Council,CHC Fast Track - Care Homes - Over 65,5687,,11/11/2020,3110856508,"-4,715.00",Wardington House Nursing Home
http://statistics.data.gov.uk/id/local-authority/38,Oxfordshire County Council,Support at Home 65+ Physical Support,5686,,11/11/2020,3110854589,"-4,564.29",Orders of St John
http://statistics.data.gov.uk/id/local-authority/38,Oxfordshire County Council,Procurement Rebates & Income,7203,Other Miscellaneous Income,03/11/2020,3110846891,"-4,474.80",Frontier Pitts
http://statistics.data.gov.uk/id/local-authority/38,Oxfordshire County Council,,1448,Blackfield Inc & Exp A/c,05/11/2020,3110848821,"-4,474.78",OCC One Time Vendor
http://statistics.data.gov.uk/id/local-authority/38,Oxfordshire County Council,Procurement Rebates & Income,7203,Other Miscellaneous Income,10/11/2020,3110850132,"-4,460.40",GatenbySanderson Ltd
http://statistics.data.gov.uk/id/local-authority/38,Oxfordshire County Council,Procurement Rebates & Income,7203,Other Miscellaneous Income,10/11/2020,3110850134,"-4,195.20",Completely Care Recruitment Cons
http://statistics.data.gov.uk/id/local-authority/38,Oxfordshire County Council,Care Homes - Over 65 Physical Sypport,5687,,11/11/2020,3110855005,"-3,994.14",LAWTON GROUP LTD
http://statistics.data.gov.uk/id/local-authority/38,Oxfordshire County Council,Care Homes - Over 65 Physical Sypport,5687,,11/11/2020,3110856243,"-3,960.00",The Grange Care Centre
http://statistics.data.gov.uk/id/local-authority/38,Oxfordshire County Council,Procurement Rebates & Income,7203,Other Miscellaneous Income,10/11/2020,2200813762,"-3,657.99",EUCLID LTD
http://statistics.data.gov.uk/id/local-authority/38,Oxfordshire County Council,Funded Nursing Care  - Over 65,5692,,11/11/2020,3110856478,"-3,652.12",Wardington House Nursing Home
http://statistics.data.gov.uk/id/local-authority/38,Oxfordshire County Council,CHC Fast Track - Care Homes - Over 65,5687,,11/11/2020,3110856531,"-3,528.57",MARIA MALLABAND CARE GROUP
http://statistics.data.gov.uk/id/local-authority/38,Oxfordshire County Council,Continuing Care - Care Homes - 65+,5687,,11/11/2020,3110855454,"-3,285.71",Cedar Court Care Home
http://statistics.data.gov.uk/id/local-authority/38,Oxfordshire County Council,Support at Home U65 Learning Disability,5688,,11/11/2020,3110853581,"-3,277.75",Mencap Contracts
http://statistics.data.gov.uk/id/local-authority/38,Oxfordshire County Council,ContrO ASC Payments Control Account,5689,,04/11/2020,3110848709,"-3,151.00",Oxfordshire Crossroads
http://statistics.data.gov.uk/id/local-authority/38,Oxfordshire County Council,SEN TRANSPORT,4330,Transport to School Activities,17/11/2020,3110859292,"-3,114.00",R & S Travel Services Ltd T/A A 2 Z
http://statistics.data.gov.uk/id/local-authority/38,Oxfordshire County Council,SENSS TRAINING,3100,Educational and Vocational Training,27/11/2020,2200820076,"-3,000.00",Mary Hare Grammar School
http://statistics.data.gov.uk/id/local-authority/38,Oxfordshire County Council,Care Homes - Over 65 Memory & Cognition,5686,,11/11/2020,3110854472,"-2,985.71",Cleeve Lodge Residential Home
http://statistics.data.gov.uk/id/local-authority/38,Oxfordshire County Council,Care Homes - Over 65 Physical Sypport,5687,,11/11/2020,3110855467,"-2,920.88",Cedar Court Care Home
http://statistics.data.gov.uk/id/local-authority/38,Oxfordshire County Council,Interim Funding  - Care Homes - Over 65,5687,,11/11/2020,3110855986,"-2,914.29",Barchester Healthcare Homes Ltd
http://statistics.data.gov.uk/id/local-authority/38,Oxfordshire County Council,Funded Nursing Care  - Over 65,5692,,11/11/2020,3110855555,"-2,863.89",The Julie Richardson Nursing Home
http://statistics.data.gov.uk/id/local-authority/38,Oxfordshire County Council,SEN TRANSPORT,4330,Transport to School Activities,17/11/2020,3110859287,"-2,860.00",R & S Travel Services Ltd T/A A 2 Z
http://statistics.data.gov.uk/id/local-authority/38,Oxfordshire County Council,Care Homes - Over 65 Memory & Cognition,5687,,11/11/2020,3110853110,"-2,842.86",Freeland House
http://statistics.data.gov.uk/id/local-authority/38,Oxfordshire County Council,SEN TRANSPORT,4330,Transport to School Activities,06/11/2020,3110849260,"-2,762.00",A2B Castle Cars Ltd
http://statistics.data.gov.uk/id/local-authority/38,Oxfordshire County Council,MAINSTREAM-SECONDARY,4330,Transport to School Activities,17/11/2020,3110859289,"-2,750.40",R & S Travel Services Ltd T/A A 2 Z
http://statistics.data.gov.uk/id/local-authority/38,Oxfordshire County Council,Care Homes - Over 65 Memory & Cognition,5685,B*Cycle tracks,11/11/2020,3110855456,"-2,748.24",Cedar Court Care Home
http://statistics.data.gov.uk/id/local-authority/38,Oxfordshire County Council,SEN TRANSPORT,4330,Transport to School Activities,06/11/2020,3110849346,"-2,732.80",A2B Castle Cars Ltd
http://statistics.data.gov.uk/id/local-authority/38,Oxfordshire County Council,SEN TRANSPORT,4330,Transport to School Activities,06/11/2020,3110849257,"-2,709.00",A2B Castle Cars Ltd
http://statistics.data.gov.uk/id/local-authority/38,Oxfordshire County Council,Care Homes - Over 65 Physical Sypport,5686,,11/11/2020,3110855189,"-2,637.14",Orders of St John
http://statistics.data.gov.uk/id/local-authority/38,Oxfordshire County Council,SEN TRANSPORT,4330,Transport to School Activities,17/11/2020,3110859296,"-2,624.00",R & S Travel Services Ltd T/A A 2 Z
http://statistics.data.gov.uk/id/local-authority/38,Oxfordshire County Council,Procurement Rebates & Income,7203,Other Miscellaneous Income,26/11/2020,2200819466,"-2,580.00",Abingdon Taxis FKN Autotaxis
http://statistics.data.gov.uk/id/local-authority/38,Oxfordshire County Council,Support at Home 65+ Physical Support,5686,,11/11/2020,3110854808,"-2,480.14",Orders of St John
http://statistics.data.gov.uk/id/local-authority/38,Oxfordshire County Council,SEN TRANSPORT,4330,Transport to School Activities,06/11/2020,3110849342,"-2,464.00",A2B Castle Cars Ltd
http://statistics.data.gov.uk/id/local-authority/38,Oxfordshire County Council,Care Homes - Over 65 Physical Sypport,5686,,11/11/2020,3110854551,"-2,434.29",Orders of St John
http://statistics.data.gov.uk/id/local-authority/38,Oxfordshire County Council,VOIDS/VACANCY COSTS,3945,Rent,11/11/2020,3110853241,"-2,428.63",Hilldale Housing Association Limite
http://statistics.data.gov.uk/id/local-authority/38,Oxfordshire County Council,Interim Funding  - Care Homes - Over 65,5687,,11/11/2020,3110856229,"-2,400.00",The Grange Care Centre
http://statistics.data.gov.uk/id/local-authority/38,Oxfordshire County Council,Care Homes - Over 65 Physical Sypport,5687,,11/11/2020,3110855464,"-2,299.86",Orders of St John
http://statistics.data.gov.uk/id/local-authority/38,Oxfordshire County Council,Care Homes - Over 65 Memory & Cognition,5686,,11/11/2020,3110855216,"-2,296.43",OSJ Contract - Stirlings
http://statistics.data.gov.uk/id/local-authority/38,Oxfordshire County Council,Interim Funding  - Care Homes - Over 65,5687,,11/11/2020,3110855012,"-2,228.57",LAWTON GROUP LTD
http://statistics.data.gov.uk/id/local-authority/38,Oxfordshire County Council,Care Homes - Over 65 Physical Sypport,5685,B*Cycle tracks,11/11/2020,3110855921,"-2,185.91",RICHMOND VILLAGE WITNEY
http://statistics.data.gov.uk/id/local-authority/38,Oxfordshire County Council,Support at Home 65+ Learning Disability,5686,,11/11/2020,3110855070,"-2,130.00",Orders of St John
http://statistics.data.gov.uk/id/local-authority/38,Oxfordshire County Council,Support at Home 65+ Physical Support,5689,,10/11/2020,3110850244,"-2,113.22",Allied Health-Services Limited
http://statistics.data.gov.uk/id/local-authority/38,Oxfordshire County Council,SEN TRANSPORT,4330,Transport to School Activities,06/11/2020,3110849259,"-2,064.00",A2B Castle Cars Ltd
http://statistics.data.gov.uk/id/local-authority/38,Oxfordshire County Council,CHC Fast Track - Care Homes - Over 65,5687,,11/11/2020,3110856558,"-2,042.86",MARIA MALLABAND CARE GROUP
http://statistics.data.gov.uk/id/local-authority/38,Oxfordshire County Council,Support at Home U65 Learning Disability,5688,,11/11/2020,3110853500,"-2,011.35",Mencap Contracts
http://statistics.data.gov.uk/id/local-authority/38,Oxfordshire County Council,Care Homes - Over 65 Physical Sypport,5686,,11/11/2020,3110855232,"-2,000.00",GCH (St Katherines) Ltd
http://statistics.data.gov.uk/id/local-authority/38,Oxfordshire County Council,Support at Home 65+ Learning Disability,5688,,11/11/2020,3110854393,"-1,970.45",The Brandon Trust
http://statistics.data.gov.uk/id/local-authority/38,Oxfordshire County Council,High Cost INMSS Placements,5500,Payments to Other Local Authorities,27/11/2020,3110862784,"-1,956.25",Chiltern Way Academy
http://statistics.data.gov.uk/id/local-authority/38,Oxfordshire County Council,Continuing Care - Care Homes - 65+,5687,,11/11/2020,3110855666,"-1,924.00",Lincroft Meadow
http://statistics.data.gov.uk/id/local-authority/38,Oxfordshire County Council,Funded Nursing Care  - Over 65,5692,,11/11/2020,3110855359,"-1,918.02",Orders of St John
http://statistics.data.gov.uk/id/local-authority/38,Oxfordshire County Council,MAINSTREAM-SECONDARY,4330,Transport to School Activities,17/11/2020,3110859291,"-1,910.40",R & S Travel Services Ltd T/A A 2 Z
http://statistics.data.gov.uk/id/local-authority/38,Oxfordshire County Council,Care Homes - Over 65 Physical Sypport,5685,B*Cycle tracks,11/11/2020,3110855288,"-1,901.65",Green Gates NH (BUPA)
http://statistics.data.gov.uk/id/local-authority/38,Oxfordshire County Council,Care Homes - Over 65 Physical Sypport,5686,,11/11/2020,3110855588,"-1,892.55",Lady Nuffield Residential Home
http://statistics.data.gov.uk/id/local-authority/38,Oxfordshire County Council,Care Homes - Over 65 Physical Sypport,5687,,11/11/2020,3110853545,"-1,857.14",Mill House Nursing Home
http://statistics.data.gov.uk/id/local-authority/38,Oxfordshire County Council,Supervised Consumption APL,4934,,25/11/2020,3110861800,"-1,856.96",PCT Healthcare Ltd.
http://statistics.data.gov.uk/id/local-authority/38,Oxfordshire County Council,Support at Home 65+ Physical Support,5686,,11/11/2020,3110854442,"-1,825.71",Orders of St John
http://statistics.data.gov.uk/id/local-authority/38,Oxfordshire County Council,Care Homes - Over 65 Memory & Cognition,5686,,11/11/2020,3110854560,"-1,825.71",Orders of St John
http://statistics.data.gov.uk/id/local-authority/38,Oxfordshire County Council,Funded Nursing Care  - Over 65,5692,,11/11/2020,3110855356,"-1,812.92",Green Pastures Christian NH
http://statistics.data.gov.uk/id/local-authority/38,Oxfordshire County Council,Care Homes - Over 65 Physical Sypport,5687,,11/11/2020,3110853854,"-1,804.29",Grace Care Service Ltd T/A Burford
http://statistics.data.gov.uk/id/local-authority/38,Oxfordshire County Council,MAINSTREAM-PRIMARY,4330,Transport to School Activities,06/11/2020,3110849304,"-1,760.00",A2B Castle Cars Ltd
http://statistics.data.gov.uk/id/local-authority/38,Oxfordshire County Council,SEN TRANSPORT,4330,Transport to School Activities,17/11/2020,3110859294,"-1,760.00",R & S Travel Services Ltd T/A A 2 Z
http://statistics.data.gov.uk/id/local-authority/38,Oxfordshire County Council,MAINSTREAM-SECONDARY,4322,"Season Tickets - Bus, Rail & Ferry",26/11/2020,3110862237,"-1,714.50",Oxford Bus Company Ltd
http://statistics.data.gov.uk/id/local-authority/38,Oxfordshire County Council,SEN TRANSPORT,4330,Transport to School Activities,06/11/2020,3110849253,"-1,701.00",A2B Castle Cars Ltd
http://statistics.data.gov.uk/id/local-authority/38,Oxfordshire County Council,Funded Nursing Care  - Over 65,5692,,11/11/2020,3110853965,"-1,602.73",SANCTUARY CARE LTD
http://statistics.data.gov.uk/id/local-authority/38,Oxfordshire County Council,Care Homes - Over 65 Physical Sypport,5686,,11/11/2020,3110854870,"-1,561.57",Orders of St John
http://statistics.data.gov.uk/id/local-authority/38,Oxfordshire County Council,SEN TRANSPORT,4330,Transport to School Activities,06/11/2020,3110849341,"-1,560.00",A2B Castle Cars Ltd
http://statistics.data.gov.uk/id/local-authority/38,Oxfordshire County Council,Care Homes - Over 65 Physical Sypport,5686,,11/11/2020,3110854729,"-1,521.43",Orders of St John
http://statistics.data.gov.uk/id/local-authority/38,Oxfordshire County Council,Care Homes - Over 65 Memory & Cognition,5687,,11/11/2020,3110853099,"-1,500.00",Freeland House
http://statistics.data.gov.uk/id/local-authority/38,Oxfordshire County Council,Care Homes - Over 65 Physical Sypport,5687,,11/11/2020,3110853796,"-1,488.62",METHODIST HOMES
http://statistics.data.gov.uk/id/local-authority/38,Oxfordshire County Council,MAINSTREAM-SECONDARY,4322,"Season Tickets - Bus, Rail & Ferry",26/11/2020,3110862236,"-1,469.00",Oxford Bus Company Ltd
http://statistics.data.gov.uk/id/local-authority/38,Oxfordshire County Council,Care Homes - Over 65 Physical Sypport,5686,,11/11/2020,3110855968,"-1,444.29",The Shrublands Centre
http://statistics.data.gov.uk/id/local-authority/38,Oxfordshire County Council,Support at Home U65 Learning Disability,5690,,11/11/2020,3110852536,"-1,438.50",Style Acre
http://statistics.data.gov.uk/id/local-authority/38,Oxfordshire County Council,Support at Home 65+ Learning Disability,5688,,11/11/2020,3110852815,"-1,430.45",AFFINITY TRUST
http://statistics.data.gov.uk/id/local-authority/38,Oxfordshire County Council,Support at Home 65+ Memory & Cognition,5686,,11/11/2020,3110854571,"-1,420.00",Orders of St John
http://statistics.data.gov.uk/id/local-authority/38,Oxfordshire County Council,Care Homes - Over 65 Memory & Cognition,5686,,11/11/2020,3110855155,"-1,419.43",OSJ  - Old Station House
http://statistics.data.gov.uk/id/local-authority/38,Oxfordshire County Council,CHC Fast Track - Care Homes - Over 65,5687,,11/11/2020,3110854107,"-1,400.00",Chacombe Park Care Home
http://statistics.data.gov.uk/id/local-authority/38,Oxfordshire County Council,Care Homes - Over 65 Mental Health,5687,,11/11/2020,3110853356,"-1,383.37",Heathfield House Nursing Home
http://statistics.data.gov.uk/id/local-authority/38,Oxfordshire County Council,Care Homes - Over 65 Physical Sypport,5687,,11/11/2020,3110854519,"-1,352.86",Orders of St John
http://statistics.data.gov.uk/id/local-authority/38,Oxfordshire County Council,SEN TRANSPORT,4330,Transport to School Activities,06/11/2020,3110849255,"-1,337.60",A2B Castle Cars Ltd
http://statistics.data.gov.uk/id/local-authority/38,Oxfordshire County Council,Support at Home U65 Learning Disability,5682,,03/11/2020,3110846803,"-1,327.43",The Brandon Trust
http://statistics.data.gov.uk/id/local-authority/38,Oxfordshire County Council,BOTLEY CP  CUMNOR,3357,,03/11/2020,3110846791,"-1,284.00",McLarens
http://statistics.data.gov.uk/id/local-authority/38,Oxfordshire County Council,Care Homes - Over 65 Physical Sypport,5687,,11/11/2020,3110852778,"-1,202.86",Banbury Heights Nursing Home
http://statistics.data.gov.uk/id/local-authority/38,Oxfordshire County Council,Funded Nursing Care  - Over 65,5692,,11/11/2020,3110855071,"-1,156.07",Godswell Park
http://statistics.data.gov.uk/id/local-authority/38,Oxfordshire County Council,WEST STREET RENTALS,5526,Payments to Private Contractors,11/11/2020,3110852221,"-1,150.00",OCC One Time Vendor
http://statistics.data.gov.uk/id/local-authority/38,Oxfordshire County Council,FOSTERING MAIN,5549,B*Fostering Allowance - Regulation 38,24/11/2020,3110860287,"-1,143.86",Redacted Personal Data
http://statistics.data.gov.uk/id/local-authority/38,Oxfordshire County Council,Care Homes - Over 65 Physical Sypport,5686,,11/11/2020,3110856403,"-1,128.57",The Ridings (Anchor Trust)
http://statistics.data.gov.uk/id/local-authority/38,Oxfordshire County Council,Care Homes - Over 65 Physical Sypport,5687,,11/11/2020,3110855125,"-1,082.29",Orders of St John
http://statistics.data.gov.uk/id/local-authority/38,Oxfordshire County Council,Care Homes - Over 65 Physical Sypport,5687,,11/11/2020,3110855570,"-1,058.01",The Julie Richardson Nursing Home
http://statistics.data.gov.uk/id/local-authority/38,Oxfordshire County Council,Care Homes - Over 65 Physical Sypport,5685,B*Cycle tracks,11/11/2020,3110856106,"-1,057.23",St Lukes Nursing Home (Oxford)
http://statistics.data.gov.uk/id/local-authority/38,Oxfordshire County Council,Funded Nursing Care  - Over 65,5692,,11/11/2020,3110853530,"-1,024.69",Bridge House
http://statistics.data.gov.uk/id/local-authority/38,Oxfordshire County Council,Funded Nursing Care  - Over 65,5692,,11/11/2020,3110854092,"-1,024.69",Chacombe Park Care Home
http://statistics.data.gov.uk/id/local-authority/38,Oxfordshire County Council,Care Homes - Over 65 Memory & Cognition,5686,,11/11/2020,3110855363,"-1,014.29",Orders of St John
http://statistics.data.gov.uk/id/local-authority/38,Oxfordshire County Council,SEN TRANSPORT,4330,Transport to School Activities,06/11/2020,3110849347,"-1,012.00",A2B Castle Cars Ltd
http://statistics.data.gov.uk/id/local-authority/38,Oxfordshire County Council,COMM DRAWDOWN FUNDNG,8004,Design Consultant,26/11/2020,2200819678,"-1,006.69",Skanska Construction UK Ltd Sp
http://statistics.data.gov.uk/id/local-authority/38,Oxfordshire County Council,Staff Travel Benefits,4340,Staff and Volunteer Travel Expenses - General,13/11/2020,2200815455,"-1,004.00",Oxford Bus Company Ltd
http://statistics.data.gov.uk/id/local-authority/38,Oxfordshire County Council,Support at Home U65 Learning Disability,5693,,09/11/2020,3110849476,"-1,000.00",AMBER RESIDENTIAL CARE HOMES (ARCH)
http://statistics.data.gov.uk/id/local-authority/38,Oxfordshire County Council,SEN TRANSPORT,4330,Transport to School Activities,06/11/2020,3110849261,-975.68,A2B Castle Cars Ltd
http://statistics.data.gov.uk/id/local-authority/38,Oxfordshire County Council,SEN TRANSPORT,4330,Transport to School Activities,17/11/2020,3110859298,-972.00,R & S Travel Services Ltd T/A A 2 Z
http://statistics.data.gov.uk/id/local-authority/38,Oxfordshire County Council,Care Homes - Over 65 Physical Sypport,5687,,11/11/2020,3110854261,-962.29,Cherwood House Care Centre
http://statistics.data.gov.uk/id/local-authority/38,Oxfordshire County Council,Procurement Rebates & Income,7203,Other Miscellaneous Income,25/11/2020,3110861777,-954.27,STARK SOFTWARE INTERNATIONAL LTD
http://statistics.data.gov.uk/id/local-authority/38,Oxfordshire County Council,RIVERSIDE CENTRE,5051,Provision of Courses,17/11/2020,2200816571,-950.00,Hill End Outdoor Education
http://statistics.data.gov.uk/id/local-authority/38,Oxfordshire County Council,POST 16 SEN,4330,Transport to School Activities,03/11/2020,3110846841,-944.50,C S Comley
http://statistics.data.gov.uk/id/local-authority/38,Oxfordshire County Council,VOIDS/VACANCY COSTS,3945,Rent,11/11/2020,3110853271,-933.86,Sanctuary Supported Living
http://statistics.data.gov.uk/id/local-authority/38,Oxfordshire County Council,Care Homes - Over 65 Memory & Cognition,5687,,11/11/2020,3110856002,-915.74,Barchester Healthcare Homes Ltd
http://statistics.data.gov.uk/id/local-authority/38,Oxfordshire County Council,BOTLEY CP  CUMNOR,3357,,03/11/2020,3110846838,-850.00,McLarens
http://statistics.data.gov.uk/id/local-authority/38,Oxfordshire County Council,TRANSPORT COSTS,4330,Transport to School Activities,06/11/2020,3110849350,-840.00,A2B Castle Cars Ltd
http://statistics.data.gov.uk/id/local-authority/38,Oxfordshire County Council,UTILITIES,3951,Non System - Electricity,24/11/2020,3110859325,-816.67,NPOWER
http://statistics.data.gov.uk/id/local-authority/38,Oxfordshire County Council,Care Homes - Over 65 Physical Sypport,5686,,11/11/2020,3110855381,-811.43,Orders of St John
http://statistics.data.gov.uk/id/local-authority/38,Oxfordshire County Council,VOIDS/VACANCY COSTS,3945,Rent,11/11/2020,3110853170,-801.47,ADVANCE HOUSING & SUPPORT LTD
http://statistics.data.gov.uk/id/local-authority/38,Oxfordshire County Council,WEST WITNEY CP,3357,,03/11/2020,3110846839,-794.31,McLarens
http://statistics.data.gov.uk/id/local-authority/38,Oxfordshire County Council,Support at Home U65 Learning Disability,5688,,11/11/2020,3110853754,-764.21,Dimensions (UK) Ltd
http://statistics.data.gov.uk/id/local-authority/38,Oxfordshire County Council,Procurement Rebates & Income,7203,Other Miscellaneous Income,26/11/2020,2200819476,-756.00,Abingdon Taxis FKN Autotaxis
http://statistics.data.gov.uk/id/local-authority/38,Oxfordshire County Council,Funded Nursing Care  - Over 65,5692,,11/11/2020,3110855646,-735.68,Lincroft Meadow
http://statistics.data.gov.uk/id/local-authority/38,Oxfordshire County Council,CONTRACEPTION,4933,,20/11/2020,3110862222,-734.71,Principal Medical Ltd
http://statistics.data.gov.uk/id/local-authority/38,Oxfordshire County Council,,1320,Childcare Vouchers A/C,19/11/2020,3110858948,-717.88,Childcare Vouchers Ltd
http://statistics.data.gov.uk/id/local-authority/38,Oxfordshire County Council,Procurement Rebates & Income,7203,Other Miscellaneous Income,26/11/2020,2200819474,-713.00,Abingdon Taxis FKN Autotaxis
http://statistics.data.gov.uk/id/local-authority/38,Oxfordshire County Council,Care Homes - Over 65 Memory & Cognition,5686,,11/11/2020,3110855058,-710.00,Orders of St John
http://statistics.data.gov.uk/id/local-authority/38,Oxfordshire County Council,SEN TRANSPORT,5227,Other Transport Arrangements,06/11/2020,3110849262,-704.00,A2B Castle Cars Ltd
http://statistics.data.gov.uk/id/local-authority/38,Oxfordshire County Council,Support at Home 65+ Other /Soc Isolation,5685,B*Cycle tracks,11/11/2020,3110853852,-702.06,Vale House
http://statistics.data.gov.uk/id/local-authority/38,Oxfordshire County Council,FOSTERING MAIN,5548,B*Fostering - Special Rates & Plus Amou,17/11/2020,3110858243,-696.00,Redacted Personal Data
http://statistics.data.gov.uk/id/local-authority/38,Oxfordshire County Council,MAINSTREAM-SECONDARY,4330,Transport to School Activities,17/11/2020,3110859290,-668.40,R & S Travel Services Ltd T/A A 2 Z
http://statistics.data.gov.uk/id/local-authority/38,Oxfordshire County Council,SEN TRANSPORT,5227,Other Transport Arrangements,17/11/2020,3110859288,-660.00,R & S Travel Services Ltd T/A A 2 Z
http://statistics.data.gov.uk/id/local-authority/38,Oxfordshire County Council,Delegated Health Tasks  - Over 65,5691,,13/11/2020,3110857504,-659.92,Bluebird Care (Oxford South & West)
http://statistics.data.gov.uk/id/local-authority/38,Oxfordshire County Council,SEN TRANSPORT,5227,Other Transport Arrangements,06/11/2020,3110849343,-640.00,A2B Castle Cars Ltd
http://statistics.data.gov.uk/id/local-authority/38,Oxfordshire County Council,Fire Protection,3100,Educational and Vocational Training,03/11/2020,2200811405,-630.00,K P Hughes and Associates Ltd
http://statistics.data.gov.uk/id/local-authority/38,Oxfordshire County Council,SEN TRANSPORT,5227,Other Transport Arrangements,17/11/2020,3110859297,-620.00,R & S Travel Services Ltd T/A A 2 Z
http://statistics.data.gov.uk/id/local-authority/38,Oxfordshire County Council,NURSERY ED FUND,5537,Payments to Other Establishments,11/11/2020,3110852065,-618.00,The Oratory Preparatory
http://statistics.data.gov.uk/id/local-authority/38,Oxfordshire County Council,Funded Nursing Care  - Over 65,5692,,11/11/2020,3110853749,-604.31,METHODIST HOMES
http://statistics.data.gov.uk/id/local-authority/38,Oxfordshire County Council,Support at Home U65 Learning Disability,5688,,11/11/2020,3110853616,-601.44,Dimensions (UK) Ltd
http://statistics.data.gov.uk/id/local-authority/38,Oxfordshire County Council,Procurement Rebates & Income,7203,Other Miscellaneous Income,26/11/2020,2200819472,-591.88,Abingdon Taxis FKN Autotaxis
http://statistics.data.gov.uk/id/local-authority/38,Oxfordshire County Council,Staff Travel Benefits,4340,Staff and Volunteer Travel Expenses - General,13/11/2020,2200815452,-575.25,Oxford Bus Company Ltd
http://statistics.data.gov.uk/id/local-authority/38,Oxfordshire County Council,Care Homes - Over 65 Mental Health,5686,,11/11/2020,3110854826,-571.00,Enstone House
http://statistics.data.gov.uk/id/local-authority/38,Oxfordshire County Council,CONTRACEPTION,4933,,20/11/2020,3110862219,-552.89,The Hart Surgery
http://statistics.data.gov.uk/id/local-authority/38,Oxfordshire County Council,Care Homes - Over 65 Physical Sypport,5686,,11/11/2020,3110854989,-551.14,Orders of St John
http://statistics.data.gov.uk/id/local-authority/38,Oxfordshire County Council,Support at Home U65 Learning Disability,5688,,11/11/2020,3110854426,-544.02,The Brandon Trust
http://statistics.data.gov.uk/id/local-authority/38,Oxfordshire County Council,SEN TRANSPORT,5227,Other Transport Arrangements,06/11/2020,3110849258,-544.00,A2B Castle Cars Ltd
http://statistics.data.gov.uk/id/local-authority/38,Oxfordshire County Council,VOIDS/VACANCY COSTS,3945,Rent,11/11/2020,3110853237,-515.20,Oxford Citizens Housing Association
http://statistics.data.gov.uk/id/local-authority/38,Oxfordshire County Council,Support at Home 65+ Physical Support,5693,,11/11/2020,3110852087,-509.04,Bicester PA and Care LLP
http://statistics.data.gov.uk/id/local-authority/38,Oxfordshire County Council,Care Homes - Over 65 Physical Sypport,5686,,11/11/2020,3110854601,-507.14,Orders of St John
http://statistics.data.gov.uk/id/local-authority/38,Oxfordshire County Council,SEN TRANSPORT,5227,Other Transport Arrangements,17/11/2020,3110859293,-506.00,R & S Travel Services Ltd T/A A 2 Z
http://statistics.data.gov.uk/id/local-authority/38,Oxfordshire County Council,Care Homes - Under 65 MH - OBC Contract,5685,B*Cycle tracks,11/11/2020,3110855850,-503.67,PJ Care Ltd
http://statistics.data.gov.uk/id/local-authority/38,Oxfordshire County Council,Care Homes - Over 65 Physical Sypport,5687,,11/11/2020,3110856008,-500.43,Barchester Healthcare Homes Ltd
http://statistics.data.gov.uk/id/local-authority/38,Oxfordshire County Council,FPT SOUTH/VALE,5394,Other Expenses,17/11/2020,3110858378,500.25,Redacted Personal Data
http://statistics.data.gov.uk/id/local-authority/38,Oxfordshire County Council,Support at Home U65 Learning Disability,5690,,11/11/2020,3110852515,501.30,Turnstyle
http://statistics.data.gov.uk/id/local-authority/38,Oxfordshire County Council,Support at Home U65 Learning Disability,5690,,11/11/2020,3110852329,501.43,ADVANCE HOUSING & SUPPORT LTD
http://statistics.data.gov.uk/id/local-authority/38,Oxfordshire County Council,SEN TRANSPORT,5227,Other Transport Arrangements,12/11/2020,3110856616,501.50,Thunderbird Transport Ltd
http://statistics.data.gov.uk/id/local-authority/38,Oxfordshire County Council,POST 16 SEN,5227,Other Transport Arrangements,12/11/2020,3110856751,502.02,A2B Castle Cars Ltd
http://statistics.data.gov.uk/id/local-authority/38,Oxfordshire County Council,Support at Home U65 Physical Support,5899,Social Care - Direct Payments,24/11/2020,3110859826,502.32,Redacted Personal Data
http://statistics.data.gov.uk/id/local-authority/38,Oxfordshire County Council,ON ST PARK OXFD RES,4861,Hired and Contracted Services,18/11/2020,2200816741,503.00,Liberty Printers AR & RF Reddin LTD
http://statistics.data.gov.uk/id/local-authority/38,Oxfordshire County Council,Support at Home 65+ Physical Support,5693,,25/11/2020,3110860850,503.02,Home Helpers Care Ltd
http://statistics.data.gov.uk/id/local-authority/38,Oxfordshire County Council,Oxfordshire Adoption Support Fund,4859,Medical and Counselling Fees,09/11/2020,2200813252,503.33,The Owl Centre
http://statistics.data.gov.uk/id/local-authority/38,Oxfordshire County Council,Support at Home U65 Learning Disability,5689,,10/11/2020,3110850282,503.34,Amber Healthcare Personnel Ltd
http://statistics.data.gov.uk/id/local-authority/38,Oxfordshire County Council,Contingency Home Care,5689,,10/11/2020,3110850908,503.36,OXFORD HEALTH NHS FOUNDATION TRUST
http://statistics.data.gov.uk/id/local-authority/38,Oxfordshire County Council,Planned preventative Maintenance,3787,Premises Repairs,11/11/2020,2200814598,503.50,Windrush Door & Window Services Ltd
http://statistics.data.gov.uk/id/local-authority/38,Oxfordshire County Council,Support at Home 65+ Physical Support,5698,,04/11/2020,3110848452,503.93,Day & Night Care Assistance
http://statistics.data.gov.uk/id/local-authority/38,Oxfordshire County Council,MAINSTREAM-SECONDARY,4330,Transport to School Activities,24/11/2020,3110859470,504.00,Go Green Taxis
http://statistics.data.gov.uk/id/local-authority/38,Oxfordshire County Council,Central FSS Statutory - Barton,5394,Other Expenses,03/11/2020,3500073831,504.00,Redacted Personal Data
http://statistics.data.gov.uk/id/local-authority/38,Oxfordshire County Council,Support at Home U65 Sensory Support,5899,Social Care - Direct Payments,24/11/2020,3110859511,504.00,Redacted Personal Data
http://statistics.data.gov.uk/id/local-authority/38,Oxfordshire County Council,Support at Home U65 MH OBC Contract,5899,Social Care - Direct Payments,25/11/2020,3110861239,504.00,Purple Conversation Com In Co (DP)
http://statistics.data.gov.uk/id/local-authority/38,Oxfordshire County Council,Support at Home 65+ Physical Support,5899,Social Care - Direct Payments,25/11/2020,3110861247,504.00,Purple Conversation Com In Co (DP)
http://statistics.data.gov.uk/id/local-authority/38,Oxfordshire County Council,Support at Home U65 Learning Disability,5899,Social Care - Direct Payments,25/11/2020,3110861589,504.00,Purple Conversation Com In Co (DP)
http://statistics.data.gov.uk/id/local-authority/38,Oxfordshire County Council,SEN TRANSPORT,5227,Other Transport Arrangements,19/11/2020,3110858807,504.00,The Oxfordshire Taxi Company Ltd T/
http://statistics.data.gov.uk/id/local-authority/38,Oxfordshire County Council,Support at Home U65 Learning Disability,5696,,03/11/2020,3110846622,504.33,Orders of St John Care Trust
http://statistics.data.gov.uk/id/local-authority/38,Oxfordshire County Council,SM DISABILITIES,5554,Childrens' Social Care - Direct Payments,25/11/2020,3110861952,504.55,Redacted Personal Data
http://statistics.data.gov.uk/id/local-authority/38,Oxfordshire County Council,SM DISABILITIES,5554,Childrens' Social Care - Direct Payments,25/11/2020,3110861953,504.55,Redacted Personal Data
http://statistics.data.gov.uk/id/local-authority/38,Oxfordshire County Council,SM DISABILITIES,5554,Childrens' Social Care - Direct Payments,25/11/2020,3110862016,504.55,Purple Conversation Com In Co (DP)
http://statistics.data.gov.uk/id/local-authority/38,Oxfordshire County Council,Support at Home 65+ Physical Support,5689,,10/11/2020,3110850863,504.56,My Carer Ltd
http://statistics.data.gov.uk/id/local-authority/38,Oxfordshire County Council,Contingency Home Care,5689,,10/11/2020,3110850949,504.69,Oxford University Hospitals NHS FT
http://statistics.data.gov.uk/id/local-authority/38,Oxfordshire County Council,Support at Home U65 Learning Disability,5688,,11/11/2020,3110854814,504.86,Autism at Kingwood Limited
http://statistics.data.gov.uk/id/local-authority/38,Oxfordshire County Council,FAM GRP CONFERENCES,5668,Technical and Professional Consultant F,23/11/2020,2200818045,505.00,Katie Mollaghan
http://statistics.data.gov.uk/id/local-authority/38,Oxfordshire County Council,ATTACH TEAM,3105,Training related expenditure,06/11/2020,2200812812,505.00,The Compassionate Mind Foundation
http://statistics.data.gov.uk/id/local-authority/38,Oxfordshire County Council,Support at Home U65 Learning Disability,5682,,03/11/2020,3110846814,505.14,The Brandon Trust
http://statistics.data.gov.uk/id/local-authority/38,Oxfordshire County Council,Support at Home U65 Learning Disability,5899,Social Care - Direct Payments,25/11/2020,3110861433,505.32,Purple Conversation Com In Co (DP)
http://statistics.data.gov.uk/id/local-authority/38,Oxfordshire County Council,"Roundabout CC, Waynflete Rd",3821,Grounds Maintenance Contracts,18/11/2020,2200816797,505.50,Aspire Oxfordshire
http://statistics.data.gov.uk/id/local-authority/38,Oxfordshire County Council,POST 16 SEN,4330,Transport to School Activities,12/11/2020,3110856763,506.00,Henry Taxi
http://statistics.data.gov.uk/id/local-authority/38,Oxfordshire County Council,SEN TRANSPORT,5227,Other Transport Arrangements,17/11/2020,3110857372,506.00,R & S Travel Services Ltd T/A A 2 Z
http://statistics.data.gov.uk/id/local-authority/38,Oxfordshire County Council,SM DISABILITIES,5554,Childrens' Social Care - Direct Payments,25/11/2020,3110862007,506.19,Purple Conversation Com In Co (DP)
http://statistics.data.gov.uk/id/local-authority/38,Oxfordshire County Council,Support at Home U65 Physical Support,5688,,11/11/2020,3110852855,506.70,The Laurels (Witney)
http://statistics.data.gov.uk/id/local-authority/38,Oxfordshire County Council,VOIDS/VACANCY COSTS,3945,Rent,11/11/2020,3110853253,506.91,Sovereign Housing Association Ltd
http://statistics.data.gov.uk/id/local-authority/38,Oxfordshire County Council,Support at Home U65 Learning Disability,5689,,10/11/2020,3110851065,507.00,PLL Care Services
http://statistics.data.gov.uk/id/local-authority/38,Oxfordshire County Council,Care Homes - Over 65 Physical Sypport,5686,,11/11/2020,3110854577,507.14,Orders of St John
http://statistics.data.gov.uk/id/local-authority/38,Oxfordshire County Council,Delegated Health Tasks  - Over 65,5689,,10/11/2020,3110850809,507.21,Lifecarers Limited
http://statistics.data.gov.uk/id/local-authority/38,Oxfordshire County Council,DEVELOPMENT MANAGEME,4790,"Publicity, Promotions and Advertisement",16/11/2020,2200815667,507.30,Tmp (Uk) Ltd
http://statistics.data.gov.uk/id/local-authority/38,Oxfordshire County Council,Planned preventative Maintenance,3787,Premises Repairs,19/11/2020,2200817245,508.00,Darren Bryan Security Services
http://statistics.data.gov.uk/id/local-authority/38,Oxfordshire County Council,FOSTERING MAIN,5532,B*Fostering - Loan Equipment,17/11/2020,3110858424,508.00,Redacted Personal Data
http://statistics.data.gov.uk/id/local-authority/38,Oxfordshire County Council,Support at Home 65+ Physical Support,5689,,10/11/2020,3110851150,508.13,AVR (Oxon) Ltd
http://statistics.data.gov.uk/id/local-authority/38,Oxfordshire County Council,Support at Home U65 MH OBC Contract,5899,Social Care - Direct Payments,24/11/2020,3110859743,508.36,Redacted Personal Data
http://statistics.data.gov.uk/id/local-authority/38,Oxfordshire County Council,LIBRARY COLLECTIONS,4539,"Books, DVDs and CDs",17/11/2020,3110857708,508.39,ASKEWS & HOLTS LIBRARY SERVICES LTD
http://statistics.data.gov.uk/id/local-authority/38,Oxfordshire County Council,Support at Home 65+ Physical Support,5698,,04/11/2020,3110848316,508.44,Charterville Care At Home Ltd
http://statistics.data.gov.uk/id/local-authority/38,Oxfordshire County Council,Contingency Home Care,5689,,10/11/2020,3110850964,508.69,Oxford University Hospitals NHS FT
http://statistics.data.gov.uk/id/local-authority/38,Oxfordshire County Council,Support at Home 65+ Physical Support,5689,,10/11/2020,3110850310,508.88,Care Outlook Ltd
http://statistics.data.gov.uk/id/local-authority/38,Oxfordshire County Council,ECH Central Costs,5696,,11/11/2020,3110852586,509.06,BPHA Limited
http://statistics.data.gov.uk/id/local-authority/38,Oxfordshire County Council,Support at Home U65 Learning Disability,5899,Social Care - Direct Payments,25/11/2020,3110860921,509.40,Purple Conversation Com In Co (DP)
http://statistics.data.gov.uk/id/local-authority/38,Oxfordshire County Council,INTERPRETATION holding account,4940,Other Services,10/11/2020,2200814130,509.80,D.A. LANGUAGES
http://statistics.data.gov.uk/id/local-authority/38,Oxfordshire County Council,Support at Home U65 Learning Disability,5227,Other Transport Arrangements,26/11/2020,3110862392,510.00,Black and White Cars T/A Banbury Ta
http://statistics.data.gov.uk/id/local-authority/38,Oxfordshire County Council,SEN TRANSPORT,5500,Payments to Other Local Authorities,02/11/2020,3110846221,510.00,Broadway Taxis Ltd (Bridgewater)
http://statistics.data.gov.uk/id/local-authority/38,Oxfordshire County Council,Support at Home 65+ Physical Support,5693,,18/11/2020,3110858576,510.00,Care with Care Ltd
http://statistics.data.gov.uk/id/local-authority/38,Oxfordshire County Council,SEN TRANSPORT,5227,Other Transport Arrangements,12/11/2020,3110856776,510.00,Cherwell Cars
http://statistics.data.gov.uk/id/local-authority/38,Oxfordshire County Council,COVID 19 Infection Control 2,5689,,30/11/2020,3110863024,510.00,Day and Nightcare Assistance
http://statistics.data.gov.uk/id/local-authority/38,Oxfordshire County Council,MAINSTREAM-PRIMARY,4330,Transport to School Activities,24/11/2020,3110859478,510.00,Go Green Taxis
http://statistics.data.gov.uk/id/local-authority/38,Oxfordshire County Council,SEN TRANSPORT,5227,Other Transport Arrangements,12/11/2020,3110856707,510.00,Luxicars Ltd
http://statistics.data.gov.uk/id/local-authority/38,Oxfordshire County Council,COVID 19 Infection Control 2,5689,,30/11/2020,3110863045,510.00,Orders of St John Care Trust
http://statistics.data.gov.uk/id/local-authority/38,Oxfordshire County Council,COVID 19 Infection Control 2,5689,,30/11/2020,3110863070,510.00,Orders of St John Care Trust
http://statistics.data.gov.uk/id/local-authority/38,Oxfordshire County Council,MAINSTREAM-PRIMARY,4330,Transport to School Activities,17/11/2020,3110857333,510.00,OXFORD BLUE CARS
http://statistics.data.gov.uk/id/local-authority/38,Oxfordshire County Council,MAINSTREAM-PRIMARY,4330,Transport to School Activities,17/11/2020,3110857334,510.00,OXFORD BLUE CARS
http://statistics.data.gov.uk/id/local-authority/38,Oxfordshire County Council,SEN TRANSPORT,5227,Other Transport Arrangements,16/11/2020,3110857232,510.00,Oxfordlinks
http://statistics.data.gov.uk/id/local-authority/38,Oxfordshire County Council,SEN TRANSPORT,5227,Other Transport Arrangements,06/11/2020,3110849163,510.00,Oxon Transport Services Ltd
http://statistics.data.gov.uk/id/local-authority/38,Oxfordshire County Council,SEN TRANSPORT,5227,Other Transport Arrangements,06/11/2020,3110849167,510.00,Oxon Transport Services Ltd
http://statistics.data.gov.uk/id/local-authority/38,Oxfordshire County Council,SEN TRANSPORT,4330,Transport to School Activities,06/11/2020,3110849215,510.00,Oxon Transport Services Ltd
http://statistics.data.gov.uk/id/local-authority/38,Oxfordshire County Council,SEN TRANSPORT,5227,Other Transport Arrangements,16/11/2020,3110857166,510.00,Phoenixx Cars Ltd
http://statistics.data.gov.uk/id/local-authority/38,Oxfordshire County Council,COVID 19 Infection Control 2,5689,,30/11/2020,3110862986,510.00,UNITED RESPONSE
http://statistics.data.gov.uk/id/local-authority/38,Oxfordshire County Council,Support at Home 65+ Physical Support,5899,Social Care - Direct Payments,24/11/2020,3110859797,510.40,Redacted Personal Data
http://statistics.data.gov.uk/id/local-authority/38,Oxfordshire County Council,Support at Home U65 Physical Support,5899,Social Care - Direct Payments,25/11/2020,3110861435,510.40,Purple Conversation Com In Co (DP)
http://statistics.data.gov.uk/id/local-authority/38,Oxfordshire County Council,CLOSED LANDFILL,4861,Hired and Contracted Services,11/11/2020,2200814290,511.04,FCC Environment (UK) Ltd
http://statistics.data.gov.uk/id/local-authority/38,Oxfordshire County Council,Support at Home U65 Physical Support,5689,,10/11/2020,3110850493,511.69,Oxfordshire Crossroads
http://statistics.data.gov.uk/id/local-authority/38,Oxfordshire County Council,Support at Home U65 Learning Disability,5899,Social Care - Direct Payments,25/11/2020,3110861412,511.80,Purple Conversation Com In Co (DP)
http://statistics.data.gov.uk/id/local-authority/38,Oxfordshire County Council,MAINSTREAM-SECONDARY,4330,Transport to School Activities,18/11/2020,3110858535,512.00,001 Alpha Cars Ltd
http://statistics.data.gov.uk/id/local-authority/38,Oxfordshire County Council,Support at Home 65+ Other /Soc Isolation,5693,,25/11/2020,3110860807,512.00,Redacted Personal Data
http://statistics.data.gov.uk/id/local-authority/38,Oxfordshire County Council,Support at Home 65+ Physical Support,5227,Other Transport Arrangements,24/11/2020,3110859463,512.00,Go Green Taxis
http://statistics.data.gov.uk/id/local-authority/38,Oxfordshire County Council,Support at Home U65 Learning Disability,5899,Social Care - Direct Payments,24/11/2020,3110859575,512.00,Redacted Personal Data
http://statistics.data.gov.uk/id/local-authority/38,Oxfordshire County Council,Support at Home U65 Learning Disability,5899,Social Care - Direct Payments,25/11/2020,3110861048,512.00,Purple Conversation Com In Co (DP)
http://statistics.data.gov.uk/id/local-authority/38,Oxfordshire County Council,Support at Home 65+ Physical Support,5899,Social Care - Direct Payments,25/11/2020,3110861186,512.00,Purple Conversation Com In Co (DP)
http://statistics.data.gov.uk/id/local-authority/38,Oxfordshire County Council,Support at Home 65+ Physical Support,5689,,10/11/2020,3110850895,512.13,Oasis Private Care Ltd
http://statistics.data.gov.uk/id/local-authority/38,Oxfordshire County Council,Support at Home 65+ Physical Support,5698,,04/11/2020,3110848304,512.16,Bridges Home Care Ltd
http://statistics.data.gov.uk/id/local-authority/38,Oxfordshire County Council,Support at Home 65+ Physical Support,5689,,10/11/2020,3110850436,512.32,Caretree Ltd
http://statistics.data.gov.uk/id/local-authority/38,Oxfordshire County Council,Property Cleaning,4060,Cleaning Materials,19/11/2020,2200817224,512.75,Seldram Supplies
http://statistics.data.gov.uk/id/local-authority/38,Oxfordshire County Council,Support at Home U65 Physical Support,5899,Social Care - Direct Payments,25/11/2020,3110860823,512.80,Purple Conversation Com In Co (DP)
http://statistics.data.gov.uk/id/local-authority/38,Oxfordshire County Council,Support at Home 65+ Physical Support,5696,,11/11/2020,3110852167,513.00,1st Homecare (Oxford) Ltd
http://statistics.data.gov.uk/id/local-authority/38,Oxfordshire County Council,CHC Fast Track - Sup at Homes - Over 65,5691,,20/11/2020,3110859424,513.00,Star Projections T/A Christies Care
http://statistics.data.gov.uk/id/local-authority/38,Oxfordshire County Council,Support at Home 65+ Physical Support,5689,,10/11/2020,3110850860,513.21,My Carer Ltd
http://statistics.data.gov.uk/id/local-authority/38,Oxfordshire County Council,Support at Home 65+ Physical Support,5698,,04/11/2020,3110848134,513.25,Acquire Care Ltd
http://statistics.data.gov.uk/id/local-authority/38,Oxfordshire County Council,Support at Home U65 Physical Support,5698,,04/11/2020,3110848589,513.38,KCARE NURSING AGENCY
http://statistics.data.gov.uk/id/local-authority/38,Oxfordshire County Council,Support at Home 65+ Physical Support,5689,,10/11/2020,3110850592,514.29,Golden Services Care Ltd
http://statistics.data.gov.uk/id/local-authority/38,Oxfordshire County Council,Support at Home 65+ Physical Support,5696,,04/11/2020,3110847812,514.36,One Housing Group Limited
http://statistics.data.gov.uk/id/local-authority/38,Oxfordshire County Council,Support at Home 65+ Physical Support,5696,,04/11/2020,3110847821,514.36,One Housing Group Limited
http://statistics.data.gov.uk/id/local-authority/38,Oxfordshire County Council,Support at Home 65+ Physical Support,5696,,25/11/2020,3110860889,514.36,One Housing Group Limited
http://statistics.data.gov.uk/id/local-authority/38,Oxfordshire County Council,Support at Home 65+ Physical Support,5696,,25/11/2020,3110860909,514.36,One Housing Group Limited
http://statistics.data.gov.uk/id/local-authority/38,Oxfordshire County Council,Support at Home U65 Physical Support,5696,,11/11/2020,3110852182,514.36,Radis Community Care
http://statistics.data.gov.uk/id/local-authority/38,Oxfordshire County Council,Support at Home 65+ Physical Support,5696,,03/11/2020,3110846634,514.42,Orders of St John Care Trust
http://statistics.data.gov.uk/id/local-authority/38,Oxfordshire County Council,Support at Home 65+ Physical Support,5696,,03/11/2020,3110846733,514.42,Orders of St John Care Trust
http://statistics.data.gov.uk/id/local-authority/38,Oxfordshire County Council,Support at Home 65+ Physical Support,5696,,03/11/2020,3110846781,514.42,Orders of St John Care Trust
http://statistics.data.gov.uk/id/local-authority/38,Oxfordshire County Council,Support at Home U65 Physical Support,5689,,10/11/2020,3110850559,514.50,Elite Care Agency
http://statistics.data.gov.uk/id/local-authority/38,Oxfordshire County Council,LEGAL BUDGET,5251,Legal Costs,05/11/2020,2200812351,514.80,Dr Melissa Jackaman
http://statistics.data.gov.uk/id/local-authority/38,Oxfordshire County Council,Support at Home U65 Physical Support,5899,Social Care - Direct Payments,25/11/2020,3110861058,514.88,Purple Conversation Com In Co (DP)
http://statistics.data.gov.uk/id/local-authority/38,Oxfordshire County Council,POST18 UASC DCSF FND,5785,Client Lodgings and Accommodation,26/11/2020,3110862280,515.00,Redacted Personal Data
http://statistics.data.gov.uk/id/local-authority/38,Oxfordshire County Council,ADMIN SERVICES,5460,Entertainment Expenses,13/11/2020,2200815436,515.00,Rural Services Partnership
http://statistics.data.gov.uk/id/local-authority/38,Oxfordshire County Council,Support at Home U65 Physical Support,5899,Social Care - Direct Payments,25/11/2020,3110861416,515.20,Purple Conversation Com In Co (DP)
http://statistics.data.gov.uk/id/local-authority/38,Oxfordshire County Council,Support at Home U65 Sensory Support,5899,Social Care - Direct Payments,24/11/2020,3110859506,515.52,Redacted Personal Data
http://statistics.data.gov.uk/id/local-authority/38,Oxfordshire County Council,Support at Home U65 Learning Disability,5689,,10/11/2020,3110850458,517.05,Oxfordshire Crossroads
http://statistics.data.gov.uk/id/local-authority/38,Oxfordshire County Council,Support at Home 65+ Physical Support,5689,,10/11/2020,3110850305,517.13,Care Outlook Ltd
http://statistics.data.gov.uk/id/local-authority/38,Oxfordshire County Council,SHARED LIVES,5365,Non-Staff Subsistence and Expenses,11/11/2020,3110852774,517.24,Redacted Personal Data
http://statistics.data.gov.uk/id/local-authority/38,Oxfordshire County Council,,1429,Charitable Donations,10/11/2020,3110850128,517.59,GIVE AS YOU EARN
http://statistics.data.gov.uk/id/local-authority/38,Oxfordshire County Council,SEN TRANSPORT,5227,Other Transport Arrangements,12/11/2020,3110856695,517.95,Luxicars Ltd
http://statistics.data.gov.uk/id/local-authority/38,Oxfordshire County Council,FOSTERING MAIN,5549,B*Fostering Allowance - Regulation 38,17/11/2020,3110858248,518.00,Redacted Personal Data
http://statistics.data.gov.uk/id/local-authority/38,Oxfordshire County Council,FOSTERING MAIN,5549,B*Fostering Allowance - Regulation 38,24/11/2020,3110860361,518.00,Redacted Personal Data
http://statistics.data.gov.uk/id/local-authority/38,Oxfordshire County Council,FOSTERING MAIN,5541,B*Foster Parents,03/11/2020,3110847610,518.00,Redacted Personal Data
http://statistics.data.gov.uk/id/local-authority/38,Oxfordshire County Council,FOSTERING MAIN,5541,B*Foster Parents,10/11/2020,3110851709,518.00,Redacted Personal Data
http://statistics.data.gov.uk/id/local-authority/38,Oxfordshire County Council,FOSTERING MAIN,5541,B*Foster Parents,17/11/2020,3110858426,518.00,Redacted Personal Data
http://statistics.data.gov.uk/id/local-authority/38,Oxfordshire County Council,FOSTERING MAIN,5541,B*Foster Parents,24/11/2020,3110860709,518.00,Redacted Personal Data
http://statistics.data.gov.uk/id/local-authority/38,Oxfordshire County Council,FOSTERING MAIN,5541,B*Foster Parents,03/11/2020,3110847626,518.00,Redacted Personal Data
http://statistics.data.gov.uk/id/local-authority/38,Oxfordshire County Council,FOSTERING MAIN,5541,B*Foster Parents,10/11/2020,3110851742,518.00,Redacted Personal Data
http://statistics.data.gov.uk/id/local-authority/38,Oxfordshire County Council,Support at Home U65 Other /Soc Isolation,5899,Social Care - Direct Payments,25/11/2020,3110861034,518.40,Purple Conversation Com In Co (DP)
http://statistics.data.gov.uk/id/local-authority/38,Oxfordshire County Council,Support at Home 65+ Physical Support,5899,Social Care - Direct Payments,25/11/2020,3110861447,518.40,Purple Conversation Com In Co (DP)
http://statistics.data.gov.uk/id/local-authority/38,Oxfordshire County Council,Youth Justice & Exploitation,5665,B*Fostering Project Care Fee,30/11/2020,9300049594,518.85,OCC SS Oxford City Div 1 Cash
http://statistics.data.gov.uk/id/local-authority/38,Oxfordshire County Council,NURSERY ED FUND,5537,Payments to Other Establishments,09/11/2020,3110849643,519.12,Catherine's Childminding Services
http://statistics.data.gov.uk/id/local-authority/38,Oxfordshire County Council,LIBRARY COLLECTIONS,4539,"Books, DVDs and CDs",25/11/2020,2200819249,519.35,Bolinda UK Ltd
http://statistics.data.gov.uk/id/local-authority/38,Oxfordshire County Council,COVID 19 Infection Control 2,5689,,03/11/2020,3110847685,520.00,OCC One Time Vendor
http://statistics.data.gov.uk/id/local-authority/38,Oxfordshire County Council,Support at Home U65 Physical Support,5899,Social Care - Direct Payments,25/11/2020,3110860974,520.00,Purple Conversation Com In Co (DP)
http://statistics.data.gov.uk/id/local-authority/38,Oxfordshire County Council,Support at Home U65 Physical Support,5899,Social Care - Direct Payments,25/11/2020,3110861334,520.00,Purple Conversation Com In Co (DP)
http://statistics.data.gov.uk/id/local-authority/38,Oxfordshire County Council,Support at Home U65 Physical Support,5899,Social Care - Direct Payments,25/11/2020,3110861362,520.00,Purple Conversation Com In Co (DP)
http://statistics.data.gov.uk/id/local-authority/38,Oxfordshire County Council,TREE MAINT OPS,5526,Payments to Private Contractors,12/11/2020,2200814984,520.00,South Bucks Tree Surgeons
http://statistics.data.gov.uk/id/local-authority/38,Oxfordshire County Council,Support at Home 65+ Mental Health,5693,,04/11/2020,3110847867,520.00,Star Projections T/A Christies Care
http://statistics.data.gov.uk/id/local-authority/38,Oxfordshire County Council,Swindon Adoption Support Fund,4859,Medical and Counselling Fees,04/11/2020,2200811789,520.00,The Family Place
http://statistics.data.gov.uk/id/local-authority/38,Oxfordshire County Council,TRANSPORT COSTS,4330,Transport to School Activities,19/11/2020,3110858839,520.00,The Oxfordshire Taxi Company Ltd T/
http://statistics.data.gov.uk/id/local-authority/38,Oxfordshire County Council,LAC PUPIL PREMIUM,5380,"Author, Speaker and Lecturer Fees",20/11/2020,2200817686,520.00,TRAX Motor Project
http://statistics.data.gov.uk/id/local-authority/38,Oxfordshire County Council,SEN TRANSPORT,5227,Other Transport Arrangements,02/11/2020,3110846247,520.00,Unitaxi Ltd
http://statistics.data.gov.uk/id/local-authority/38,Oxfordshire County Council,FLEET COSTS,4270,HTM / Other Vehicle - Hire Charges,03/11/2020,2200811491,520.00,West Wallasey Fleet Hire Services
http://statistics.data.gov.uk/id/local-authority/38,Oxfordshire County Council,Support at Home 65+ Physical Support,5696,,03/11/2020,3110846712,520.19,Orders of St John Care Trust
http://statistics.data.gov.uk/id/local-authority/38,Oxfordshire County Council,Support at Home U65 Physical Support,5689,,10/11/2020,3110850857,520.65,My Carer Ltd
http://statistics.data.gov.uk/id/local-authority/38,Oxfordshire County Council,Contingency Home Care,5689,,10/11/2020,3110850941,520.69,Oxford University Hospitals NHS FT
http://statistics.data.gov.uk/id/local-authority/38,Oxfordshire County Council,Contingency Home Care,5689,,10/11/2020,3110850952,520.69,Oxford University Hospitals NHS FT
http://statistics.data.gov.uk/id/local-authority/38,Oxfordshire County Council,Support at Home U65 Other /Soc Isolation,5899,Social Care - Direct Payments,25/11/2020,3110861584,520.80,Purple Conversation Com In Co (DP)
http://statistics.data.gov.uk/id/local-authority/38,Oxfordshire County Council,Support at Home U65 Physical Support,5899,Social Care - Direct Payments,25/11/2020,3110861531,521.20,Purple Conversation Com In Co (DP)
http://statistics.data.gov.uk/id/local-authority/38,Oxfordshire County Council,Support at Home 65+ Physical Support,5696,,03/11/2020,3110846769,521.96,Orders of St John Care Trust
http://statistics.data.gov.uk/id/local-authority/38,Oxfordshire County Council,FLEET MAINTENANCE,4220,Vehicle Workshop Spares and Consumables,11/11/2020,2200814313,522.00,C Track UK
http://statistics.data.gov.uk/id/local-authority/38,Oxfordshire County Council,SEN TRANSPORT,4330,Transport to School Activities,24/11/2020,3110859468,522.00,Go Green Taxis
http://statistics.data.gov.uk/id/local-authority/38,Oxfordshire County Council,Contingency Home Care,5689,,10/11/2020,3110850965,522.03,Oxford University Hospitals NHS FT
http://statistics.data.gov.uk/id/local-authority/38,Oxfordshire County Council,RBWM Adoption Support Fund,4859,Medical and Counselling Fees,18/11/2020,2200816851,522.50,Heads & Hearts Ltd
http://statistics.data.gov.uk/id/local-authority/38,Oxfordshire County Council,OPERATIONS,4498,Health and Safety Equipment,16/11/2020,2200815744,522.50,The Safety Supply Company Ltd
http://statistics.data.gov.uk/id/local-authority/38,Oxfordshire County Council,Support at Home 65+ Physical Support,5698,,04/11/2020,3110848652,522.66,Oxford Private Care
http://statistics.data.gov.uk/id/local-authority/38,Oxfordshire County Council,Support at Home 65+ Physical Support,5698,,04/11/2020,3110848253,523.02,Bridges Home Care Ltd
http://statistics.data.gov.uk/id/local-authority/38,Oxfordshire County Council,Support at Home U65 Learning Disability,5689,,10/11/2020,3110850565,523.65,Genuine Carers Ltd
http://statistics.data.gov.uk/id/local-authority/38,Oxfordshire County Council,SM DISABILITIES,5554,Childrens' Social Care - Direct Payments,25/11/2020,3110861978,523.90,Redacted Personal Data
http://statistics.data.gov.uk/id/local-authority/38,Oxfordshire County Council,STI TESTING+TREATMEN,4940,Other Services,25/11/2020,3110862638,524.00,County Durham and Darlington NHS Tr
http://statistics.data.gov.uk/id/local-authority/38,Oxfordshire County Council,Support at Home U65 Learning Disability,5899,Social Care - Direct Payments,24/11/2020,3110860072,524.00,Redacted Personal Data
http://statistics.data.gov.uk/id/local-authority/38,Oxfordshire County Council,LANDLORD & TENANT,4001,Uniform Business Rates,26/11/2020,3500074044,524.00,South Oxfordshire District Council
http://statistics.data.gov.uk/id/local-authority/38,Oxfordshire County Council,FOSTERING MAIN,5541,B*Foster Parents,24/11/2020,3110860725,524.29,Redacted Personal Data
http://statistics.data.gov.uk/id/local-authority/38,Oxfordshire County Council,Contingency Home Care,5689,,10/11/2020,3110850948,524.69,Oxford University Hospitals NHS FT
http://statistics.data.gov.uk/id/local-authority/38,Oxfordshire County Council,FOSTERING MAIN,5549,B*Fostering Allowance - Regulation 38,24/11/2020,3110860577,524.90,Redacted Personal Data
http://statistics.data.gov.uk/id/local-authority/38,Oxfordshire County Council,SEN TRANSPORT,5227,Other Transport Arrangements,20/11/2020,3110859202,525.00,Crown Cabs Travel Ltd
http://statistics.data.gov.uk/id/local-authority/38,Oxfordshire County Council,SEN TRANSPORT,5227,Other Transport Arrangements,20/11/2020,3110859204,525.00,Crown Cabs Travel Ltd
http://statistics.data.gov.uk/id/local-authority/38,Oxfordshire County Council,Support at Home 65+ Physical Support,5693,,11/11/2020,3110852120,525.00,Enable Health Ltd
http://statistics.data.gov.uk/id/local-authority/38,Oxfordshire County Council,Support at Home U65 Memory & Cognition,5693,,11/11/2020,3110852140,525.00,Heritage Healthcare Oxford - South
http://statistics.data.gov.uk/id/local-authority/38,Oxfordshire County Council,CORONER,5201,Funeral Director Services,16/11/2020,3110857078,525.00,OCC One Time Vendor
http://statistics.data.gov.uk/id/local-authority/38,Oxfordshire County Council,Support at Home U65 Physical Support,5693,,25/11/2020,3110860816,525.04,HEALTHCARE ACCESS LTD
http://statistics.data.gov.uk/id/local-authority/38,Oxfordshire County Council,SEN TRANSPORT,5227,Other Transport Arrangements,20/11/2020,3110859209,525.42,Crown Cabs Travel Ltd
http://statistics.data.gov.uk/id/local-authority/38,Oxfordshire County Council,Mockingbird,5394,Other Expenses,17/11/2020,3110858419,526.14,Redacted Personal Data
http://statistics.data.gov.uk/id/local-authority/38,Oxfordshire County Council,PLACEMENTS- RELEVANT,5785,Client Lodgings and Accommodation,27/11/2020,3110862680,526.39,Response Organisation
http://statistics.data.gov.uk/id/local-authority/38,Oxfordshire County Council,,1416,FSNBF,10/11/2020,3110850119,526.41,THE FIRE FIGHTERS CHARITY
http://statistics.data.gov.uk/id/local-authority/38,Oxfordshire County Council,SM DISABILITIES,5554,Childrens' Social Care - Direct Payments,25/11/2020,3110862071,526.61,Purple Conversation Com In Co (DP)
http://statistics.data.gov.uk/id/local-authority/38,Oxfordshire County Council,Support at Home 65+ Physical Support,5698,,04/11/2020,3110848515,526.72,Day & Night Care Assistance
http://statistics.data.gov.uk/id/local-authority/38,Oxfordshire County Council,SEN TRANSPORT,5227,Other Transport Arrangements,17/11/2020,3110857415,527.00,R & S Travel Services Ltd T/A A 2 Z
http://statistics.data.gov.uk/id/local-authority/38,Oxfordshire County Council,Independent Foster,5559,,11/11/2020,3110852227,527.13,ALL4U Fostering Ltd
http://statistics.data.gov.uk/id/local-authority/38,Oxfordshire County Council,MAINSTREAM-PRIMARY,4330,Transport to School Activities,04/11/2020,3110847948,528.00,Cherwell Cars
http://statistics.data.gov.uk/id/local-authority/38,Oxfordshire County Council,FOSTERING MAIN,5549,B*Fostering Allowance - Regulation 38,03/11/2020,3110847562,528.00,Redacted Personal Data
http://statistics.data.gov.uk/id/local-authority/38,Oxfordshire County Council,FOSTERING MAIN,5549,B*Fostering Allowance - Regulation 38,10/11/2020,3110851624,528.00,Redacted Personal Data
http://statistics.data.gov.uk/id/local-authority/38,Oxfordshire County Council,FOSTERING MAIN,5549,B*Fostering Allowance - Regulation 38,17/11/2020,3110858377,528.00,Redacted Personal Data
http://statistics.data.gov.uk/id/local-authority/38,Oxfordshire County Council,FOSTERING MAIN,5549,B*Fostering Allowance - Regulation 38,24/11/2020,3110860655,528.00,Redacted Personal Data
http://statistics.data.gov.uk/id/local-authority/38,Oxfordshire County Council,North FSS Statutory - Banbury,5227,Other Transport Arrangements,06/11/2020,3110849392,528.00,OMC GLOBAL LIMITED
http://statistics.data.gov.uk/id/local-authority/38,Oxfordshire County Council,SEN TRANSPORT,5227,Other Transport Arrangements,06/11/2020,3110849208,528.00,Oxon Transport Services Ltd
http://statistics.data.gov.uk/id/local-authority/38,Oxfordshire County Council,SEN TRANSPORT,5227,Other Transport Arrangements,06/11/2020,3110849210,528.00,Oxon Transport Services Ltd
http://statistics.data.gov.uk/id/local-authority/38,Oxfordshire County Council,Support at Home U65 Physical Support,5899,Social Care - Direct Payments,25/11/2020,3110861090,528.00,Purple Conversation Com In Co (DP)
http://statistics.data.gov.uk/id/local-authority/38,Oxfordshire County Council,Support at Home 65+ Physical Support,5899,Social Care - Direct Payments,25/11/2020,3110861305,528.00,Purple Conversation Com In Co (DP)
http://statistics.data.gov.uk/id/local-authority/38,Oxfordshire County Council,SEN TRANSPORT,5227,Other Transport Arrangements,17/11/2020,3110857392,528.00,R & S Travel Services Ltd T/A A 2 Z
http://statistics.data.gov.uk/id/local-authority/38,Oxfordshire County Council,RESIDENTIAL TREATMEN,1362,Creditors GR/IR -,27/11/2020,2200819851,528.00,Smart CJS
http://statistics.data.gov.uk/id/local-authority/38,Oxfordshire County Council,SM DISABILITIES,5554,Childrens' Social Care - Direct Payments,25/11/2020,3110861954,528.55,Redacted Personal Data
http://statistics.data.gov.uk/id/local-authority/38,Oxfordshire County Council,SM DISABILITIES,5554,Childrens' Social Care - Direct Payments,25/11/2020,3110862101,528.55,Purple Conversation Com In Co (DP)
http://statistics.data.gov.uk/id/local-authority/38,Oxfordshire County Council,Support at Home 65+ Physical Support,5689,,10/11/2020,3110850758,528.67,Kare Plus Oxford
http://statistics.data.gov.uk/id/local-authority/38,Oxfordshire County Council,Support at Home U65 Learning Disability,5690,,11/11/2020,3110852352,528.86,Guideposts Trust
http://statistics.data.gov.uk/id/local-authority/38,Oxfordshire County Council,FOSTERING MAIN,5541,B*Foster Parents,24/11/2020,3110860688,529.00,Redacted Personal Data
http://statistics.data.gov.uk/id/local-authority/38,Oxfordshire County Council,FOSTERING MAIN,5541,B*Foster Parents,03/11/2020,3110847474,529.00,Redacted Personal Data
http://statistics.data.gov.uk/id/local-authority/38,Oxfordshire County Council,FOSTERING MAIN,5541,B*Foster Parents,03/11/2020,3110847476,529.00,Redacted Personal Data
http://statistics.data.gov.uk/id/local-authority/38,Oxfordshire County Council,FOSTERING MAIN,5541,B*Foster Parents,10/11/2020,3110851513,529.00,Redacted Personal Data
http://statistics.data.gov.uk/id/local-authority/38,Oxfordshire County Council,FOSTERING MAIN,5541,B*Foster Parents,10/11/2020,3110851515,529.00,Redacted Personal Data
http://statistics.data.gov.uk/id/local-authority/38,Oxfordshire County Council,FOSTERING MAIN,5541,B*Foster Parents,17/11/2020,3110858320,529.00,Redacted Personal Data
http://statistics.data.gov.uk/id/local-authority/38,Oxfordshire County Council,FOSTERING MAIN,5541,B*Foster Parents,17/11/2020,3110858321,529.00,Redacted Personal Data
http://statistics.data.gov.uk/id/local-authority/38,Oxfordshire County Council,FOSTERING MAIN,5541,B*Foster Parents,24/11/2020,3110860528,529.00,Redacted Personal Data
http://statistics.data.gov.uk/id/local-authority/38,Oxfordshire County Council,FOSTERING MAIN,5541,B*Foster Parents,24/11/2020,3110860530,529.00,Redacted Personal Data
http://statistics.data.gov.uk/id/local-authority/38,Oxfordshire County Council,FOSTERING MAIN,5532,B*Fostering - Loan Equipment,03/11/2020,3110847294,529.00,Redacted Personal Data
http://statistics.data.gov.uk/id/local-authority/38,Oxfordshire County Council,Support at Home 65+ Physical Support,5693,,04/11/2020,3110847797,529.00,Kare Plus Oxford
http://statistics.data.gov.uk/id/local-authority/38,Oxfordshire County Council,SM DISABILITIES,5554,Childrens' Social Care - Direct Payments,25/11/2020,3110861971,529.04,Redacted Personal Data
http://statistics.data.gov.uk/id/local-authority/38,Oxfordshire County Council,Support at Home 65+ Physical Support,5696,,03/11/2020,3110846646,529.48,Orders of St John Care Trust
http://statistics.data.gov.uk/id/local-authority/38,Oxfordshire County Council,DEVELOPMENT MANAGEME,4790,"Publicity, Promotions and Advertisement",05/11/2020,2200812121,530.10,Tmp (Uk) Ltd
http://statistics.data.gov.uk/id/local-authority/38,Oxfordshire County Council,TRO TEAM,4790,"Publicity, Promotions and Advertisement",23/11/2020,2200817966,530.10,Tmp (Uk) Ltd
http://statistics.data.gov.uk/id/local-authority/38,Oxfordshire County Council,Support at Home U65 Physical Support,5899,Social Care - Direct Payments,25/11/2020,3110861275,530.48,Purple Conversation Com In Co (DP)
http://statistics.data.gov.uk/id/local-authority/38,Oxfordshire County Council,SEN TRANSPORT,4320,Pupil / Client Travel Reimbursement,12/11/2020,3110856786,530.64,OCC One Time Vendor
http://statistics.data.gov.uk/id/local-authority/38,Oxfordshire County Council,NURSERY ED FUND,5537,Payments to Other Establishments,09/11/2020,3110849735,530.66,Gillian Wright
http://statistics.data.gov.uk/id/local-authority/38,Oxfordshire County Council,NURSERY ED FUND,5537,Payments to Other Establishments,09/11/2020,3110849754,530.66,Helen Burridge
http://statistics.data.gov.uk/id/local-authority/38,Oxfordshire County Council,Covid-19 Home Support Planned Hours,5693,,25/11/2020,3110860925,530.88,Ways and Means Trust Ltd
http://statistics.data.gov.uk/id/local-authority/38,Oxfordshire County Council,POST 16 SEN,4330,Transport to School Activities,24/11/2020,3110859494,531.00,Excelsior Taxis Ltd
http://statistics.data.gov.uk/id/local-authority/38,Oxfordshire County Council,Support at Home 65+ Physical Support,5899,Social Care - Direct Payments,25/11/2020,3110861099,532.00,Purple Conversation Com In Co (DP)
http://statistics.data.gov.uk/id/local-authority/38,Oxfordshire County Council,The Ridgeway,4531,Materials,26/11/2020,2200819718,533.42,Landmark
http://statistics.data.gov.uk/id/local-authority/38,Oxfordshire County Council,VOIDS/VACANCY COSTS,3945,Rent,11/11/2020,3110853174,533.70,Cherwell District Council
http://statistics.data.gov.uk/id/local-authority/38,Oxfordshire County Council,VOIDS/VACANCY COSTS,3945,Rent,11/11/2020,3110853178,533.70,Cherwell District Council
http://statistics.data.gov.uk/id/local-authority/38,Oxfordshire County Council,VOIDS/VACANCY COSTS,3945,Rent,11/11/2020,3110853182,533.70,Cherwell District Council
http://statistics.data.gov.uk/id/local-authority/38,Oxfordshire County Council,VOIDS/VACANCY COSTS,3945,Rent,11/11/2020,3110853186,533.70,Cherwell District Council
http://statistics.data.gov.uk/id/local-authority/38,Oxfordshire County Council,Support at Home U65 Physical Support,5693,,04/11/2020,3110847779,534.08,Helping Hands
http://statistics.data.gov.uk/id/local-authority/38,Oxfordshire County Council,SEN TRANSPORT,4320,Pupil / Client Travel Reimbursement,20/11/2020,3110859184,534.18,Redacted Personal Data
http://statistics.data.gov.uk/id/local-authority/38,Oxfordshire County Council,TEND Programme,5227,Other Transport Arrangements,16/11/2020,9300049393,535.50,OCC SS Vale of White Horse Cash
http://statistics.data.gov.uk/id/local-authority/38,Oxfordshire County Council,SEN TRANSPORT,4330,Transport to School Activities,06/11/2020,3110849358,535.50,Oxon Transport Services Ltd
http://statistics.data.gov.uk/id/local-authority/38,Oxfordshire County Council,SEN TRANSPORT,4330,Transport to School Activities,06/11/2020,3110849364,535.50,Oxon Transport Services Ltd
http://statistics.data.gov.uk/id/local-authority/38,Oxfordshire County Council,Support at Home 65+ Physical Support,5693,,11/11/2020,3110852210,535.64,XPERIENCE RECRUITMENT LIMITED
http://statistics.data.gov.uk/id/local-authority/38,Oxfordshire County Council,STREET SWEEPINGS,5227,Other Transport Arrangements,13/11/2020,2200815441,535.81,M & M Skip Hire Ltd
http://statistics.data.gov.uk/id/local-authority/38,Oxfordshire County Council,Support at Home U65 Physical Support,5899,Social Care - Direct Payments,25/11/2020,3110861477,535.96,Purple Conversation Com In Co (DP)
http://statistics.data.gov.uk/id/local-authority/38,Oxfordshire County Council,Support at Home U65 Learning Disability,5899,Social Care - Direct Payments,24/11/2020,3110859539,536.00,Redacted Personal Data
http://statistics.data.gov.uk/id/local-authority/38,Oxfordshire County Council,Support at Home U65 Physical Support,5899,Social Care - Direct Payments,24/11/2020,3110859523,536.00,Redacted Personal Data
http://statistics.data.gov.uk/id/local-authority/38,Oxfordshire County Council,LANDLORD & TENANT,4001,Uniform Business Rates,26/11/2020,3500073966,536.00,Oxford City Council
http://statistics.data.gov.uk/id/local-authority/38,Oxfordshire County Council,Support at Home U65 Learning Disability,5899,Social Care - Direct Payments,24/11/2020,3110859590,536.00,Redacted Personal Data
http://statistics.data.gov.uk/id/local-authority/38,Oxfordshire County Council,Delegated Health Tasks  - Over 65,5691,,10/11/2020,3110851977,536.50,Bluebird Care
http://statistics.data.gov.uk/id/local-authority/38,Oxfordshire County Council,Support at Home 65+ Physical Support,5689,,10/11/2020,3110850222,537.41,Allied Health-Services Limited
http://statistics.data.gov.uk/id/local-authority/38,Oxfordshire County Council,Support at Home U65 Learning Disability,5899,Social Care - Direct Payments,25/11/2020,3110861255,538.80,Purple Conversation Com In Co (DP)
http://statistics.data.gov.uk/id/local-authority/38,Oxfordshire County Council,North FSS Statutory - Witney,5227,Other Transport Arrangements,18/11/2020,3110858513,539.00,Excelsior Taxis Ltd
http://statistics.data.gov.uk/id/local-authority/38,Oxfordshire County Council,Support at Home 65+ Physical Support,5689,,10/11/2020,3110850769,539.89,Kare Plus Oxford
http://statistics.data.gov.uk/id/local-authority/38,Oxfordshire County Council,LOOKED AFTER CITY 2,4859,Medical and Counselling Fees,04/11/2020,2200811656,540.00,Redacted Personal Data
http://statistics.data.gov.uk/id/local-authority/38,Oxfordshire County Council,FLEET MAINTENANCE,3740,General Maintenance,09/11/2020,2200813279,540.00,Calibration Engineering Services Lt
http://statistics.data.gov.uk/id/local-authority/38,Oxfordshire County Council,MAINSTREAM-PRIMARY,4330,Transport to School Activities,24/11/2020,3110859475,540.00,Go Green Taxis
http://statistics.data.gov.uk/id/local-authority/38,Oxfordshire County Council,COVID 19 Infection Control 2,5689,,30/11/2020,3110863071,540.00,H F TRUST LTD
http://statistics.data.gov.uk/id/local-authority/38,Oxfordshire County Council,Support at Home U65 Physical Support,5697,,18/11/2020,3110858584,540.00,Headway Oxford
http://statistics.data.gov.uk/id/local-authority/38,Oxfordshire County Council,CHC Fast Track - Sup at Homes - Over 65,5691,,20/11/2020,3110859332,540.00,Heritage Healthcare Oxford - South
http://statistics.data.gov.uk/id/local-authority/38,Oxfordshire County Council,Support at Home U65 Physical Support,5227,Other Transport Arrangements,06/11/2020,3110849041,540.00,Oxon Transport Services Ltd
http://statistics.data.gov.uk/id/local-authority/38,Oxfordshire County Council,SEN TRANSPORT,5227,Other Transport Arrangements,06/11/2020,3110849245,540.00,Oxon Transport Services Ltd
http://statistics.data.gov.uk/id/local-authority/38,Oxfordshire County Council,SEN TRANSPORT,4330,Transport to School Activities,17/11/2020,3110857636,540.00,Phoenixx Cars Ltd
http://statistics.data.gov.uk/id/local-authority/38,Oxfordshire County Council,Support at Home 65+ Mental Health,5899,Social Care - Direct Payments,25/11/2020,3110861060,540.00,Purple Conversation Com In Co (DP)
http://statistics.data.gov.uk/id/local-authority/38,Oxfordshire County Council,SHARED LIVES,5555,Payments to Carers,11/11/2020,3110852835,540.92,Redacted Personal Data
http://statistics.data.gov.uk/id/local-authority/38,Oxfordshire County Council,Delegated Health Tasks  - Over 65,5698,,04/11/2020,3110848336,541.79,Charterville Care At Home Ltd
http://statistics.data.gov.uk/id/local-authority/38,Oxfordshire County Council,MONEY MANAGEMENT,4494,Purchase of IT Equipment,11/11/2020,2200814291,542.00,TOTAL COMPUTERS NETWORK LTD
http://statistics.data.gov.uk/id/local-authority/38,Oxfordshire County Council,,1441,Uncleared Misc Income Receipts,02/11/2020,3110846279,542.16,Scomis
http://statistics.data.gov.uk/id/local-authority/38,Oxfordshire County Council,,1441,Uncleared Misc Income Receipts,02/11/2020,3110846574,542.16,Scomis
http://statistics.data.gov.uk/id/local-authority/38,Oxfordshire County Council,,1441,Uncleared Misc Income Receipts,03/11/2020,3110846612,542.16,Scomis
http://statistics.data.gov.uk/id/local-authority/38,Oxfordshire County Council,TRANSPORT COSTS,4330,Transport to School Activities,18/11/2020,3110858512,542.50,Excelsior Taxis Ltd
http://statistics.data.gov.uk/id/local-authority/38,Oxfordshire County Council,Support at Home U65 Learning Disability,5690,,11/11/2020,3110852430,542.91,Life Path Trust Ltd
http://statistics.data.gov.uk/id/local-authority/38,Oxfordshire County Council,Support at Home U65 Learning Disability,5690,,11/11/2020,3110852412,543.09,Life Path Trust Ltd
http://statistics.data.gov.uk/id/local-authority/38,Oxfordshire County Council,Support at Home U65 Learning Disability,5690,,11/11/2020,3110852428,543.09,Life Path Trust Ltd
http://statistics.data.gov.uk/id/local-authority/38,Oxfordshire County Council,Delegated Health Tasks  - Over 65,5691,,13/11/2020,3110857482,543.20,The Caring Company (Oxon)
http://statistics.data.gov.uk/id/local-authority/38,Oxfordshire County Council,MAINSTREAM-PRIMARY,4330,Transport to School Activities,18/11/2020,3110858537,544.00,001 Alpha Cars Ltd
http://statistics.data.gov.uk/id/local-authority/38,Oxfordshire County Council,SEN TRANSPORT,5227,Other Transport Arrangements,11/11/2020,3110852054,544.00,1St Taxis
http://statistics.data.gov.uk/id/local-authority/38,Oxfordshire County Council,SEN TRANSPORT,5227,Other Transport Arrangements,03/11/2020,3110846858,544.00,A2B Castle Cars Ltd
http://statistics.data.gov.uk/id/local-authority/38,Oxfordshire County Council,SEN TRANSPORT,5227,Other Transport Arrangements,26/11/2020,3110862150,544.00,A2B Castle Cars Ltd
http://statistics.data.gov.uk/id/local-authority/38,Oxfordshire County Council,Support at Home U65 Learning Disability,5227,Other Transport Arrangements,17/11/2020,3110857618,544.00,Banbury Taxis
http://statistics.data.gov.uk/id/local-authority/38,Oxfordshire County Council,MAINSTREAM-SECONDARY,4330,Transport to School Activities,04/11/2020,3110847954,544.00,Cherwell Cars
http://statistics.data.gov.uk/id/local-authority/38,Oxfordshire County Council,SEN TRANSPORT,5227,Other Transport Arrangements,03/11/2020,3110847054,544.00,FD TRAVEL LTD t/a SCHOOL EXPRESS
http://statistics.data.gov.uk/id/local-authority/38,Oxfordshire County Council,Support at Home 65+ Physical Support,5899,Social Care - Direct Payments,24/11/2020,3110859860,544.00,Redacted Personal Data
http://statistics.data.gov.uk/id/local-authority/38,Oxfordshire County Council,NHS HEALTHCHECK PROG,4933,,23/11/2020,3110862630,544.00,Nuffield Health Centre
http://statistics.data.gov.uk/id/local-authority/38,Oxfordshire County Council,SEN TRANSPORT,5227,Other Transport Arrangements,06/11/2020,3110849154,544.00,Oxon Transport Services Ltd
http://statistics.data.gov.uk/id/local-authority/38,Oxfordshire County Council,SEN TRANSPORT,5227,Other Transport Arrangements,06/11/2020,3110849181,544.00,Oxon Transport Services Ltd
http://statistics.data.gov.uk/id/local-authority/38,Oxfordshire County Council,SEN TRANSPORT,5227,Other Transport Arrangements,06/11/2020,3110849198,544.00,Oxon Transport Services Ltd
http://statistics.data.gov.uk/id/local-authority/38,Oxfordshire County Council,SEN TRANSPORT,5227,Other Transport Arrangements,06/11/2020,3110849202,544.00,Oxon Transport Services Ltd
http://statistics.data.gov.uk/id/local-authority/38,Oxfordshire County Council,FOSTERING MAIN,5549,B*Fostering Allowance - Regulation 38,10/11/2020,3110851609,544.33,Redacted Personal Data
http://statistics.data.gov.uk/id/local-authority/38,Oxfordshire County Council,PLACEMENTS- RELEVANT,5785,Client Lodgings and Accommodation,27/11/2020,3110862676,544.54,Response Organisation
http://statistics.data.gov.uk/id/local-authority/38,Oxfordshire County Council,PLACEMENTS- RELEVANT,5785,Client Lodgings and Accommodation,27/11/2020,3110862678,544.54,Response Organisation
http://statistics.data.gov.uk/id/local-authority/38,Oxfordshire County Council,PLACEMENTS- RELEVANT,5785,Client Lodgings and Accommodation,27/11/2020,3110862679,544.54,Response Organisation
http://statistics.data.gov.uk/id/local-authority/38,Oxfordshire County Council,Support at Home 65+ Physical Support,5698,,04/11/2020,3110848095,544.56,Acquire Care Ltd
http://statistics.data.gov.uk/id/local-authority/38,Oxfordshire County Council,FOSTERING MAIN,5549,B*Fostering Allowance - Regulation 38,17/11/2020,3110858212,545.14,Redacted Personal Data
http://statistics.data.gov.uk/id/local-authority/38,Oxfordshire County Council,Support at Home 65+ Physical Support,5693,,11/11/2020,3110852086,546.00,BE WELL CARE LTD
http://statistics.data.gov.uk/id/local-authority/38,Oxfordshire County Council,Support at Home U65 Learning Disability,5899,Social Care - Direct Payments,25/11/2020,3110860802,546.00,Purple Conversation Com In Co (DP)
http://statistics.data.gov.uk/id/local-authority/38,Oxfordshire County Council,Support at Home U65 Learning Disability,5690,,11/11/2020,3110852497,546.00,Turnstyle
http://statistics.data.gov.uk/id/local-authority/38,Oxfordshire County Council,Support at Home U65 Learning Disability,5899,Social Care - Direct Payments,24/11/2020,3110859983,546.88,Redacted Personal Data
http://statistics.data.gov.uk/id/local-authority/38,Oxfordshire County Council,Support at Home 65+ Physical Support,5696,,03/11/2020,3110846749,546.96,Orders of St John Care Trust
http://statistics.data.gov.uk/id/local-authority/38,Oxfordshire County Council,CHC Fast Track - Sup at Homes - Over 65,5691,,17/11/2020,3110858110,547.20,Cherry Care Services
http://statistics.data.gov.uk/id/local-authority/38,Oxfordshire County Council,Support at Home 65+ Physical Support,5689,,10/11/2020,3110850485,547.55,Oxfordshire Crossroads
http://statistics.data.gov.uk/id/local-authority/38,Oxfordshire County Council,CENTRAL PRINTING,4494,Purchase of IT Equipment,05/11/2020,2200812167,547.83,Annodata Limited
http://statistics.data.gov.uk/id/local-authority/38,Oxfordshire County Council,Support at Home 65+ Physical Support,5696,,03/11/2020,3110846651,547.85,Orders of St John Care Trust
http://statistics.data.gov.uk/id/local-authority/38,Oxfordshire County Council,Urgent Response,5689,,10/11/2020,3110850532,548.18,Day and Nightcare Assistance
http://statistics.data.gov.uk/id/local-authority/38,Oxfordshire County Council,Support at Home 65+ Physical Support,5698,,04/11/2020,3110848447,548.19,Day & Night Care Assistance
http://statistics.data.gov.uk/id/local-authority/38,Oxfordshire County Council,"Didcot CC, Park Road",3821,Grounds Maintenance Contracts,18/11/2020,2200817001,548.84,Aspire Oxfordshire
http://statistics.data.gov.uk/id/local-authority/38,Oxfordshire County Council,Support at Home 65+ Physical Support,5689,,10/11/2020,3110850502,548.90,Oxfordshire Crossroads
http://statistics.data.gov.uk/id/local-authority/38,Oxfordshire County Council,Support at Home 65+ Physical Support,5689,,10/11/2020,3110850684,549.00,Greigcare Home Service
http://statistics.data.gov.uk/id/local-authority/38,Oxfordshire County Council,Continuing Care - Support at Home - U65,5691,,20/11/2020,3110859428,549.50,Redacted Personal Data
http://statistics.data.gov.uk/id/local-authority/38,Oxfordshire County Council,Support at Home 65+ Physical Support,5698,,04/11/2020,3110848516,549.50,Day & Night Care Assistance
http://statistics.data.gov.uk/id/local-authority/38,Oxfordshire County Council,Support at Home U65 Physical Support,5689,,10/11/2020,3110851169,549.56,Same Ways Care Ltd
http://statistics.data.gov.uk/id/local-authority/38,Oxfordshire County Council,Support at Home 65+ Physical Support,5899,Social Care - Direct Payments,25/11/2020,3110861031,549.60,Purple Conversation Com In Co (DP)
http://statistics.data.gov.uk/id/local-authority/38,Oxfordshire County Council,Support at Home U65 Physical Support,5689,,10/11/2020,3110850344,549.76,Care Outlook Ltd
http://statistics.data.gov.uk/id/local-authority/38,Oxfordshire County Council,LEGAL SERVICES,5251,Legal Costs,20/11/2020,2200817583,550.00,Alex Perry
http://statistics.data.gov.uk/id/local-authority/38,Oxfordshire County Council,LEGAL SERVICES,5251,Legal Costs,27/11/2020,2200819960,550.00,Alex Perry
http://statistics.data.gov.uk/id/local-authority/38,Oxfordshire County Council,LEGAL SERVICES,5251,Legal Costs,27/11/2020,2200820055,550.00,Annie Sayers
http://statistics.data.gov.uk/id/local-authority/38,Oxfordshire County Council,LEGAL SERVICES,5251,Legal Costs,19/11/2020,2200817228,550.00,David Marusza
http://statistics.data.gov.uk/id/local-authority/38,Oxfordshire County Council,STI TESTING+TREATMEN,4861,Hired and Contracted Services,23/11/2020,2200817931,550.00,Debigno Ltd
http://statistics.data.gov.uk/id/local-authority/38,Oxfordshire County Council,SENDIASS,5668,Technical and Professional Consultant F,11/11/2020,2200814304,550.00,Dizions Limited
http://statistics.data.gov.uk/id/local-authority/38,Oxfordshire County Council,LEGAL SERVICES,5251,Legal Costs,20/11/2020,2200817637,550.00,Elisabeth Wickham
http://statistics.data.gov.uk/id/local-authority/38,Oxfordshire County Council,LEGAL SERVICES,5251,Legal Costs,24/11/2020,2200818912,550.00,Frances Harris
http://statistics.data.gov.uk/id/local-authority/38,Oxfordshire County Council,SEN TRANSPORT,4330,Transport to School Activities,04/11/2020,3110847698,550.00,Go Green Taxis
http://statistics.data.gov.uk/id/local-authority/38,Oxfordshire County Council,Continuing Care - Support at Home - U65,5691,,18/11/2020,3110858716,550.00,KIT Mobility Taxis Oxford Ltd
http://statistics.data.gov.uk/id/local-authority/38,Oxfordshire County Council,Continuing Care - Support at Home - U65,5691,,20/11/2020,3110859404,550.00,KIT Mobility Taxis Oxford Ltd
http://statistics.data.gov.uk/id/local-authority/38,Oxfordshire County Council,Continuing Care - Support at Home - U65,5691,,20/11/2020,3110859426,550.00,KIT Mobility Taxis Oxford Ltd
http://statistics.data.gov.uk/id/local-authority/38,Oxfordshire County Council,LEGAL SERVICES,5251,Legal Costs,17/11/2020,2200816639,550.00,Mavis Amonoo-Acquah
http://statistics.data.gov.uk/id/local-authority/38,Oxfordshire County Council,LEGAL SERVICES,5251,Legal Costs,24/11/2020,2200818771,550.00,Miss Emily Rayner
http://statistics.data.gov.uk/id/local-authority/38,Oxfordshire County Council,LEGAL SERVICES,5251,Legal Costs,19/11/2020,2200817150,550.00,Oliver Powell (Harcourt)
http://statistics.data.gov.uk/id/local-authority/38,Oxfordshire County Council,Support at Home 65+ Physical Support,5899,Social Care - Direct Payments,25/11/2020,3110861294,550.00,Purple Conversation Com In Co (DP)
http://statistics.data.gov.uk/id/local-authority/38,Oxfordshire County Council,LEGAL SERVICES,5251,Legal Costs,27/11/2020,2200820110,550.00,Vicky Reynolds
http://statistics.data.gov.uk/id/local-authority/38,Oxfordshire County Council,LEGAL SERVICES,5251,Legal Costs,27/11/2020,2200820208,550.00,Vicky Reynolds
http://statistics.data.gov.uk/id/local-authority/38,Oxfordshire County Council,LEGAL SERVICES,5251,Legal Costs,27/11/2020,2200820237,550.00,Vicky Reynolds
http://statistics.data.gov.uk/id/local-authority/38,Oxfordshire County Council,Planned preventative Maintenance,3787,Premises Repairs,26/11/2020,2200819495,550.74,Windrush Door & Window Services Ltd
http://statistics.data.gov.uk/id/local-authority/38,Oxfordshire County Council,Support at Home U65 Learning Disability,5688,,11/11/2020,3110853464,551.10,Mencap Contracts
http://statistics.data.gov.uk/id/local-authority/38,Oxfordshire County Council,Support at Home U65 Learning Disability,5688,,11/11/2020,3110853529,551.10,Mencap Contracts
http://statistics.data.gov.uk/id/local-authority/38,Oxfordshire County Council,Support at Home U65 Learning Disability,5688,,11/11/2020,3110853532,551.10,Mencap Contracts
http://statistics.data.gov.uk/id/local-authority/38,Oxfordshire County Council,Support at Home 65+ Learning Disability,5688,,11/11/2020,3110854390,551.10,The Brandon Trust
http://statistics.data.gov.uk/id/local-authority/38,Oxfordshire County Council,Support at Home 65+ Memory & Cognition,5693,,04/11/2020,3110847901,551.46,SureCare Oxfordshire
http://statistics.data.gov.uk/id/local-authority/38,Oxfordshire County Council,Support at Home U65 Learning Disability,5682,,03/11/2020,3110846798,551.50,The Brandon Trust
http://statistics.data.gov.uk/id/local-authority/38,Oxfordshire County Council,Support at Home 65+ Physical Support,5689,,10/11/2020,3110850444,551.69,Casa Care Ltd
http://statistics.data.gov.uk/id/local-authority/38,Oxfordshire County Council,Support at Home U65 Sensory Support,5899,Social Care - Direct Payments,24/11/2020,3110859538,552.00,Redacted Personal Data
http://statistics.data.gov.uk/id/local-authority/38,Oxfordshire County Council,Support at Home U65 Other /Soc Isolation,5899,Social Care - Direct Payments,25/11/2020,3110860976,552.00,Purple Conversation Com In Co (DP)
http://statistics.data.gov.uk/id/local-authority/38,Oxfordshire County Council,SEN TRANSPORT,4330,Transport to School Activities,17/11/2020,3110857642,552.00,Vine Community Services Ltd T/A
http://statistics.data.gov.uk/id/local-authority/38,Oxfordshire County Council,COMM DRAWDOWN FUNDNG,8004,Design Consultant,26/11/2020,2200819623,552.15,Skanska Construction UK Ltd Sp
http://statistics.data.gov.uk/id/local-authority/38,Oxfordshire County Council,SEN TRANSPORT,4320,Pupil / Client Travel Reimbursement,17/11/2020,3110857365,552.30,Redacted Personal Data
http://statistics.data.gov.uk/id/local-authority/38,Oxfordshire County Council,Support at Home 65+ Learning Disability,5690,,11/11/2020,3110852578,552.69,Style Acre
http://statistics.data.gov.uk/id/local-authority/38,Oxfordshire County Council,FOSTERING MAIN,5549,B*Fostering Allowance - Regulation 38,24/11/2020,3110860667,552.90,Redacted Personal Data
http://statistics.data.gov.uk/id/local-authority/38,Oxfordshire County Council,Support at Home U65 Learning Disability,5688,,11/11/2020,3110854704,553.05,The Camden Society
http://statistics.data.gov.uk/id/local-authority/38,Oxfordshire County Council,Support at Home U65 Learning Disability,5899,Social Care - Direct Payments,25/11/2020,3110861493,553.20,Purple Conversation Com In Co (DP)
http://statistics.data.gov.uk/id/local-authority/38,Oxfordshire County Council,Support at Home 65+ Physical Support,5689,,10/11/2020,3110850708,553.58,Harino Care
http://statistics.data.gov.uk/id/local-authority/38,Oxfordshire County Council,NURSERY ED FUND,5537,Payments to Other Establishments,09/11/2020,3110849790,553.73,Karen Lella
http://statistics.data.gov.uk/id/local-authority/38,Oxfordshire County Council,NURSERY ED FUND,5537,Payments to Other Establishments,09/11/2020,3110849923,553.73,Rebecca Tapping
http://statistics.data.gov.uk/id/local-authority/38,Oxfordshire County Council,SEN TRANSPORT,5227,Other Transport Arrangements,12/11/2020,3110856703,554.56,Luxicars Ltd
http://statistics.data.gov.uk/id/local-authority/38,Oxfordshire County Council,LD Continuing Care - Sup at Home - U65,5691,,13/11/2020,3110857511,554.88,HF TRUST Ltd
http://statistics.data.gov.uk/id/local-authority/38,Oxfordshire County Council,SEN TRANSPORT,5227,Other Transport Arrangements,12/11/2020,3110856693,554.88,Luxicars Ltd
http://statistics.data.gov.uk/id/local-authority/38,Oxfordshire County Council,Delegated Health Tasks  - Over 65,5691,,06/11/2020,3110849565,555.00,Bluebird Care
http://statistics.data.gov.uk/id/local-authority/38,Oxfordshire County Council,Support at Home U65 Physical Support,5899,Social Care - Direct Payments,25/11/2020,3110861135,555.20,Purple Conversation Com In Co (DP)
http://statistics.data.gov.uk/id/local-authority/38,Oxfordshire County Council,FOSTERING MAIN,5532,B*Fostering - Loan Equipment,17/11/2020,3110858366,555.42,Redacted Personal Data
http://statistics.data.gov.uk/id/local-authority/38,Oxfordshire County Council,Support at Home 65+ Physical Support,5689,,10/11/2020,3110850489,555.50,Oxfordshire Crossroads
http://statistics.data.gov.uk/id/local-authority/38,Oxfordshire County Council,CORONER,5202,Use of Mortuary Services,04/11/2020,2200811724,555.55,Oxford University Hospitals NHS Tru
http://statistics.data.gov.uk/id/local-authority/38,Oxfordshire County Council,Support at Home U65 Physical Support,5899,Social Care - Direct Payments,25/11/2020,3110860941,556.00,Purple Conversation Com In Co (DP)
http://statistics.data.gov.uk/id/local-authority/38,Oxfordshire County Council,Support at Home U65 Learning Disability,5899,Social Care - Direct Payments,24/11/2020,3110859555,556.00,Redacted Personal Data
http://statistics.data.gov.uk/id/local-authority/38,Oxfordshire County Council,NURSERY ED FUND,5537,Payments to Other Establishments,09/11/2020,3110849845,556.08,Louise Duncan
http://statistics.data.gov.uk/id/local-authority/38,Oxfordshire County Council,Contingency Home Care,5689,,10/11/2020,3110850944,556.69,Oxford University Hospitals NHS FT
http://statistics.data.gov.uk/id/local-authority/38,Oxfordshire County Council,Support at Home 65+ Physical Support,5693,,04/11/2020,3110847935,556.92,We-Care-Recruitment Ltd
http://statistics.data.gov.uk/id/local-authority/38,Oxfordshire County Council,Support at Home U65 Learning Disability,5690,,11/11/2020,3110852561,556.93,Style Acre
http://statistics.data.gov.uk/id/local-authority/38,Oxfordshire County Council,Property Cleaning,4516,Domestic and Cleaning Equipment,19/11/2020,2200817252,557.06,Seldram Supplies
http://statistics.data.gov.uk/id/local-authority/38,Oxfordshire County Council,Support at Home 65+ Physical Support,5689,,10/11/2020,3110850725,557.41,Home Helpers Care Ltd
http://statistics.data.gov.uk/id/local-authority/38,Oxfordshire County Council,Support at Home U65 Learning Disability,5899,Social Care - Direct Payments,24/11/2020,3110859534,557.60,Redacted Personal Data
http://statistics.data.gov.uk/id/local-authority/38,Oxfordshire County Council,Support at Home U65 Other /Soc Isolation,5899,Social Care - Direct Payments,25/11/2020,3110860958,557.60,Purple Conversation Com In Co (DP)
http://statistics.data.gov.uk/id/local-authority/38,Oxfordshire County Council,Planned preventative Maintenance,4111,Security Costs,11/11/2020,2200814604,558.00,Darren Bryan Security Services
http://statistics.data.gov.uk/id/local-authority/38,Oxfordshire County Council,Support at Home U65 Physical Support,5899,Social Care - Direct Payments,25/11/2020,3110861601,558.00,Purple Conversation Com In Co (DP)
http://statistics.data.gov.uk/id/local-authority/38,Oxfordshire County Council,MAINSTREAM-PRIMARY,4330,Transport to School Activities,24/11/2020,3110859451,560.00,Go Green Taxis
http://statistics.data.gov.uk/id/local-authority/38,Oxfordshire County Council,MAINSTREAM-PRIMARY,5227,Other Transport Arrangements,24/11/2020,3110859452,560.00,Go Green Taxis
http://statistics.data.gov.uk/id/local-authority/38,Oxfordshire County Council,TRANSPORT COSTS,4330,Transport to School Activities,06/11/2020,3110849251,560.00,OCC One Time Vendor
http://statistics.data.gov.uk/id/local-authority/38,Oxfordshire County Council,COMMUNITY & ROAD SAFETY,3103,Other Training Courses and Qualification,23/11/2020,2200818207,560.00,Outspoken Training LLP
http://statistics.data.gov.uk/id/local-authority/38,Oxfordshire County Council,SEN TRANSPORT,5227,Other Transport Arrangements,06/11/2020,3110849025,560.00,Oxon Transport Services Ltd
http://statistics.data.gov.uk/id/local-authority/38,Oxfordshire County Council,Support at Home U65 Learning Disability,5899,Social Care - Direct Payments,25/11/2020,3110861069,560.00,Purple Conversation Com In Co (DP)
http://statistics.data.gov.uk/id/local-authority/38,Oxfordshire County Council,Support at Home U65 Physical Support,5899,Social Care - Direct Payments,25/11/2020,3110861259,560.00,Purple Conversation Com In Co (DP)
http://statistics.data.gov.uk/id/local-authority/38,Oxfordshire County Council,Support at Home U65 Physical Support,5899,Social Care - Direct Payments,25/11/2020,3110861432,560.00,Purple Conversation Com In Co (DP)
http://statistics.data.gov.uk/id/local-authority/38,Oxfordshire County Council,Support at Home 65+ Physical Support,5899,Social Care - Direct Payments,25/11/2020,3110861569,560.00,Purple Conversation Com In Co (DP)
http://statistics.data.gov.uk/id/local-authority/38,Oxfordshire County Council,SEN TRANSPORT,5227,Other Transport Arrangements,11/11/2020,3110852038,560.00,Town Cars
http://statistics.data.gov.uk/id/local-authority/38,Oxfordshire County Council,Support at Home U65 MH OBC Contract,5691,,17/11/2020,3110857670,560.50,Care With Dignity Partnerships
http://statistics.data.gov.uk/id/local-authority/38,Oxfordshire County Council,TRANSLATION,5668,Technical and Professional Consultant F,17/11/2020,2200816182,560.96,K International PLC
http://statistics.data.gov.uk/id/local-authority/38,Oxfordshire County Council,MAINSTREAM-PRIMARY,4330,Transport to School Activities,04/11/2020,3110847950,561.00,Cherwell Cars
http://statistics.data.gov.uk/id/local-authority/38,Oxfordshire County Council,Support at Home U65 Learning Disability,5689,,10/11/2020,3110851007,561.10,Pechiv Ltd
http://statistics.data.gov.uk/id/local-authority/38,Oxfordshire County Council,Support at Home 65+ Physical Support,5899,Social Care - Direct Payments,25/11/2020,3110861512,561.44,Purple Conversation Com In Co (DP)
http://statistics.data.gov.uk/id/local-authority/38,Oxfordshire County Council,Support at Home U65 Learning Disability,5690,,11/11/2020,3110852505,561.60,Turnstyle
http://statistics.data.gov.uk/id/local-authority/38,Oxfordshire County Council,Support at Home 65+ Physical Support,5689,,10/11/2020,3110850438,562.42,Caretree Ltd
http://statistics.data.gov.uk/id/local-authority/38,Oxfordshire County Council,Support at Home 65+ Physical Support,5696,,04/11/2020,3110847814,562.50,One Housing Group Limited
http://statistics.data.gov.uk/id/local-authority/38,Oxfordshire County Council,Support at Home 65+ Physical Support,5696,,25/11/2020,3110860895,562.50,One Housing Group Limited
http://statistics.data.gov.uk/id/local-authority/38,Oxfordshire County Council,YPSH Int Prop Management,5785,Client Lodgings and Accommodation,27/11/2020,3110862663,562.69,Response Organisation
http://statistics.data.gov.uk/id/local-authority/38,Oxfordshire County Council,Support at Home 65+ Physical Support,5698,,04/11/2020,3110848389,562.86,Charterville Care At Home Ltd
http://statistics.data.gov.uk/id/local-authority/38,Oxfordshire County Council,Support at Home U65 Physical Support,5899,Social Care - Direct Payments,24/11/2020,3110860061,563.08,Redacted Personal Data
http://statistics.data.gov.uk/id/local-authority/38,Oxfordshire County Council,Support at Home U65 Physical Support,5696,,03/11/2020,3110846697,563.30,Orders of St John Care Trust
http://statistics.data.gov.uk/id/local-authority/38,Oxfordshire County Council,Support at Home 65+ Physical Support,5696,,03/11/2020,3110846732,563.30,Orders of St John Care Trust
http://statistics.data.gov.uk/id/local-authority/38,Oxfordshire County Council,POST18 UASC DCSF FND,3942,Hire of Accommodation and Facilities,26/11/2020,3110862504,563.50,Redacted Personal Data
http://statistics.data.gov.uk/id/local-authority/38,Oxfordshire County Council,Support at Home U65 Physical Support,5899,Social Care - Direct Payments,25/11/2020,3110861374,564.00,Purple Conversation Com In Co (DP)
http://statistics.data.gov.uk/id/local-authority/38,Oxfordshire County Council,Support at Home 65+ Physical Support,5698,,04/11/2020,3110848422,564.40,Day & Night Care Assistance
http://statistics.data.gov.uk/id/local-authority/38,Oxfordshire County Council,Support at Home 65+ Physical Support,5689,,10/11/2020,3110850813,564.77,Lifecarers Limited
http://statistics.data.gov.uk/id/local-authority/38,Oxfordshire County Council,COMM DRAWDOWN FUNDNG,8004,Design Consultant,26/11/2020,2200819729,565.00,Skanska Construction UK Ltd Sp
http://statistics.data.gov.uk/id/local-authority/38,Oxfordshire County Council,Support at Home U65 Learning Disability,5696,,03/11/2020,3110846744,565.33,Orders of St John Care Trust
http://statistics.data.gov.uk/id/local-authority/38,Oxfordshire County Council,Support at Home U65 Learning Disability,5899,Social Care - Direct Payments,24/11/2020,3110859932,565.88,Redacted Personal Data
http://statistics.data.gov.uk/id/local-authority/38,Oxfordshire County Council,Support at Home U65 Physical Support,5698,,04/11/2020,3110848062,565.89,Acquire Care Ltd
http://statistics.data.gov.uk/id/local-authority/38,Oxfordshire County Council,Support at Home 65+ Physical Support,5689,,10/11/2020,3110850661,566.30,Greigcare Home Service
http://statistics.data.gov.uk/id/local-authority/38,Oxfordshire County Council,Support at Home 65+ Physical Support,5689,,10/11/2020,3110850323,566.56,Care Outlook Ltd
http://statistics.data.gov.uk/id/local-authority/38,Oxfordshire County Council,SEN TRANSPORT,5227,Other Transport Arrangements,20/11/2020,3110859196,567.00,Crown Cabs Travel Ltd
http://statistics.data.gov.uk/id/local-authority/38,Oxfordshire County Council,Support at Home U65 Learning Disability,5899,Social Care - Direct Payments,24/11/2020,3110859742,567.84,Redacted Personal Data
http://statistics.data.gov.uk/id/local-authority/38,Oxfordshire County Council,MAINSTREAM-PRIMARY,4330,Transport to School Activities,04/11/2020,3110847702,567.90,Go Green Taxis
http://statistics.data.gov.uk/id/local-authority/38,Oxfordshire County Council,Contingency Home Care,5689,,10/11/2020,3110850504,567.95,Day and Nightcare Assistance
http://statistics.data.gov.uk/id/local-authority/38,Oxfordshire County Council,Support at Home 65+ Physical Support,5899,Social Care - Direct Payments,25/11/2020,3110861132,568.00,Purple Conversation Com In Co (DP)
http://statistics.data.gov.uk/id/local-authority/38,Oxfordshire County Council,VOIDS/VACANCY COSTS,3945,Rent,11/11/2020,3110853166,568.59,ADVANCE HOUSING & SUPPORT LTD
http://statistics.data.gov.uk/id/local-authority/38,Oxfordshire County Council,AGENCY RESID - DISAB,5549,B*Fostering Allowance - Regulation 38,03/11/2020,3110847674,569.00,Redacted Personal Data
http://statistics.data.gov.uk/id/local-authority/38,Oxfordshire County Council,AGENCY RESID - DISAB,5549,B*Fostering Allowance - Regulation 38,10/11/2020,3110851835,569.00,Redacted Personal Data
http://statistics.data.gov.uk/id/local-authority/38,Oxfordshire County Council,AGENCY RESID - DISAB,5549,B*Fostering Allowance - Regulation 38,17/11/2020,3110858491,569.00,Redacted Personal Data
http://statistics.data.gov.uk/id/local-authority/38,Oxfordshire County Council,AGENCY RESID - DISAB,5549,B*Fostering Allowance - Regulation 38,24/11/2020,3110860773,569.00,Redacted Personal Data
http://statistics.data.gov.uk/id/local-authority/38,Oxfordshire County Council,FOSTERING MAIN,5541,B*Foster Parents,03/11/2020,3110847521,569.00,Redacted Personal Data
http://statistics.data.gov.uk/id/local-authority/38,Oxfordshire County Council,FOSTERING MAIN,5541,B*Foster Parents,10/11/2020,3110851557,569.00,Redacted Personal Data
http://statistics.data.gov.uk/id/local-authority/38,Oxfordshire County Council,FOSTERING MAIN,5541,B*Foster Parents,17/11/2020,3110858341,569.00,Redacted Personal Data
http://statistics.data.gov.uk/id/local-authority/38,Oxfordshire County Council,FOSTERING MAIN,5541,B*Foster Parents,24/11/2020,3110860580,569.00,Redacted Personal Data
http://statistics.data.gov.uk/id/local-authority/38,Oxfordshire County Council,FOSTERING MAIN,5541,B*Foster Parents,03/11/2020,3110847322,569.00,Redacted Personal Data
http://statistics.data.gov.uk/id/local-authority/38,Oxfordshire County Council,FOSTERING MAIN,5541,B*Foster Parents,10/11/2020,3110851385,569.00,Redacted Personal Data
http://statistics.data.gov.uk/id/local-authority/38,Oxfordshire County Council,FOSTERING MAIN,5541,B*Foster Parents,17/11/2020,3110858254,569.00,Redacted Personal Data
http://statistics.data.gov.uk/id/local-authority/38,Oxfordshire County Council,FOSTERING MAIN,5541,B*Foster Parents,24/11/2020,3110860371,569.00,Redacted Personal Data
http://statistics.data.gov.uk/id/local-authority/38,Oxfordshire County Council,Support at Home 65+ Physical Support,5689,,10/11/2020,3110850367,569.80,Caremark (West Oxfordshire & Cherwe
http://statistics.data.gov.uk/id/local-authority/38,Oxfordshire County Council,COVID 19 Infection Control 2,5689,,30/11/2020,3110863030,570.00,JESCARE SERVICES LTD
http://statistics.data.gov.uk/id/local-authority/38,Oxfordshire County Council,LAC PUPIL PREMIUM,5537,Payments to Other Establishments,25/11/2020,3110861706,570.00,Oak Lodge School
http://statistics.data.gov.uk/id/local-authority/38,Oxfordshire County Council,Support at Home U65 Learning Disability,5899,Social Care - Direct Payments,25/11/2020,3110861344,570.00,Purple Conversation Com In Co (DP)
http://statistics.data.gov.uk/id/local-authority/38,Oxfordshire County Council,Support at Home U65 Learning Disability,5688,,11/11/2020,3110853985,570.00,Style Acre
http://statistics.data.gov.uk/id/local-authority/38,Oxfordshire County Council,Covid-19 ASC & Comm. additional costs,4685,Clothing and Uniforms,09/11/2020,2200813010,570.40,AWB bent ltd
http://statistics.data.gov.uk/id/local-authority/38,Oxfordshire County Council,Support at Home 65+ Physical Support,5691,,12/11/2020,2200814746,570.40,Network Ventures Ltd
http://statistics.data.gov.uk/id/local-authority/38,Oxfordshire County Council,Support at Home 65+ Physical Support,5689,,10/11/2020,3110851003,570.64,Pechiv Ltd
http://statistics.data.gov.uk/id/local-authority/38,Oxfordshire County Council,SEN TRANSPORT,4320,Pupil / Client Travel Reimbursement,18/11/2020,3110858643,571.02,Redacted Personal Data
http://statistics.data.gov.uk/id/local-authority/38,Oxfordshire County Council,2 YEAR OLD FUNDING,5537,Payments to Other Establishments,02/11/2020,3110846445,571.20,Natalie Huckin
http://statistics.data.gov.uk/id/local-authority/38,Oxfordshire County Council,Support at Home U65 Physical Support,5899,Social Care - Direct Payments,25/11/2020,3110861059,571.20,Purple Conversation Com In Co (DP)
http://statistics.data.gov.uk/id/local-authority/38,Oxfordshire County Council,2 YEAR OLD FUNDING,5537,Payments to Other Establishments,02/11/2020,3110846497,571.20,Sophie Blizzard
http://statistics.data.gov.uk/id/local-authority/38,Oxfordshire County Council,Support at Home U65 Physical Support,5689,,10/11/2020,3110850858,571.53,My Carer Ltd
http://statistics.data.gov.uk/id/local-authority/38,Oxfordshire County Council,Support at Home U65 Learning Disability,5899,Social Care - Direct Payments,25/11/2020,3110860900,572.00,Purple Conversation Com In Co (DP)
http://statistics.data.gov.uk/id/local-authority/38,Oxfordshire County Council,CHC Fast Track - Sup at Homes - Over 65,5689,,10/11/2020,3110850380,572.43,Caremark (West Oxfordshire & Cherwe
http://statistics.data.gov.uk/id/local-authority/38,Oxfordshire County Council,Support at Home 65+ Learning Disability,5690,,11/11/2020,3110852530,573.00,Style Acre
http://statistics.data.gov.uk/id/local-authority/38,Oxfordshire County Council,Support at Home 65+ Physical Support,5698,,04/11/2020,3110848564,573.17,Day & Night Care Assistance
http://statistics.data.gov.uk/id/local-authority/38,Oxfordshire County Council,Delegated Health Tasks  - Over 65,5691,,06/11/2020,3110849564,573.50,Bluebird Care
http://statistics.data.gov.uk/id/local-authority/38,Oxfordshire County Council,Delegated Health Tasks  - Under 65,5691,,18/11/2020,3110858705,573.50,Bluebird Care
http://statistics.data.gov.uk/id/local-authority/38,Oxfordshire County Council,Delegated Health Tasks  - Over 65,5691,,18/11/2020,3110858710,573.50,Bluebird Care
http://statistics.data.gov.uk/id/local-authority/38,Oxfordshire County Council,Early Help - Bicester,4495,IT Software,17/11/2020,2200816165,573.60,HANDS FREE COMPUTING LTD
http://statistics.data.gov.uk/id/local-authority/38,Oxfordshire County Council,Support at Home 65+ Physical Support,5899,Social Care - Direct Payments,25/11/2020,3110861238,574.00,Purple Conversation Com In Co (DP)
http://statistics.data.gov.uk/id/local-authority/38,Oxfordshire County Council,LANDLORD & TENANT,4001,Uniform Business Rates,26/11/2020,3500074043,574.00,South Oxfordshire District Council
http://statistics.data.gov.uk/id/local-authority/38,Oxfordshire County Council,LANDLORD & TENANT,4001,Uniform Business Rates,26/11/2020,3500074018,574.00,West Oxfordshire District Council
http://statistics.data.gov.uk/id/local-authority/38,Oxfordshire County Council,PREMISES,4001,Uniform Business Rates,26/11/2020,3500074021,574.00,West Oxfordshire District Council
http://statistics.data.gov.uk/id/local-authority/38,Oxfordshire County Council,Support at Home 65+ Physical Support,5696,,03/11/2020,3110846750,574.52,Orders of St John Care Trust
http://statistics.data.gov.uk/id/local-authority/38,Oxfordshire County Council,Support at Home U65 Learning Disability,5899,Social Care - Direct Payments,24/11/2020,3110859557,574.60,Redacted Personal Data
http://statistics.data.gov.uk/id/local-authority/38,Oxfordshire County Council,Urgent Response,5689,,10/11/2020,3110850541,575.09,Day and Nightcare Assistance
http://statistics.data.gov.uk/id/local-authority/38,Oxfordshire County Council,Support at Home U65 Learning Disability,5899,Social Care - Direct Payments,24/11/2020,3110859665,575.20,Redacted Personal Data
http://statistics.data.gov.uk/id/local-authority/38,Oxfordshire County Council,LIBRARY COLLECTIONS,4539,"Books, DVDs and CDs",10/11/2020,2200813776,575.30,ULVERSCROFT LARGE PRINT BOOKS LTD
http://statistics.data.gov.uk/id/local-authority/38,Oxfordshire County Council,Support at Home 65+ Physical Support,5899,Social Care - Direct Payments,25/11/2020,3110861053,575.32,Purple Conversation Com In Co (DP)
http://statistics.data.gov.uk/id/local-authority/38,Oxfordshire County Council,SEN TRANSPORT,5227,Other Transport Arrangements,17/11/2020,3110857626,576.00,Banbury Taxis
http://statistics.data.gov.uk/id/local-authority/38,Oxfordshire County Council,SEN TRANSPORT,5227,Other Transport Arrangements,06/11/2020,3110849046,576.00,Oxon Transport Services Ltd
http://statistics.data.gov.uk/id/local-authority/38,Oxfordshire County Council,SEN TRANSPORT,5227,Other Transport Arrangements,06/11/2020,3110849084,576.00,Oxon Transport Services Ltd
http://statistics.data.gov.uk/id/local-authority/38,Oxfordshire County Council,SEN TRANSPORT,5227,Other Transport Arrangements,06/11/2020,3110849090,576.00,Oxon Transport Services Ltd
http://statistics.data.gov.uk/id/local-authority/38,Oxfordshire County Council,SEN TRANSPORT,5227,Other Transport Arrangements,06/11/2020,3110849112,576.00,Oxon Transport Services Ltd
http://statistics.data.gov.uk/id/local-authority/38,Oxfordshire County Council,SEN TRANSPORT,5227,Other Transport Arrangements,06/11/2020,3110849187,576.00,Oxon Transport Services Ltd
http://statistics.data.gov.uk/id/local-authority/38,Oxfordshire County Council,SEN TRANSPORT,5227,Other Transport Arrangements,06/11/2020,3110849195,576.00,Oxon Transport Services Ltd
http://statistics.data.gov.uk/id/local-authority/38,Oxfordshire County Council,SEN TRANSPORT,5227,Other Transport Arrangements,06/11/2020,3110849200,576.00,Oxon Transport Services Ltd
http://statistics.data.gov.uk/id/local-authority/38,Oxfordshire County Council,SEN TRANSPORT,5227,Other Transport Arrangements,06/11/2020,3110849204,576.00,Oxon Transport Services Ltd
http://statistics.data.gov.uk/id/local-authority/38,Oxfordshire County Council,SEN TRANSPORT,5227,Other Transport Arrangements,06/11/2020,3110849230,576.00,Oxon Transport Services Ltd
http://statistics.data.gov.uk/id/local-authority/38,Oxfordshire County Council,Support at Home U65 MH OBC Contract,5899,Social Care - Direct Payments,25/11/2020,3110860835,576.00,Purple Conversation Com In Co (DP)
http://statistics.data.gov.uk/id/local-authority/38,Oxfordshire County Council,Support at Home 65+ Physical Support,5899,Social Care - Direct Payments,25/11/2020,3110861047,576.00,Purple Conversation Com In Co (DP)
http://statistics.data.gov.uk/id/local-authority/38,Oxfordshire County Council,Support at Home U65 Physical Support,5899,Social Care - Direct Payments,25/11/2020,3110860782,576.04,Purple Conversation Com In Co (DP)
http://statistics.data.gov.uk/id/local-authority/38,Oxfordshire County Council,Support at Home 65+ Physical Support,5698,,04/11/2020,3110848675,576.09,Oxford Private Care
http://statistics.data.gov.uk/id/local-authority/38,Oxfordshire County Council,LOOKED AFTER CITY 2,5665,B*Fostering Project Care Fee,06/11/2020,9300049156,576.20,OCC SS Oxford City Div 1 Cash
http://statistics.data.gov.uk/id/local-authority/38,Oxfordshire County Council,Support at Home 65+ Memory & Cognition,5689,,10/11/2020,3110850628,576.36,Goldsmith Personnel Ltd
http://statistics.data.gov.uk/id/local-authority/38,Oxfordshire County Council,SM DISABILITIES,5554,Childrens' Social Care - Direct Payments,25/11/2020,3110862076,576.60,Purple Conversation Com In Co (DP)
http://statistics.data.gov.uk/id/local-authority/38,Oxfordshire County Council,NURSERY ED FUND,5537,Payments to Other Establishments,19/11/2020,3110859163,576.80,Caryn Hornby
http://statistics.data.gov.uk/id/local-authority/38,Oxfordshire County Council,NURSERY ED FUND,5537,Payments to Other Establishments,09/11/2020,3110849649,576.80,Charlotte Ford
http://statistics.data.gov.uk/id/local-authority/38,Oxfordshire County Council,Support at Home 65+ Mental Health,5689,,10/11/2020,3110850715,576.80,Harino Care
http://statistics.data.gov.uk/id/local-authority/38,Oxfordshire County Council,Support at Home U65 Physical Support,5899,Social Care - Direct Payments,25/11/2020,3110860821,576.80,Purple Conversation Com In Co (DP)
http://statistics.data.gov.uk/id/local-authority/38,Oxfordshire County Council,AIDS & ADPT TEAM,4450,Disability Aids and Equipment,17/11/2020,2200816174,577.50,Oxford University Hospitals NHS Tru
http://statistics.data.gov.uk/id/local-authority/38,Oxfordshire County Council,Early Years SEN Funding,5537,Payments to Other Establishments,13/11/2020,3110857074,577.50,Willow Cottage Nurseries Ltd
http://statistics.data.gov.uk/id/local-authority/38,Oxfordshire County Council,Support at Home U65 MH OBC Contract,5689,,10/11/2020,3110850449,577.60,Casa Care Ltd
http://statistics.data.gov.uk/id/local-authority/38,Oxfordshire County Council,Support at Home 65+ Learning Disability,5690,,11/11/2020,3110852573,577.63,Style Acre
http://statistics.data.gov.uk/id/local-authority/38,Oxfordshire County Council,Support at Home 65+ Physical Support,5689,,10/11/2020,3110850411,577.67,Caremark (West Oxfordshire & Cherwe
http://statistics.data.gov.uk/id/local-authority/38,Oxfordshire County Council,SEN TRANSPORT,5227,Other Transport Arrangements,06/11/2020,3110849064,578.00,Oxon Transport Services Ltd
http://statistics.data.gov.uk/id/local-authority/38,Oxfordshire County Council,SEN TRANSPORT,5227,Other Transport Arrangements,06/11/2020,3110849165,578.00,Oxon Transport Services Ltd
http://statistics.data.gov.uk/id/local-authority/38,Oxfordshire County Council,SEN TRANSPORT,5227,Other Transport Arrangements,06/11/2020,3110849234,578.00,Oxon Transport Services Ltd
http://statistics.data.gov.uk/id/local-authority/38,Oxfordshire County Council,SEN TRANSPORT,5227,Other Transport Arrangements,19/11/2020,3110858772,578.00,The Oxfordshire Taxi Company Ltd T/
http://statistics.data.gov.uk/id/local-authority/38,Oxfordshire County Council,SEN TRANSPORT,5227,Other Transport Arrangements,11/11/2020,3110852041,578.00,Town Cars
http://statistics.data.gov.uk/id/local-authority/38,Oxfordshire County Council,SEN TRANSPORT,4330,Transport to School Activities,17/11/2020,3110857644,578.00,Vine Community Services Ltd T/A
http://statistics.data.gov.uk/id/local-authority/38,Oxfordshire County Council,Support at Home U65 Mental Health,5899,Social Care - Direct Payments,25/11/2020,3110861355,579.00,Purple Conversation Com In Co (DP)
http://statistics.data.gov.uk/id/local-authority/38,Oxfordshire County Council,POST 16 SEN,4330,Transport to School Activities,16/11/2020,3110857123,580.00,Oxon Transport Services Ltd
http://statistics.data.gov.uk/id/local-authority/38,Oxfordshire County Council,Support at Home U65 Physical Support,5899,Social Care - Direct Payments,25/11/2020,3110861171,580.00,Purple Conversation Com In Co (DP)
http://statistics.data.gov.uk/id/local-authority/38,Oxfordshire County Council,SEN Miscellaneous Expenditure,5554,Childrens' Social Care - Direct Payments,25/11/2020,3110861939,580.72,Redacted Personal Data
http://statistics.data.gov.uk/id/local-authority/38,Oxfordshire County Council,Support at Home U65 Learning Disability,5899,Social Care - Direct Payments,25/11/2020,3110860827,581.40,Purple Conversation Com In Co (DP)
http://statistics.data.gov.uk/id/local-authority/38,Oxfordshire County Council,CONTRACEPTION,4934,,23/11/2020,3110862322,581.45,Boots the Chemist
http://statistics.data.gov.uk/id/local-authority/38,Oxfordshire County Council,Support at Home U65 Learning Disability,5899,Social Care - Direct Payments,24/11/2020,3110859996,581.92,Redacted Personal Data
http://statistics.data.gov.uk/id/local-authority/38,Oxfordshire County Council,Support at Home 65+ Physical Support,5693,,04/11/2020,3110847726,582.68,247 HOME CARE LTD
http://statistics.data.gov.uk/id/local-authority/38,Oxfordshire County Council,Support at Home 65+ Physical Support,5693,,11/11/2020,3110852070,582.82,247 HOME CARE LTD
http://statistics.data.gov.uk/id/local-authority/38,Oxfordshire County Council,Support at Home 65+ Physical Support,5698,,04/11/2020,3110848526,583.68,Day & Night Care Assistance
http://statistics.data.gov.uk/id/local-authority/38,Oxfordshire County Council,SEN TRANSPORT,5227,Other Transport Arrangements,26/11/2020,3110862357,583.78,Redacted Personal Data
http://statistics.data.gov.uk/id/local-authority/38,Oxfordshire County Council,Support at Home 65+ Physical Support,5899,Social Care - Direct Payments,25/11/2020,3110861618,584.00,Purple Conversation Com In Co (DP)
http://statistics.data.gov.uk/id/local-authority/38,Oxfordshire County Council,SEN/ICT EQUIPMENT,4494,Purchase of IT Equipment,18/11/2020,2200816685,584.09,Insight Direct (UK) Ltd
http://statistics.data.gov.uk/id/local-authority/38,Oxfordshire County Council,Oxfordshire Adoption Support Fund,4859,Medical and Counselling Fees,18/11/2020,2200816835,585.00,Redacted Personal Data
http://statistics.data.gov.uk/id/local-authority/38,Oxfordshire County Council,Support at Home 65+ Physical Support,5899,Social Care - Direct Payments,24/11/2020,3110859623,585.00,Redacted Personal Data
http://statistics.data.gov.uk/id/local-authority/38,Oxfordshire County Council,Contingency Home Care,5689,,10/11/2020,3110850924,585.36,Oxford University Hospitals NHS FT
http://statistics.data.gov.uk/id/local-authority/38,Oxfordshire County Council,Support at Home 65+ Physical Support,5698,,04/11/2020,3110848101,585.40,Acquire Care Ltd
http://statistics.data.gov.uk/id/local-authority/38,Oxfordshire County Council,"Abingdon CC, Stratton Way",3821,Grounds Maintenance Contracts,16/11/2020,2200815983,586.14,Aspire Oxfordshire
http://statistics.data.gov.uk/id/local-authority/38,Oxfordshire County Council,Support at Home U65 Learning Disability,5899,Social Care - Direct Payments,24/11/2020,3110859625,586.56,Redacted Personal Data
http://statistics.data.gov.uk/id/local-authority/38,Oxfordshire County Council,Support at Home 65+ Physical Support,5693,,11/11/2020,3110852117,587.50,Enable Health Ltd
http://statistics.data.gov.uk/id/local-authority/38,Oxfordshire County Council,LIBRARY COLLECTIONS,4539,"Books, DVDs and CDs",10/11/2020,3110851868,587.66,ASKEWS & HOLTS LIBRARY SERVICES LTD
http://statistics.data.gov.uk/id/local-authority/38,Oxfordshire County Council,FOSTERING MAIN,5394,Other Expenses,17/11/2020,3110858406,587.71,Redacted Personal Data
http://statistics.data.gov.uk/id/local-authority/38,Oxfordshire County Council,LIBRARY COLLECTIONS,4539,"Books, DVDs and CDs",17/11/2020,3110857724,587.79,ASKEWS & HOLTS LIBRARY SERVICES LTD
http://statistics.data.gov.uk/id/local-authority/38,Oxfordshire County Council,GYPSY & TRAVELLER SV,4940,Other Services,30/11/2020,2200820775,588.00,Advanced Pest Control Ltd
http://statistics.data.gov.uk/id/local-authority/38,Oxfordshire County Council,2 YEAR OLD FUNDING,5537,Payments to Other Establishments,02/11/2020,3110846489,588.00,Sharon Harrison
http://statistics.data.gov.uk/id/local-authority/38,Oxfordshire County Council,NURSERY ED FUND,5537,Payments to Other Establishments,09/11/2020,3110849881,588.34,Nicola Henshaw
http://statistics.data.gov.uk/id/local-authority/38,Oxfordshire County Council,Support at Home U65 Learning Disability,5899,Social Care - Direct Payments,25/11/2020,3110861136,588.40,Purple Conversation Com In Co (DP)
http://statistics.data.gov.uk/id/local-authority/38,Oxfordshire County Council,Support at Home 65+ Physical Support,5689,,10/11/2020,3110850497,588.67,Oxfordshire Crossroads
http://statistics.data.gov.uk/id/local-authority/38,Oxfordshire County Council,LOOKED AFTER CITY 2,4685,Clothing and Uniforms,11/11/2020,9300049311,588.70,OCC SS Oxford City Div 1 Cash
http://statistics.data.gov.uk/id/local-authority/38,Oxfordshire County Council,Support at Home 65+ Learning Disability,5688,,11/11/2020,3110852840,588.81,The Laurels (Witney)
http://statistics.data.gov.uk/id/local-authority/38,Oxfordshire County Council,Support at Home 65+ Physical Support,5689,,10/11/2020,3110850370,589.04,Caremark (West Oxfordshire & Cherwe
http://statistics.data.gov.uk/id/local-authority/38,Oxfordshire County Council,Support at Home 65+ Physical Support,5681,,11/11/2020,3110855138,589.14,Orders of St John
http://statistics.data.gov.uk/id/local-authority/38,Oxfordshire County Council,Delegated Health Tasks  - Over 65,5691,,13/11/2020,3110857478,589.70,George Springall Homecare
http://statistics.data.gov.uk/id/local-authority/38,Oxfordshire County Council,Delegated Health Tasks  - Over 65,5691,,20/11/2020,3110859328,589.70,George Springall Homecare
http://statistics.data.gov.uk/id/local-authority/38,Oxfordshire County Council,Support at Home U65 Physical Support,5899,Social Care - Direct Payments,25/11/2020,3110860876,590.00,Purple Conversation Com In Co (DP)
http://statistics.data.gov.uk/id/local-authority/38,Oxfordshire County Council,Support at Home 65+ Physical Support,5698,,04/11/2020,3110848578,590.26,Day & Night Care Assistance
http://statistics.data.gov.uk/id/local-authority/38,Oxfordshire County Council,Support at Home U65 Learning Disability,5690,,11/11/2020,3110852390,590.46,Style Acre
http://statistics.data.gov.uk/id/local-authority/38,Oxfordshire County Council,Support at Home U65 Learning Disability,5690,,11/11/2020,3110852393,590.46,Style Acre
http://statistics.data.gov.uk/id/local-authority/38,Oxfordshire County Council,Support at Home U65 Physical Support,5689,,10/11/2020,3110850670,591.00,Greigcare Home Service
http://statistics.data.gov.uk/id/local-authority/38,Oxfordshire County Council,Support at Home 65+ Mental Health,5899,Social Care - Direct Payments,24/11/2020,3110859544,591.00,Redacted Personal Data
http://statistics.data.gov.uk/id/local-authority/38,Oxfordshire County Council,LEGAL SERVICES,5251,Legal Costs,06/11/2020,2200812763,591.67,Natasha Miller
http://statistics.data.gov.uk/id/local-authority/38,Oxfordshire County Council,VOIDS/VACANCY COSTS,3945,Rent,11/11/2020,3110853202,591.99,Oxford Citizens Housing Association
http://statistics.data.gov.uk/id/local-authority/38,Oxfordshire County Council,MENTAL CAPACITY,4859,Medical and Counselling Fees,16/11/2020,2200815845,592.00,The Advocacy People
http://statistics.data.gov.uk/id/local-authority/38,Oxfordshire County Council,Support at Home 65+ Physical Support,5693,,04/11/2020,3110847766,592.04,GAIN HEALTHCARE LTD
http://statistics.data.gov.uk/id/local-authority/38,Oxfordshire County Council,ASSESSMENT TEAM NORT,5227,Other Transport Arrangements,30/11/2020,3110861762,592.50,Ace Taxis (West Oxfordshire) Ltd
http://statistics.data.gov.uk/id/local-authority/38,Oxfordshire County Council,Support at Home U65 Other /Soc Isolation,5690,,11/11/2020,3110852575,592.80,Style Acre
http://statistics.data.gov.uk/id/local-authority/38,Oxfordshire County Council,Support at Home U65 Learning Disability,5690,,11/11/2020,3110852577,592.80,Style Acre
http://statistics.data.gov.uk/id/local-authority/38,Oxfordshire County Council,Support at Home U65 Learning Disability,5690,,11/11/2020,3110852517,593.49,Turnstyle
http://statistics.data.gov.uk/id/local-authority/38,Oxfordshire County Council,Support at Home U65 Physical Support,5899,Social Care - Direct Payments,25/11/2020,3110861161,593.84,Purple Conversation Com In Co (DP)
http://statistics.data.gov.uk/id/local-authority/38,Oxfordshire County Council,Support at Home U65 Mental Health,5899,Social Care - Direct Payments,25/11/2020,3110861295,594.00,Purple Conversation Com In Co (DP)
http://statistics.data.gov.uk/id/local-authority/38,Oxfordshire County Council,ContrO ASC Payments Control Account,7190,Other Recovered Costs,19/11/2020,3110858937,594.19,Alphacare Holdings Limited
http://statistics.data.gov.uk/id/local-authority/38,Oxfordshire County Council,Care Packages & Placements- LD - OCC,5227,Other Transport Arrangements,06/11/2020,3110849381,595.00,Oxon Transport Services Ltd
http://statistics.data.gov.uk/id/local-authority/38,Oxfordshire County Council,THAMES PATH,3821,Grounds Maintenance Contracts,25/11/2020,2200819066,595.00,Smallwood
http://statistics.data.gov.uk/id/local-authority/38,Oxfordshire County Council,Support at Home 65+ Memory & Cognition,5689,,10/11/2020,3110850351,595.17,Caremark (West Oxfordshire & Cherwe
http://statistics.data.gov.uk/id/local-authority/38,Oxfordshire County Council,Support at Home 65+ Physical Support,5689,,10/11/2020,3110850548,595.88,Elite Care Agency
http://statistics.data.gov.uk/id/local-authority/38,Oxfordshire County Council,Early Years SEN Funding,5537,Payments to Other Establishments,20/11/2020,3110859175,595.98,Little Pippins Pre-Schoo
http://statistics.data.gov.uk/id/local-authority/38,Oxfordshire County Council,Support at Home U65 Physical Support,5899,Social Care - Direct Payments,25/11/2020,3110860869,596.00,Purple Conversation Com In Co (DP)
http://statistics.data.gov.uk/id/local-authority/38,Oxfordshire County Council,MAINSTREAM-SECONDARY,4330,Transport to School Activities,02/11/2020,3110846252,596.70,First Call Transfers
http://statistics.data.gov.uk/id/local-authority/38,Oxfordshire County Council,Delegated Health Tasks  - Over 65,5691,,10/11/2020,3110851917,596.84,Bluebird Care (Oxford South & West)
http://statistics.data.gov.uk/id/local-authority/38,Oxfordshire County Council,Delegated Health Tasks  - Over 65,5691,,20/11/2020,3110859390,596.84,Bluebird Care (Oxford South & West)
http://statistics.data.gov.uk/id/local-authority/38,Oxfordshire County Council,Support at Home U65 Physical Support,5899,Social Care - Direct Payments,24/11/2020,3110860014,597.43,Redacted Personal Data
http://statistics.data.gov.uk/id/local-authority/38,Oxfordshire County Council,Support at Home 65+ Physical Support,5689,,10/11/2020,3110850790,597.52,Kare Plus Oxford
http://statistics.data.gov.uk/id/local-authority/38,Oxfordshire County Council,Support at Home 65+ Memory & Cognition,5899,Social Care - Direct Payments,24/11/2020,3110859890,598.00,Redacted Personal Data
http://statistics.data.gov.uk/id/local-authority/38,Oxfordshire County Council,Contingency Home Care,5689,,10/11/2020,3110850987,598.03,Oxford University Hospitals NHS FT
http://statistics.data.gov.uk/id/local-authority/38,Oxfordshire County Council,POST 16 SEN,4330,Transport to School Activities,12/11/2020,3110856780,598.50,Cherwell Cars
http://statistics.data.gov.uk/id/local-authority/38,Oxfordshire County Council,Support at Home 65+ Physical Support,5698,,04/11/2020,3110848705,598.91,Oxford Private Care
http://statistics.data.gov.uk/id/local-authority/38,Oxfordshire County Council,OPERATIONS,4498,Health and Safety Equipment,05/11/2020,2200812183,599.25,Arco Wessex
http://statistics.data.gov.uk/id/local-authority/38,Oxfordshire County Council,"East Street CC, Banbury",3821,Grounds Maintenance Contracts,18/11/2020,2200817002,599.28,Aspire Oxfordshire
http://statistics.data.gov.uk/id/local-authority/38,Oxfordshire County Council,SEN TRANSPORT,5227,Other Transport Arrangements,30/11/2020,3110862936,600.00,Airport Transfers Banbury Ltd
http://statistics.data.gov.uk/id/local-authority/38,Oxfordshire County Council,Central FSS Statutory - Blackbird Leys,5394,Other Expenses,24/11/2020,3500073885,600.00,Redacted Personal Data
http://statistics.data.gov.uk/id/local-authority/38,Oxfordshire County Council,EARLY YEARS TRADED SERVICES,5380,"Author, Speaker and Lecturer Fees",18/11/2020,2200816765,600.00,Anne Davy
http://statistics.data.gov.uk/id/local-authority/38,Oxfordshire County Council,Wokingham Adoption Support Fund,4859,Medical and Counselling Fees,09/11/2020,2200813036,600.00,Redacted Personal Data
http://statistics.data.gov.uk/id/local-authority/38,Oxfordshire County Council,MAINSTREAM-PRIMARY,4330,Transport to School Activities,17/11/2020,3110857633,600.00,Banbury Taxis
http://statistics.data.gov.uk/id/local-authority/38,Oxfordshire County Council,COVID 19 Infection Control 2,5689,,30/11/2020,3110862978,600.00,BE WELL CARE LTD
http://statistics.data.gov.uk/id/local-authority/38,Oxfordshire County Council,GOVERNANCE,5380,"Author, Speaker and Lecturer Fees",10/11/2020,2200813847,600.00,C E Christie Education LTD
http://statistics.data.gov.uk/id/local-authority/38,Oxfordshire County Council,Support at Home U65 Physical Support,5693,,25/11/2020,3110860797,600.00,Caremark (West Berkshire & Reading)
http://statistics.data.gov.uk/id/local-authority/38,Oxfordshire County Council,Early Help - Witney,5414,Day Activities,17/11/2020,3110857685,600.00,Co-Op Madley Park Nursery
http://statistics.data.gov.uk/id/local-authority/38,Oxfordshire County Council,AGENCY RESID - DISAB,5558,,25/11/2020,3110861837,600.00,Demidav Ltd
http://statistics.data.gov.uk/id/local-authority/38,Oxfordshire County Council,Support at Home 65+ Mental Health,5899,Social Care - Direct Payments,24/11/2020,3110859545,600.00,Redacted Personal Data
http://statistics.data.gov.uk/id/local-authority/38,Oxfordshire County Council,MAINSTREAM-SECONDARY,4330,Transport to School Activities,24/11/2020,3110859473,600.00,Go Green Taxis
http://statistics.data.gov.uk/id/local-authority/38,Oxfordshire County Council,FAM GRP CONFERENCES,4940,Other Services,09/11/2020,2200813076,600.00,Helen Frost
http://statistics.data.gov.uk/id/local-authority/38,Oxfordshire County Council,EARLY YEARS TRADED SERVICES,5380,"Author, Speaker and Lecturer Fees",23/11/2020,2200817904,600.00,Julie Sargent Education Consultancy
http://statistics.data.gov.uk/id/local-authority/38,Oxfordshire County Council,SHORT BREAK ACTIVITIES,5195,Grant Aid and Donations,11/11/2020,3110852217,600.00,KIDS
http://statistics.data.gov.uk/id/local-authority/38,Oxfordshire County Council,SEN TRANSPORT,5227,Other Transport Arrangements,12/11/2020,3110856701,600.00,Luxicars Ltd
http://statistics.data.gov.uk/id/local-authority/38,Oxfordshire County Council,LEGAL SERVICES,5251,Legal Costs,10/11/2020,2200814070,600.00,Miss Chloe Wilkins
http://statistics.data.gov.uk/id/local-authority/38,Oxfordshire County Council,LEGAL SERVICES,5251,Legal Costs,17/11/2020,2200816573,600.00,Miss Chloe Wilkins
http://statistics.data.gov.uk/id/local-authority/38,Oxfordshire County Council,CAP CHRGES-PRIM SCHS,8511,Legal Fees & expenses,25/11/2020,3110860089,600.00,OCC One Time Vendor
http://statistics.data.gov.uk/id/local-authority/38,Oxfordshire County Council,COVID 19 Infection Control 2,5689,,30/11/2020,3110863050,600.00,Olive Tree Services
http://statistics.data.gov.uk/id/local-authority/38,Oxfordshire County Council,SEN TRANSPORT,5227,Other Transport Arrangements,30/11/2020,3110862868,600.00,Oxfordlinks
http://statistics.data.gov.uk/id/local-authority/38,Oxfordshire County Council,Support at Home U65 Learning Disability,5227,Other Transport Arrangements,06/11/2020,3110849111,600.00,Oxon Transport Services Ltd
http://statistics.data.gov.uk/id/local-authority/38,Oxfordshire County Council,SEN TRANSPORT,5227,Other Transport Arrangements,06/11/2020,3110849141,600.00,Oxon Transport Services Ltd
http://statistics.data.gov.uk/id/local-authority/38,Oxfordshire County Council,SEN TRANSPORT,5227,Other Transport Arrangements,06/11/2020,3110849149,600.00,Oxon Transport Services Ltd
http://statistics.data.gov.uk/id/local-authority/38,Oxfordshire County Council,POST 16 SEN,5227,Other Transport Arrangements,16/11/2020,3110857114,600.00,Oxon Transport Services Ltd
http://statistics.data.gov.uk/id/local-authority/38,Oxfordshire County Council,Support at Home U65 Learning Disability,5899,Social Care - Direct Payments,25/11/2020,3110860877,600.00,Purple Conversation Com In Co (DP)
http://statistics.data.gov.uk/id/local-authority/38,Oxfordshire County Council,Support at Home U65 Autism /Abated,5899,Social Care - Direct Payments,25/11/2020,3110860979,600.00,Purple Conversation Com In Co (DP)
http://statistics.data.gov.uk/id/local-authority/38,Oxfordshire County Council,Support at Home U65 Physical Support,5899,Social Care - Direct Payments,25/11/2020,3110861113,600.00,Purple Conversation Com In Co (DP)
http://statistics.data.gov.uk/id/local-authority/38,Oxfordshire County Council,Support at Home U65 Learning Disability,5899,Social Care - Direct Payments,25/11/2020,3110861197,600.00,Purple Conversation Com In Co (DP)
http://statistics.data.gov.uk/id/local-authority/38,Oxfordshire County Council,Support at Home U65 Learning Disability,5899,Social Care - Direct Payments,25/11/2020,3110861198,600.00,Purple Conversation Com In Co (DP)
http://statistics.data.gov.uk/id/local-authority/38,Oxfordshire County Council,Support at Home U65 Learning Disability,5899,Social Care - Direct Payments,25/11/2020,3110861268,600.00,Purple Conversation Com In Co (DP)
http://statistics.data.gov.uk/id/local-authority/38,Oxfordshire County Council,Support at Home 65+ Learning Disability,5899,Social Care - Direct Payments,25/11/2020,3110861525,600.00,Purple Conversation Com In Co (DP)
http://statistics.data.gov.uk/id/local-authority/38,Oxfordshire County Council,Support at Home U65 Learning Disability,5899,Social Care - Direct Payments,25/11/2020,3110861558,600.00,Purple Conversation Com In Co (DP)
http://statistics.data.gov.uk/id/local-authority/38,Oxfordshire County Council,COVID 19 Infection Control 2,5689,,30/11/2020,3110862989,600.00,Radis Community Care
http://statistics.data.gov.uk/id/local-authority/38,Oxfordshire County Council,SEN TRANSPORT,5227,Other Transport Arrangements,30/11/2020,3110861772,600.00,Town Cars
http://statistics.data.gov.uk/id/local-authority/38,Oxfordshire County Council,LEGAL SERVICES,5251,Legal Costs,27/11/2020,2200820231,600.00,Vicky Reynolds
http://statistics.data.gov.uk/id/local-authority/38,Oxfordshire County Council,Support at Home 65+ Physical Support,5698,,04/11/2020,3110848374,600.62,Charterville Care At Home Ltd
http://statistics.data.gov.uk/id/local-authority/38,Oxfordshire County Council,,1448,Blackfield Inc & Exp A/c,16/11/2020,3110857299,600.87,OCC One Time Vendor
http://statistics.data.gov.uk/id/local-authority/38,Oxfordshire County Council,Support at Home 65+ Physical Support,5689,,10/11/2020,3110850786,601.40,Kare Plus Oxford
http://statistics.data.gov.uk/id/local-authority/38,Oxfordshire County Council,SEN TRANSPORT,5227,Other Transport Arrangements,18/11/2020,3110858509,601.60,C V OSullivan
http://statistics.data.gov.uk/id/local-authority/38,Oxfordshire County Council,Support at Home U65 Learning Disability,5690,,11/11/2020,3110852459,601.71,MacIntyre Care (Womaston)
http://statistics.data.gov.uk/id/local-authority/38,Oxfordshire County Council,Support at Home U65 Learning Disability,5690,,11/11/2020,3110852471,601.71,MacIntyre Care (Womaston)
http://statistics.data.gov.uk/id/local-authority/38,Oxfordshire County Council,SEN TRANSPORT,5227,Other Transport Arrangements,30/11/2020,3110859316,601.86,C&M Management Services Ltd
http://statistics.data.gov.uk/id/local-authority/38,Oxfordshire County Council,Support at Home 65+ Physical Support,5689,,10/11/2020,3110850722,601.96,Home Helpers Care Ltd
http://statistics.data.gov.uk/id/local-authority/38,Oxfordshire County Council,FAM GRP CONFERENCES,5668,Technical and Professional Consultant F,09/11/2020,2200813062,602.00,Geneva Quarshie
http://statistics.data.gov.uk/id/local-authority/38,Oxfordshire County Council,Support at Home U65 Physical Support,5696,,03/11/2020,3110846751,602.08,Orders of St John Care Trust
http://statistics.data.gov.uk/id/local-authority/38,Oxfordshire County Council,Support at Home 65+ Physical Support,5696,,03/11/2020,3110846652,602.97,Orders of St John Care Trust
http://statistics.data.gov.uk/id/local-authority/38,Oxfordshire County Council,Support at Home U65 Physical Support,5689,,10/11/2020,3110850327,603.00,Care Outlook Ltd
http://statistics.data.gov.uk/id/local-authority/38,Oxfordshire County Council,Support at Home U65 Learning Disability,5697,,04/11/2020,3110847831,603.20,Pennyhooks Farm Trust
http://statistics.data.gov.uk/id/local-authority/38,Oxfordshire County Council,Continuing Care - Support at Home - U65,5691,,06/11/2020,3110849505,603.72,Paterson Recruitment
http://statistics.data.gov.uk/id/local-authority/38,Oxfordshire County Council,COMM DRAWDOWN FUNDNG,8102,Payments to main contractor,26/11/2020,2200819618,604.30,Skanska Construction UK Ltd Sp
http://statistics.data.gov.uk/id/local-authority/38,Oxfordshire County Council,Support at Home U65 Learning Disability,5899,Social Care - Direct Payments,25/11/2020,3110861367,604.32,Purple Conversation Com In Co (DP)
http://statistics.data.gov.uk/id/local-authority/38,Oxfordshire County Council,Support at Home U65 Sensory Support,5899,Social Care - Direct Payments,25/11/2020,3110861049,604.80,Purple Conversation Com In Co (DP)
http://statistics.data.gov.uk/id/local-authority/38,Oxfordshire County Council,Support at Home U65 Autism /Abated,5899,Social Care - Direct Payments,24/11/2020,3110859857,605.08,Redacted Personal Data
http://statistics.data.gov.uk/id/local-authority/38,Oxfordshire County Council,NURSERY ED FUND,5537,Payments to Other Establishments,09/11/2020,3110849586,605.64,Amy-Leigh Hambridge
http://statistics.data.gov.uk/id/local-authority/38,Oxfordshire County Council,LD Continuing Care - Sup at Home - U65,5688,,11/11/2020,3110853473,605.83,Mencap Contracts
http://statistics.data.gov.uk/id/local-authority/38,Oxfordshire County Council,Support at Home 65+ Other /Soc Isolation,5696,,03/11/2020,3110846692,606.28,Orders of St John Care Trust
http://statistics.data.gov.uk/id/local-authority/38,Oxfordshire County Council,SEN TRANSPORT,5227,Other Transport Arrangements,12/11/2020,3110856705,606.90,Luxicars Ltd
http://statistics.data.gov.uk/id/local-authority/38,Oxfordshire County Council,Support at Home 65+ Physical Support,5698,,04/11/2020,3110848323,607.00,Charterville Care At Home Ltd
http://statistics.data.gov.uk/id/local-authority/38,Oxfordshire County Council,Support at Home 65+ Physical Support,5689,,10/11/2020,3110850208,607.50,Alina Homecare
http://statistics.data.gov.uk/id/local-authority/38,Oxfordshire County Council,SEN TRANSPORT,4330,Transport to School Activities,24/11/2020,3110859466,607.50,Go Green Taxis
http://statistics.data.gov.uk/id/local-authority/38,Oxfordshire County Council,SEN TRANSPORT,4320,Pupil / Client Travel Reimbursement,06/11/2020,3110849047,607.86,Redacted Personal Data
http://statistics.data.gov.uk/id/local-authority/38,Oxfordshire County Council,Support at Home 65+ Physical Support,5689,,10/11/2020,3110850775,607.91,Kare Plus Oxford
http://statistics.data.gov.uk/id/local-authority/38,Oxfordshire County Council,Support at Home 65+ Physical Support,5696,,04/11/2020,3110847804,608.00,1st Homecare (Oxford) Ltd
http://statistics.data.gov.uk/id/local-authority/38,Oxfordshire County Council,Support at Home U65 Physical Support,5698,,04/11/2020,3110848345,608.53,Charterville Care At Home Ltd
http://statistics.data.gov.uk/id/local-authority/38,Oxfordshire County Council,Support at Home 65+ Physical Support,5681,,11/11/2020,3110854557,608.57,Orders of St John
http://statistics.data.gov.uk/id/local-authority/38,Oxfordshire County Council,SEN TRANSPORT,5227,Other Transport Arrangements,20/11/2020,3110859222,609.00,Crown Cabs Travel Ltd
http://statistics.data.gov.uk/id/local-authority/38,Oxfordshire County Council,ICT Operations & Maintenance,4495,IT Software,23/11/2020,2200817913,609.12,Bytes Software Services
http://statistics.data.gov.uk/id/local-authority/38,Oxfordshire County Council,LEGAL BUDGET,5251,Legal Costs,24/11/2020,2200818864,609.65,N KEENE
http://statistics.data.gov.uk/id/local-authority/38,Oxfordshire County Council,Support at Home 65+ Physical Support,5689,,10/11/2020,3110850181,609.84,Alina Homecare
http://statistics.data.gov.uk/id/local-authority/38,Oxfordshire County Council,Planned preventative Maintenance,3821,Grounds Maintenance Contracts,19/11/2020,2200817250,610.00,Aspire Enterprise Services Ltd
http://statistics.data.gov.uk/id/local-authority/38,Oxfordshire County Council,Contingency Home Care,5689,,10/11/2020,3110850947,610.03,Oxford University Hospitals NHS FT
http://statistics.data.gov.uk/id/local-authority/38,Oxfordshire County Council,Support at Home U65 Learning Disability,5697,,18/11/2020,3110858605,610.32,Life Path Trust Ltd
http://statistics.data.gov.uk/id/local-authority/38,Oxfordshire County Council,Support at Home U65 Learning Disability,5690,,11/11/2020,3110852381,610.85,Life Path Trust Ltd
http://statistics.data.gov.uk/id/local-authority/38,Oxfordshire County Council,Support at Home U65 Learning Disability,5690,,11/11/2020,3110852438,610.85,Life Path Trust Ltd
http://statistics.data.gov.uk/id/local-authority/38,Oxfordshire County Council,Support at Home U65 Learning Disability,5690,,11/11/2020,3110852456,610.85,Life Path Trust Ltd
http://statistics.data.gov.uk/id/local-authority/38,Oxfordshire County Council,Support at Home U65 Mental Health,5689,,10/11/2020,3110851101,611.25,Response Organisation
http://statistics.data.gov.uk/id/local-authority/38,Oxfordshire County Council,2 YEAR OLD FUNDING,5537,Payments to Other Establishments,02/11/2020,3110846452,611.52,Nicola Reid
http://statistics.data.gov.uk/id/local-authority/38,Oxfordshire County Council,Support at Home U65 Physical Support,5689,,10/11/2020,3110850598,611.66,Golden Services Care Ltd
http://statistics.data.gov.uk/id/local-authority/38,Oxfordshire County Council,SEN TRANSPORT,5227,Other Transport Arrangements,09/11/2020,3110851999,612.00,AKR Ltd
http://statistics.data.gov.uk/id/local-authority/38,Oxfordshire County Council,Support at Home U65 Learning Disability,5227,Other Transport Arrangements,30/11/2020,3110861716,612.00,Ali's Cabs
http://statistics.data.gov.uk/id/local-authority/38,Oxfordshire County Council,SEN TRANSPORT,5227,Other Transport Arrangements,16/11/2020,3110857145,612.00,Angelas Travel
http://statistics.data.gov.uk/id/local-authority/38,Oxfordshire County Council,SEN TRANSPORT,5227,Other Transport Arrangements,11/11/2020,3110852049,612.00,Browns Taxis Ltd
http://statistics.data.gov.uk/id/local-authority/38,Oxfordshire County Council,SEN TRANSPORT,5227,Other Transport Arrangements,03/11/2020,3110847046,612.00,FD TRAVEL LTD t/a SCHOOL EXPRESS
http://statistics.data.gov.uk/id/local-authority/38,Oxfordshire County Council,MAINSTREAM-PRIMARY,4330,Transport to School Activities,24/11/2020,3110859477,612.00,Go Green Taxis
http://statistics.data.gov.uk/id/local-authority/38,Oxfordshire County Council,SEN TRANSPORT,5227,Other Transport Arrangements,02/11/2020,3110846153,612.00,Henley Taxis Ltd
http://statistics.data.gov.uk/id/local-authority/38,Oxfordshire County Council,Support at Home U65 Learning Disability,5899,Social Care - Direct Payments,24/11/2020,3110859931,612.00,Redacted Personal Data
http://statistics.data.gov.uk/id/local-authority/38,Oxfordshire County Council,SEN TRANSPORT,5227,Other Transport Arrangements,06/11/2020,3110849158,612.00,Oxon Transport Services Ltd
http://statistics.data.gov.uk/id/local-authority/38,Oxfordshire County Council,Support at Home U65 Physical Support,5899,Social Care - Direct Payments,25/11/2020,3110861296,612.00,Purple Conversation Com In Co (DP)
http://statistics.data.gov.uk/id/local-authority/38,Oxfordshire County Council,Contingency Home Care,5689,,10/11/2020,3110850907,612.03,OXFORD HEALTH NHS FOUNDATION TRUST
http://statistics.data.gov.uk/id/local-authority/38,Oxfordshire County Council,Planned preventative Maintenance,3787,Premises Repairs,24/11/2020,2200818901,612.50,Metro Rod Ltd (Oxon & West Bucks)
http://statistics.data.gov.uk/id/local-authority/38,Oxfordshire County Council,Support at Home U65 Physical Support,5698,,04/11/2020,3110848056,612.63,Acquire Care Ltd
http://statistics.data.gov.uk/id/local-authority/38,Oxfordshire County Council,Support at Home U65 Learning Disability,5690,,11/11/2020,3110852351,612.90,Mencap Contracts
http://statistics.data.gov.uk/id/local-authority/38,Oxfordshire County Council,TRAFF SIGNALS MTCE,4531,Materials,23/11/2020,2200818142,613.50,Robelec Ltd
http://statistics.data.gov.uk/id/local-authority/38,Oxfordshire County Council,FOSTERING MAIN,5549,B*Fostering Allowance - Regulation 38,10/11/2020,3110851688,613.72,Redacted Personal Data
http://statistics.data.gov.uk/id/local-authority/38,Oxfordshire County Council,Support at Home 65+ Physical Support,5693,,04/11/2020,3110847934,613.72,We-Care-Recruitment Ltd
http://statistics.data.gov.uk/id/local-authority/38,Oxfordshire County Council,Support at Home 65+ Physical Support,5689,,10/11/2020,3110850605,613.77,Goldsmith Personnel Ltd
http://statistics.data.gov.uk/id/local-authority/38,Oxfordshire County Council,Support at Home U65 Learning Disability,5899,Social Care - Direct Payments,24/11/2020,3110859957,615.16,Redacted Personal Data
http://statistics.data.gov.uk/id/local-authority/38,Oxfordshire County Council,Support at Home 65+ Memory & Cognition,5899,Social Care - Direct Payments,24/11/2020,3110860025,615.32,Redacted Personal Data
http://statistics.data.gov.uk/id/local-authority/38,Oxfordshire County Council,Support at Home U65 Learning Disability,5698,,04/11/2020,3110848446,615.67,Day & Night Care Assistance
http://statistics.data.gov.uk/id/local-authority/38,Oxfordshire County Council,Support at Home U65 Physical Support,5899,Social Care - Direct Payments,25/11/2020,3110861212,615.84,Purple Conversation Com In Co (DP)
http://statistics.data.gov.uk/id/local-authority/38,Oxfordshire County Council,OTHER HOUSEHOLD,5526,Payments to Private Contractors,19/11/2020,2200817295,616.00,GRUNDON WASTE MANAGEMENT LTD
http://statistics.data.gov.uk/id/local-authority/38,Oxfordshire County Council,MAINSTREAM-SECONDARY,4330,Transport to School Activities,06/11/2020,3110849410,616.00,OMC GLOBAL LIMITED
http://statistics.data.gov.uk/id/local-authority/38,Oxfordshire County Council,Support at Home 65+ Physical Support,5899,Social Care - Direct Payments,25/11/2020,3110860911,616.00,Purple Conversation Com In Co (DP)
http://statistics.data.gov.uk/id/local-authority/38,Oxfordshire County Council,Support at Home U65 Physical Support,5899,Social Care - Direct Payments,25/11/2020,3110861230,616.00,Purple Conversation Com In Co (DP)
http://statistics.data.gov.uk/id/local-authority/38,Oxfordshire County Council,Support at Home 65+ Physical Support,5689,,10/11/2020,3110850873,616.26,My Carer Ltd
http://statistics.data.gov.uk/id/local-authority/38,Oxfordshire County Council,ECH Central Costs,5688,,11/11/2020,3110852605,616.46,Orders of St John Care Trust
http://statistics.data.gov.uk/id/local-authority/38,Oxfordshire County Council,Care Homes - Over 65 Physical Sypport,5687,,11/11/2020,3110853716,616.50,SANCTUARY CARE PROPERTY (2) LTD
http://statistics.data.gov.uk/id/local-authority/38,Oxfordshire County Council,Continuing Care - Support at Home - U65,5691,,06/11/2020,3110849503,616.59,Paterson Recruitment
http://statistics.data.gov.uk/id/local-authority/38,Oxfordshire County Council,Support at Home U65 Learning Disability,5899,Social Care - Direct Payments,24/11/2020,3110859910,616.88,Redacted Personal Data
http://statistics.data.gov.uk/id/local-authority/38,Oxfordshire County Council,Support at Home 65+ Physical Support,5698,,04/11/2020,3110848377,616.92,Charterville Care At Home Ltd
http://statistics.data.gov.uk/id/local-authority/38,Oxfordshire County Council,Support at Home 65+ Physical Support,5689,,10/11/2020,3110850843,616.94,My Carer Ltd
http://statistics.data.gov.uk/id/local-authority/38,Oxfordshire County Council,CHC Fast Track - Care Homes - Over 65,5687,,11/11/2020,3110854082,618.00,SANCTUARY CARE LTD
http://statistics.data.gov.uk/id/local-authority/38,Oxfordshire County Council,,1441,Uncleared Misc Income Receipts,11/11/2020,3110852064,618.00,The Oratory Preparatory
http://statistics.data.gov.uk/id/local-authority/38,Oxfordshire County Council,NURSERY ED FUND,5537,Payments to Other Establishments,20/11/2020,3110859161,618.00,The Oratory Preparatory
http://statistics.data.gov.uk/id/local-authority/38,Oxfordshire County Council,Support at Home 65+ Physical Support,5698,,04/11/2020,3110848382,618.08,Charterville Care At Home Ltd
http://statistics.data.gov.uk/id/local-authority/38,Oxfordshire County Council,Support at Home 65+ Physical Support,5696,,03/11/2020,3110846639,618.42,Orders of St John Care Trust
http://statistics.data.gov.uk/id/local-authority/38,Oxfordshire County Council,Support at Home 65+ Physical Support,5696,,03/11/2020,3110846643,618.42,Orders of St John Care Trust
http://statistics.data.gov.uk/id/local-authority/38,Oxfordshire County Council,Support at Home U65 Learning Disability,5696,,03/11/2020,3110846660,618.42,Orders of St John Care Trust
http://statistics.data.gov.uk/id/local-authority/38,Oxfordshire County Council,Support at Home U65 Learning Disability,5696,,03/11/2020,3110846684,618.42,Orders of St John Care Trust
http://statistics.data.gov.uk/id/local-authority/38,Oxfordshire County Council,Support at Home 65+ Physical Support,5696,,03/11/2020,3110846699,618.42,Orders of St John Care Trust
http://statistics.data.gov.uk/id/local-authority/38,Oxfordshire County Council,Support at Home 65+ Physical Support,5696,,03/11/2020,3110846702,618.42,Orders of St John Care Trust
http://statistics.data.gov.uk/id/local-authority/38,Oxfordshire County Council,Support at Home U65 Learning Disability,5690,,11/11/2020,3110852449,618.64,Life Path Trust Ltd
http://statistics.data.gov.uk/id/local-authority/38,Oxfordshire County Council,ECH Central Costs,5696,,11/11/2020,3110852585,618.81,BPHA Limited
http://statistics.data.gov.uk/id/local-authority/38,Oxfordshire County Council,SEN TRANSPORT,4320,Pupil / Client Travel Reimbursement,17/11/2020,3110857377,618.87,Redacted Personal Data
http://statistics.data.gov.uk/id/local-authority/38,Oxfordshire County Council,Support at Home 65+ Physical Support,5693,,11/11/2020,3110852098,619.00,The Caring Company (Oxon)
http://statistics.data.gov.uk/id/local-authority/38,Oxfordshire County Council,Support at Home 65+ Physical Support,5691,,18/11/2020,2200816966,619.76,Orders of St John Care Trust
http://statistics.data.gov.uk/id/local-authority/38,Oxfordshire County Council,Planned preventative Maintenance,3787,Premises Repairs,24/11/2020,2200818415,620.00,Barker & Evans Ltd
http://statistics.data.gov.uk/id/local-authority/38,Oxfordshire County Council,Support at Home 65+ Physical Support,5899,Social Care - Direct Payments,24/11/2020,3110859730,620.00,Redacted Personal Data
http://statistics.data.gov.uk/id/local-authority/38,Oxfordshire County Council,Support at Home 65+ Physical Support,5899,Social Care - Direct Payments,25/11/2020,3110861571,620.00,Purple Conversation Com In Co (DP)
http://statistics.data.gov.uk/id/local-authority/38,Oxfordshire County Council,SEN TRANSPORT,5227,Other Transport Arrangements,17/11/2020,3110857384,620.00,R & S Travel Services Ltd T/A A 2 Z
http://statistics.data.gov.uk/id/local-authority/38,Oxfordshire County Council,Support at Home U65 Physical Support,5696,,03/11/2020,3110846786,620.06,Orders of St John Care Trust
http://statistics.data.gov.uk/id/local-authority/38,Oxfordshire County Council,Support at Home 65+ Physical Support,5696,,03/11/2020,3110846789,620.06,Orders of St John Care Trust
http://statistics.data.gov.uk/id/local-authority/38,Oxfordshire County Council,SHARED LIVES,5555,Payments to Carers,11/11/2020,3110852951,620.23,KALSOOM (KELLY) MOGHAL
http://statistics.data.gov.uk/id/local-authority/38,Oxfordshire County Council,Support at Home U65 Learning Disability,5899,Social Care - Direct Payments,24/11/2020,3110859687,620.32,Redacted Personal Data
http://statistics.data.gov.uk/id/local-authority/38,Oxfordshire County Council,Support at Home U65 Learning Disability,5696,,03/11/2020,3110846763,620.45,Orders of St John Care Trust
http://statistics.data.gov.uk/id/local-authority/38,Oxfordshire County Council,SEN TRANSPORT,4320,Pupil / Client Travel Reimbursement,17/11/2020,3110857374,621.27,Redacted Personal Data
http://statistics.data.gov.uk/id/local-authority/38,Oxfordshire County Council,Support at Home 65+ Physical Support,5698,,04/11/2020,3110848393,621.34,Charterville Care At Home Ltd
http://statistics.data.gov.uk/id/local-authority/38,Oxfordshire County Council,Support at Home U65 MH OBC Contract,5689,,10/11/2020,3110851106,622.13,Response Organisation
http://statistics.data.gov.uk/id/local-authority/38,Oxfordshire County Council,Support at Home 65+ Physical Support,5698,,04/11/2020,3110848269,622.74,Bridges Home Care Ltd
http://statistics.data.gov.uk/id/local-authority/38,Oxfordshire County Council,Support at Home 65+ Physical Support,5899,Social Care - Direct Payments,25/11/2020,3110861231,622.76,Purple Conversation Com In Co (DP)
http://statistics.data.gov.uk/id/local-authority/38,Oxfordshire County Council,Support at Home U65 Learning Disability,5690,,11/11/2020,3110852581,622.88,Style Acre
http://statistics.data.gov.uk/id/local-authority/38,Oxfordshire County Council,FOSTERING MAIN,5549,B*Fostering Allowance - Regulation 38,10/11/2020,3110851730,622.90,Redacted Personal Data
http://statistics.data.gov.uk/id/local-authority/38,Oxfordshire County Council,NURSERY ED FUND,5537,Payments to Other Establishments,09/11/2020,3110849726,622.94,Fran Davis
http://statistics.data.gov.uk/id/local-authority/38,Oxfordshire County Council,,1448,Blackfield Inc & Exp A/c,06/11/2020,3110849293,622.96,OCC One Time Vendor
http://statistics.data.gov.uk/id/local-authority/38,Oxfordshire County Council,Oxford Citywide Cycle & Ped Routes,5526,Payments to Private Contractors,26/11/2020,2200819793,623.00,Skanska Construction UK Ltd Sp
http://statistics.data.gov.uk/id/local-authority/38,Oxfordshire County Council,Support at Home 65+ Other /Soc Isolation,5899,Social Care - Direct Payments,24/11/2020,3110859503,624.00,Redacted Personal Data
http://statistics.data.gov.uk/id/local-authority/38,Oxfordshire County Council,TRANSPORT COSTS,4330,Transport to School Activities,16/11/2020,3110857144,624.00,Her Ride Limited
http://statistics.data.gov.uk/id/local-authority/38,Oxfordshire County Council,TRANSPORT COSTS,4330,Transport to School Activities,09/11/2020,3110852025,624.00,Local Cars Kidlington
http://statistics.data.gov.uk/id/local-authority/38,Oxfordshire County Council,Support at Home 65+ Physical Support,5899,Social Care - Direct Payments,25/11/2020,3110861228,624.00,Purple Conversation Com In Co (DP)
http://statistics.data.gov.uk/id/local-authority/38,Oxfordshire County Council,Support at Home U65 Learning Disability,5899,Social Care - Direct Payments,25/11/2020,3110861325,624.00,Purple Conversation Com In Co (DP)
http://statistics.data.gov.uk/id/local-authority/38,Oxfordshire County Council,Support at Home U65 Physical Support,5899,Social Care - Direct Payments,25/11/2020,3110861661,624.00,Purple Conversation Com In Co (DP)
http://statistics.data.gov.uk/id/local-authority/38,Oxfordshire County Council,Support at Home U65 Learning Disability,5690,,11/11/2020,3110852533,624.00,Style Acre
http://statistics.data.gov.uk/id/local-authority/38,Oxfordshire County Council,Support at Home U65 Learning Disability,5690,,11/11/2020,3110852504,624.00,Turnstyle
http://statistics.data.gov.uk/id/local-authority/38,Oxfordshire County Council,Support at Home U65 Learning Disability,5690,,11/11/2020,3110852516,624.00,Turnstyle
http://statistics.data.gov.uk/id/local-authority/38,Oxfordshire County Council,Support at Home U65 Learning Disability,5899,Social Care - Direct Payments,24/11/2020,3110859709,624.40,Redacted Personal Data
http://statistics.data.gov.uk/id/local-authority/38,Oxfordshire County Council,Support at Home U65 Other /Soc Isolation,5690,,11/11/2020,3110852513,624.90,Turnstyle
http://statistics.data.gov.uk/id/local-authority/38,Oxfordshire County Council,VACANT PROPERTY,3821,Grounds Maintenance Contracts,26/11/2020,2200819566,625.00,Aspire Oxfordshire
http://statistics.data.gov.uk/id/local-authority/38,Oxfordshire County Council,Planned preventative Maintenance,4111,Security Costs,03/11/2020,2200811518,625.00,Darren Bryan Security Services
http://statistics.data.gov.uk/id/local-authority/38,Oxfordshire County Council,SEN TRANSPORT,5227,Other Transport Arrangements,06/11/2020,3110849116,625.00,Oxon Transport Services Ltd
http://statistics.data.gov.uk/id/local-authority/38,Oxfordshire County Council,Support at Home 65+ Physical Support,5693,,04/11/2020,3110847941,625.08,We-Care-Recruitment Ltd
http://statistics.data.gov.uk/id/local-authority/38,Oxfordshire County Council,Support at Home 65+ Physical Support,5689,,10/11/2020,3110850381,627.09,Caremark (West Oxfordshire & Cherwe
http://statistics.data.gov.uk/id/local-authority/38,Oxfordshire County Council,Support at Home 65+ Physical Support,5689,,10/11/2020,3110851152,627.55,AVR (Oxon) Ltd
http://statistics.data.gov.uk/id/local-authority/38,Oxfordshire County Council,Support at Home U65 Learning Disability,5682,,03/11/2020,3110846810,627.71,The Brandon Trust
http://statistics.data.gov.uk/id/local-authority/38,Oxfordshire County Council,Support at Home 65+ Physical Support,5689,,10/11/2020,3110850398,627.96,Caremark (West Oxfordshire & Cherwe
http://statistics.data.gov.uk/id/local-authority/38,Oxfordshire County Council,Support at Home U65 Learning Disability,5899,Social Care - Direct Payments,24/11/2020,3110859628,628.00,Redacted Personal Data
http://statistics.data.gov.uk/id/local-authority/38,Oxfordshire County Council,Support at Home U65 Mental Health,5698,,04/11/2020,3110848618,628.13,KCARE NURSING AGENCY
http://statistics.data.gov.uk/id/local-authority/38,Oxfordshire County Council,MUSEUMS COLLECTIONS,4940,Other Services,23/11/2020,2200817873,628.66,Restore plc
http://statistics.data.gov.uk/id/local-authority/38,Oxfordshire County Council,PLACEMENTS- RELEVANT,5785,Client Lodgings and Accommodation,27/11/2020,3110862673,629.24,Response Organisation
http://statistics.data.gov.uk/id/local-authority/38,Oxfordshire County Council,PLACEMENTS- RELEVANT,5785,Client Lodgings and Accommodation,27/11/2020,3110862674,629.24,Response Organisation
http://statistics.data.gov.uk/id/local-authority/38,Oxfordshire County Council,Community Support Service Wantage,4232,Vehicle Fuel,03/11/2020,2200811213,629.56,Allstar Business Solutions Ltd
http://statistics.data.gov.uk/id/local-authority/38,Oxfordshire County Council,Support at Home U65 Learning Disability,5688,,11/11/2020,3110852700,629.83,ADVANCE HOUSING & SUPPORT LTD
http://statistics.data.gov.uk/id/local-authority/38,Oxfordshire County Council,Support at Home U65 Learning Disability,5688,,11/11/2020,3110852705,629.83,ADVANCE HOUSING & SUPPORT LTD
http://statistics.data.gov.uk/id/local-authority/38,Oxfordshire County Council,Support at Home 65+ Learning Disability,5688,,11/11/2020,3110853424,629.83,Mencap Contracts
http://statistics.data.gov.uk/id/local-authority/38,Oxfordshire County Council,Support at Home U65 Learning Disability,5688,,11/11/2020,3110853512,629.83,Mencap Contracts
http://statistics.data.gov.uk/id/local-authority/38,Oxfordshire County Council,Support at Home U65 Learning Disability,5688,,11/11/2020,3110853569,629.83,Mencap Contracts
http://statistics.data.gov.uk/id/local-authority/38,Oxfordshire County Council,Support at Home U65 Learning Disability,5688,,11/11/2020,3110854432,629.83,The Brandon Trust
http://statistics.data.gov.uk/id/local-authority/38,Oxfordshire County Council,Support at Home 65+ Physical Support,5698,,04/11/2020,3110848189,629.87,Acquire Care Ltd
http://statistics.data.gov.uk/id/local-authority/38,Oxfordshire County Council,Support at Home U65 MH OBC Contract,5691,,11/11/2020,3110852325,630.00,BANTU Carers Ltd
http://statistics.data.gov.uk/id/local-authority/38,Oxfordshire County Council,SEN TRANSPORT,5227,Other Transport Arrangements,30/11/2020,3110859312,630.00,C&M Management Services Ltd
http://statistics.data.gov.uk/id/local-authority/38,Oxfordshire County Council,Support at Home U65 Learning Disability,5227,Other Transport Arrangements,12/11/2020,3110856753,630.00,Chauffeur Executives Oxford Limited
http://statistics.data.gov.uk/id/local-authority/38,Oxfordshire County Council,SEN TRANSPORT,5227,Other Transport Arrangements,20/11/2020,3110859200,630.00,Crown Cabs Travel Ltd
http://statistics.data.gov.uk/id/local-authority/38,Oxfordshire County Council,SEN TRANSPORT,5227,Other Transport Arrangements,20/11/2020,3110859213,630.00,Crown Cabs Travel Ltd
http://statistics.data.gov.uk/id/local-authority/38,Oxfordshire County Council,Support at Home U65 Learning Disability,5227,Other Transport Arrangements,30/11/2020,3110862830,630.00,Faringdon Cars
http://statistics.data.gov.uk/id/local-authority/38,Oxfordshire County Council,COVID 19 Infection Control 2,5689,,30/11/2020,3110863013,630.00,Housing&care21
http://statistics.data.gov.uk/id/local-authority/38,Oxfordshire County Council,Fire Protection,3100,Educational and Vocational Training,03/11/2020,2200811401,630.00,K P Hughes and Associates Ltd
http://statistics.data.gov.uk/id/local-authority/38,Oxfordshire County Council,Fire Protection,3100,Educational and Vocational Training,03/11/2020,2200811402,630.00,K P Hughes and Associates Ltd
http://statistics.data.gov.uk/id/local-authority/38,Oxfordshire County Council,Oxfordshire Adoption Support Fund,4859,Medical and Counselling Fees,30/11/2020,2200820407,630.00,Laura Evers
http://statistics.data.gov.uk/id/local-authority/38,Oxfordshire County Council,COVID 19 Infection Control 2,5689,,30/11/2020,3110863037,630.00,Orders of St John Care Trust
http://statistics.data.gov.uk/id/local-authority/38,Oxfordshire County Council,POST 16 SEN,4330,Transport to School Activities,16/11/2020,3110857116,630.00,Oxon Transport Services Ltd
http://statistics.data.gov.uk/id/local-authority/38,Oxfordshire County Council,COVID 19 Infection Control 2,5689,,30/11/2020,3110863046,630.00,Real Life Options
http://statistics.data.gov.uk/id/local-authority/38,Oxfordshire County Council,SEN TRANSPORT,5227,Other Transport Arrangements,30/11/2020,3110861770,630.00,Town Cars
http://statistics.data.gov.uk/id/local-authority/38,Oxfordshire County Council,LAC PUPIL PREMIUM,5537,Payments to Other Establishments,25/11/2020,3110861673,630.00,Wheatley Park School
http://statistics.data.gov.uk/id/local-authority/38,Oxfordshire County Council,Support at Home 65+ Memory & Cognition,5689,,10/11/2020,3110850593,630.24,Golden Services Care Ltd
http://statistics.data.gov.uk/id/local-authority/38,Oxfordshire County Council,Support at Home 65+ Physical Support,5689,,10/11/2020,3110850776,630.45,Kare Plus Oxford
http://statistics.data.gov.uk/id/local-authority/38,Oxfordshire County Council,Support at Home 65+ Physical Support,5693,,04/11/2020,3110847720,630.56,1st Homecare (Oxford) Ltd
http://statistics.data.gov.uk/id/local-authority/38,Oxfordshire County Council,Contingency Home Care,5689,,10/11/2020,3110850934,630.70,Oxford University Hospitals NHS FT
http://statistics.data.gov.uk/id/local-authority/38,Oxfordshire County Council,Support at Home 65+ Physical Support,5698,,04/11/2020,3110848213,630.89,Bridges Home Care Ltd
http://statistics.data.gov.uk/id/local-authority/38,Oxfordshire County Council,COMM DRAWDOWN FUNDNG,8102,Payments to main contractor,26/11/2020,2200819782,631.07,Skanska Construction UK Ltd Sp
http://statistics.data.gov.uk/id/local-authority/38,Oxfordshire County Council,Support at Home 65+ Memory & Cognition,5899,Social Care - Direct Payments,25/11/2020,3110861291,631.20,Purple Conversation Com In Co (DP)
http://statistics.data.gov.uk/id/local-authority/38,Oxfordshire County Council,Support at Home 65+ Physical Support,5693,,11/11/2020,3110852142,631.40,Heritage Healthcare Oxford - South
http://statistics.data.gov.uk/id/local-authority/38,Oxfordshire County Council,Support at Home 65+ Physical Support,5689,,10/11/2020,3110850363,631.90,Caremark (West Oxfordshire & Cherwe
http://statistics.data.gov.uk/id/local-authority/38,Oxfordshire County Council,Urgent Response,5689,,10/11/2020,3110850525,632.27,Day and Nightcare Assistance
http://statistics.data.gov.uk/id/local-authority/38,Oxfordshire County Council,Support at Home 65+ Physical Support,5698,,04/11/2020,3110848280,632.44,Bridges Home Care Ltd
http://statistics.data.gov.uk/id/local-authority/38,Oxfordshire County Council,Delegated Health Tasks  - Over 65,5691,,10/11/2020,3110851865,632.72,Bluebird Care (Oxford South & West)
http://statistics.data.gov.uk/id/local-authority/38,Oxfordshire County Council,Delegated Health Tasks  - Over 65,5691,,10/11/2020,3110851911,632.72,Bluebird Care (Oxford South & West)
http://statistics.data.gov.uk/id/local-authority/38,Oxfordshire County Council,Delegated Health Tasks  - Under 65,5691,,10/11/2020,3110851915,632.72,Bluebird Care (Oxford South & West)
http://statistics.data.gov.uk/id/local-authority/38,Oxfordshire County Council,Continuing Care - Support at Home - U65,5691,,13/11/2020,3110857538,632.72,Bluebird Care (Oxford South & West)
http://statistics.data.gov.uk/id/local-authority/38,Oxfordshire County Council,Delegated Health Tasks  - Over 65,5691,,20/11/2020,3110859392,632.72,Bluebird Care (Oxford South & West)
http://statistics.data.gov.uk/id/local-authority/38,Oxfordshire County Council,Delegated Health Tasks  - Over 65,5691,,20/11/2020,3110859396,632.72,Bluebird Care (Oxford South & West)
http://statistics.data.gov.uk/id/local-authority/38,Oxfordshire County Council,Delegated Health Tasks  - Under 65,5691,,25/11/2020,3110862112,632.72,Bluebird Care (Oxford South & West)
http://statistics.data.gov.uk/id/local-authority/38,Oxfordshire County Council,Support at Home 65+ Physical Support,5698,,04/11/2020,3110848497,632.76,Day & Night Care Assistance
http://statistics.data.gov.uk/id/local-authority/38,Oxfordshire County Council,Support at Home U65 Physical Support,5696,,03/11/2020,3110846623,632.94,Orders of St John Care Trust
http://statistics.data.gov.uk/id/local-authority/38,Oxfordshire County Council,FLEET OPERATIONS,4210,Vehicles and Plant - Repairs and Main,10/11/2020,2200814015,632.96,Cherwell District Council
http://statistics.data.gov.uk/id/local-authority/38,Oxfordshire County Council,SHARED LIVES,5555,Payments to Carers,11/11/2020,3110852674,633.86,Redacted Personal Data
http://statistics.data.gov.uk/id/local-authority/38,Oxfordshire County Council,NURSERY ED FUND,5537,Payments to Other Establishments,09/11/2020,3110850088,634.48,Bev D�urberville
http://statistics.data.gov.uk/id/local-authority/38,Oxfordshire County Council,FOSTERING MAIN,5227,Other Transport Arrangements,03/11/2020,3110847611,636.14,Redacted Personal Data
http://statistics.data.gov.uk/id/local-authority/38,Oxfordshire County Council,Support at Home 65+ Physical Support,5696,,04/11/2020,3110847763,636.50,1st Homecare (Oxford) Ltd
http://statistics.data.gov.uk/id/local-authority/38,Oxfordshire County Council,Support at Home 65+ Physical Support,5698,,04/11/2020,3110848225,636.71,Bridges Home Care Ltd
http://statistics.data.gov.uk/id/local-authority/38,Oxfordshire County Council,Support at Home U65 Learning Disability,5696,,03/11/2020,3110846772,636.79,Orders of St John Care Trust
http://statistics.data.gov.uk/id/local-authority/38,Oxfordshire County Council,LIBRARY COLLECTIONS,4539,"Books, DVDs and CDs",17/11/2020,3110857700,636.87,ASKEWS & HOLTS LIBRARY SERVICES LTD
http://statistics.data.gov.uk/id/local-authority/38,Oxfordshire County Council,Family Solutions Plus Non-staff - Centra,5394,Other Expenses,26/11/2020,3500074078,636.90,Redacted Personal Data
http://statistics.data.gov.uk/id/local-authority/38,Oxfordshire County Council,L&D CORE PROGRAMME,3100,Educational and Vocational Training,20/11/2020,2200817597,637.00,Premier Partnership
http://statistics.data.gov.uk/id/local-authority/38,Oxfordshire County Council,SEN TRANSPORT,4320,Pupil / Client Travel Reimbursement,17/11/2020,3110857390,637.67,Redacted Personal Data
http://statistics.data.gov.uk/id/local-authority/38,Oxfordshire County Council,COMM DRAWDOWN FUNDNG,8004,Design Consultant,26/11/2020,2200819628,638.00,Skanska Construction UK Ltd Sp
http://statistics.data.gov.uk/id/local-authority/38,Oxfordshire County Council,Support at Home 65+ Physical Support,5696,,04/11/2020,3110847789,638.16,Housing&care21
http://statistics.data.gov.uk/id/local-authority/38,Oxfordshire County Council,Support at Home 65+ Physical Support,5689,,10/11/2020,3110850347,638.25,Care Outlook Ltd
http://statistics.data.gov.uk/id/local-authority/38,Oxfordshire County Council,Support at Home 65+ Physical Support,5689,,10/11/2020,3110850830,638.94,Lifecarers Limited
http://statistics.data.gov.uk/id/local-authority/38,Oxfordshire County Council,Support at Home 65+ Physical Support,5698,,04/11/2020,3110848209,639.04,Bridges Home Care Ltd
http://statistics.data.gov.uk/id/local-authority/38,Oxfordshire County Council,Support at Home 65+ Physical Support,5899,Social Care - Direct Payments,24/11/2020,3110860049,639.52,Redacted Personal Data
http://statistics.data.gov.uk/id/local-authority/38,Oxfordshire County Council,Support at Home 65+ Physical Support,5693,,11/11/2020,3110852122,639.80,GAIN HEALTHCARE LTD
http://statistics.data.gov.uk/id/local-authority/38,Oxfordshire County Council,SEN TRANSPORT,5227,Other Transport Arrangements,03/11/2020,3110846860,640.00,A2B Castle Cars Ltd
http://statistics.data.gov.uk/id/local-authority/38,Oxfordshire County Council,SEN TRANSPORT,5227,Other Transport Arrangements,26/11/2020,3110862152,640.00,A2B Castle Cars Ltd
http://statistics.data.gov.uk/id/local-authority/38,Oxfordshire County Council,SEN TRANSPORT,5227,Other Transport Arrangements,03/11/2020,3110846601,640.00,Abingdon Taxis FKN Autotaxis
http://statistics.data.gov.uk/id/local-authority/38,Oxfordshire County Council,SEN TRANSPORT,5227,Other Transport Arrangements,03/11/2020,3110846605,640.00,Abingdon Taxis FKN Autotaxis
http://statistics.data.gov.uk/id/local-authority/38,Oxfordshire County Council,Support at Home 65+ Physical Support,5899,Social Care - Direct Payments,24/11/2020,3110859600,640.00,Redacted Personal Data
http://statistics.data.gov.uk/id/local-authority/38,Oxfordshire County Council,SEN TRANSPORT,5227,Other Transport Arrangements,17/11/2020,3110857617,640.00,Banbury Taxis
http://statistics.data.gov.uk/id/local-authority/38,Oxfordshire County Council,SEN TRANSPORT,5227,Other Transport Arrangements,11/11/2020,3110852051,640.00,Browns Taxis Ltd
http://statistics.data.gov.uk/id/local-authority/38,Oxfordshire County Council,SEN TRANSPORT,5227,Other Transport Arrangements,02/11/2020,3110846175,640.00,Henley Taxis Ltd
http://statistics.data.gov.uk/id/local-authority/38,Oxfordshire County Council,SEN TRANSPORT,5227,Other Transport Arrangements,02/11/2020,3110846196,640.00,Henley Taxis Ltd
http://statistics.data.gov.uk/id/local-authority/38,Oxfordshire County Council,Support at Home U65 Learning Disability,5899,Social Care - Direct Payments,24/11/2020,3110859761,640.00,Redacted Personal Data
http://statistics.data.gov.uk/id/local-authority/38,Oxfordshire County Council,Oxfordshire Adoption Support Fund,4859,Medical and Counselling Fees,16/11/2020,2200815704,640.00,Laura Evers
http://statistics.data.gov.uk/id/local-authority/38,Oxfordshire County Council,Oxfordshire Adoption Support Fund,4859,Medical and Counselling Fees,19/11/2020,2200817291,640.00,Laura Evers
http://statistics.data.gov.uk/id/local-authority/38,Oxfordshire County Council,SEN TRANSPORT,5227,Other Transport Arrangements,12/11/2020,3110856691,640.00,Luxicars Ltd
http://statistics.data.gov.uk/id/local-authority/38,Oxfordshire County Council,SEN TRANSPORT,5227,Other Transport Arrangements,12/11/2020,3110856699,640.00,Luxicars Ltd
http://statistics.data.gov.uk/id/local-authority/38,Oxfordshire County Council,SEN TRANSPORT,5227,Other Transport Arrangements,02/11/2020,3110846214,640.00,Oxfordshire Travel Ltd
http://statistics.data.gov.uk/id/local-authority/38,Oxfordshire County Council,SEN TRANSPORT,5227,Other Transport Arrangements,06/11/2020,3110849070,640.00,Oxon Transport Services Ltd
http://statistics.data.gov.uk/id/local-authority/38,Oxfordshire County Council,SEN TRANSPORT,5227,Other Transport Arrangements,06/11/2020,3110849074,640.00,Oxon Transport Services Ltd
http://statistics.data.gov.uk/id/local-authority/38,Oxfordshire County Council,SEN TRANSPORT,5227,Other Transport Arrangements,06/11/2020,3110849119,640.00,Oxon Transport Services Ltd
http://statistics.data.gov.uk/id/local-authority/38,Oxfordshire County Council,SEN TRANSPORT,5227,Other Transport Arrangements,06/11/2020,3110849121,640.00,Oxon Transport Services Ltd
http://statistics.data.gov.uk/id/local-authority/38,Oxfordshire County Council,SEN TRANSPORT,5227,Other Transport Arrangements,06/11/2020,3110849185,640.00,Oxon Transport Services Ltd
http://statistics.data.gov.uk/id/local-authority/38,Oxfordshire County Council,SEN TRANSPORT,5227,Other Transport Arrangements,06/11/2020,3110849189,640.00,Oxon Transport Services Ltd
http://statistics.data.gov.uk/id/local-authority/38,Oxfordshire County Council,SEN TRANSPORT,5227,Other Transport Arrangements,06/11/2020,3110849192,640.00,Oxon Transport Services Ltd
http://statistics.data.gov.uk/id/local-authority/38,Oxfordshire County Council,SEN TRANSPORT,5227,Other Transport Arrangements,06/11/2020,3110849206,640.00,Oxon Transport Services Ltd
http://statistics.data.gov.uk/id/local-authority/38,Oxfordshire County Council,SEN TRANSPORT,5227,Other Transport Arrangements,06/11/2020,3110849220,640.00,Oxon Transport Services Ltd
http://statistics.data.gov.uk/id/local-authority/38,Oxfordshire County Council,Support at Home U65 Physical Support,5899,Social Care - Direct Payments,25/11/2020,3110860811,640.00,Purple Conversation Com In Co (DP)
http://statistics.data.gov.uk/id/local-authority/38,Oxfordshire County Council,Support at Home U65 Physical Support,5899,Social Care - Direct Payments,25/11/2020,3110861086,640.00,Purple Conversation Com In Co (DP)
http://statistics.data.gov.uk/id/local-authority/38,Oxfordshire County Council,Support at Home U65 Physical Support,5899,Social Care - Direct Payments,25/11/2020,3110861345,640.00,Purple Conversation Com In Co (DP)
http://statistics.data.gov.uk/id/local-authority/38,Oxfordshire County Council,SEN TRANSPORT,5227,Other Transport Arrangements,12/11/2020,3110856675,640.00,Schon Executive Cars Ltd
http://statistics.data.gov.uk/id/local-authority/38,Oxfordshire County Council,SEN TRANSPORT,5227,Other Transport Arrangements,19/11/2020,3110858786,640.00,The Oxfordshire Taxi Company Ltd T/
http://statistics.data.gov.uk/id/local-authority/38,Oxfordshire County Council,SEN TRANSPORT,5227,Other Transport Arrangements,19/11/2020,3110858795,640.00,The Oxfordshire Taxi Company Ltd T/
http://statistics.data.gov.uk/id/local-authority/38,Oxfordshire County Council,SEN TRANSPORT,5227,Other Transport Arrangements,19/11/2020,3110858811,640.00,The Oxfordshire Taxi Company Ltd T/
http://statistics.data.gov.uk/id/local-authority/38,Oxfordshire County Council,SEN TRANSPORT,5227,Other Transport Arrangements,11/11/2020,3110852034,640.00,Town Cars
http://statistics.data.gov.uk/id/local-authority/38,Oxfordshire County Council,TRANSPORT GENERAL,4232,Vehicle Fuel,03/11/2020,2200811311,640.42,Allstar Business Solutions Ltd
http://statistics.data.gov.uk/id/local-authority/38,Oxfordshire County Council,Support at Home 65+ Physical Support,5689,,10/11/2020,3110850246,640.82,Allied Health-Services Limited
http://statistics.data.gov.uk/id/local-authority/38,Oxfordshire County Council,Support at Home 65+ Physical Support,5698,,04/11/2020,3110848694,641.09,Oxford Private Care
http://statistics.data.gov.uk/id/local-authority/38,Oxfordshire County Council,ADMIN SERVICES,4407,Equipment,03/11/2020,2200811214,641.30,Glanville Picture Framing Company
http://statistics.data.gov.uk/id/local-authority/38,Oxfordshire County Council,Support at Home U65 Learning Disability,5690,,11/11/2020,3110852470,641.83,MacIntyre Care (Womaston)
http://statistics.data.gov.uk/id/local-authority/38,Oxfordshire County Council,Support at Home 65+ Physical Support,5698,,04/11/2020,3110848265,642.14,Bridges Home Care Ltd
http://statistics.data.gov.uk/id/local-authority/38,Oxfordshire County Council,Support at Home 65+ Physical Support,5681,,11/11/2020,3110855067,643.00,Orders of St John
http://statistics.data.gov.uk/id/local-authority/38,Oxfordshire County Council,Support at Home 65+ Physical Support,5696,,03/11/2020,3110846701,643.02,Orders of St John Care Trust
http://statistics.data.gov.uk/id/local-authority/38,Oxfordshire County Council,Support at Home 65+ Physical Support,5698,,04/11/2020,3110848261,643.30,Bridges Home Care Ltd
http://statistics.data.gov.uk/id/local-authority/38,Oxfordshire County Council,Support at Home U65 Physical Support,5689,,10/11/2020,3110850727,643.63,Home Helpers Care Ltd
http://statistics.data.gov.uk/id/local-authority/38,Oxfordshire County Council,Support at Home 65+ Mental Health,5899,Social Care - Direct Payments,25/11/2020,3110860786,644.00,Purple Conversation Com In Co (DP)
http://statistics.data.gov.uk/id/local-authority/38,Oxfordshire County Council,Support at Home 65+ Physical Support,5899,Social Care - Direct Payments,25/11/2020,3110860947,644.00,Purple Conversation Com In Co (DP)
http://statistics.data.gov.uk/id/local-authority/38,Oxfordshire County Council,Support at Home U65 Physical Support,5899,Social Care - Direct Payments,25/11/2020,3110861378,644.00,Purple Conversation Com In Co (DP)
http://statistics.data.gov.uk/id/local-authority/38,Oxfordshire County Council,Support at Home U65 Mental Health,5899,Social Care - Direct Payments,25/11/2020,3110861519,644.00,Purple Conversation Com In Co (DP)
http://statistics.data.gov.uk/id/local-authority/38,Oxfordshire County Council,Support at Home 65+ Physical Support,5689,,10/11/2020,3110850638,644.25,Greigcare Home Service
http://statistics.data.gov.uk/id/local-authority/38,Oxfordshire County Council,Support at Home 65+ Physical Support,5689,,10/11/2020,3110850287,645.42,Amber Healthcare Personnel Ltd
http://statistics.data.gov.uk/id/local-authority/38,Oxfordshire County Council,Support at Home 65+ Physical Support,5689,,10/11/2020,3110850457,645.49,Casa Care Ltd
http://statistics.data.gov.uk/id/local-authority/38,Oxfordshire County Council,Support at Home U65 Other /Soc Isolation,5899,Social Care - Direct Payments,25/11/2020,3110861473,645.60,Purple Conversation Com In Co (DP)
http://statistics.data.gov.uk/id/local-authority/38,Oxfordshire County Council,SEN TRANSPORT,5227,Other Transport Arrangements,02/11/2020,3110846195,646.00,Oxfordshire Travel Ltd
http://statistics.data.gov.uk/id/local-authority/38,Oxfordshire County Council,Support at Home U65 Learning Disability,5899,Social Care - Direct Payments,25/11/2020,3110860871,646.12,Purple Conversation Com In Co (DP)
http://statistics.data.gov.uk/id/local-authority/38,Oxfordshire County Council,LIBRARY COLLECTIONS,4539,"Books, DVDs and CDs",17/11/2020,3110857709,646.14,ASKEWS & HOLTS LIBRARY SERVICES LTD
http://statistics.data.gov.uk/id/local-authority/38,Oxfordshire County Council,Support at Home 65+ Physical Support,5899,Social Care - Direct Payments,25/11/2020,3110861118,646.28,Purple Conversation Com In Co (DP)
http://statistics.data.gov.uk/id/local-authority/38,Oxfordshire County Council,Support at Home U65 Learning Disability,5899,Social Care - Direct Payments,24/11/2020,3110859855,646.60,Redacted Personal Data
http://statistics.data.gov.uk/id/local-authority/38,Oxfordshire County Council,Support at Home U65 Learning Disability,5899,Social Care - Direct Payments,24/11/2020,3110859854,646.60,Redacted Personal Data
http://statistics.data.gov.uk/id/local-authority/38,Oxfordshire County Council,Support at Home U65 Other /Soc Isolation,5899,Social Care - Direct Payments,25/11/2020,3110860935,648.00,Purple Conversation Com In Co (DP)
http://statistics.data.gov.uk/id/local-authority/38,Oxfordshire County Council,SEN TRANSPORT,5227,Other Transport Arrangements,19/11/2020,3110858911,648.00,The Oxfordshire Taxi Company Ltd T/
http://statistics.data.gov.uk/id/local-authority/38,Oxfordshire County Council,TRAFF SIGNALS MTCE,4531,Materials,06/11/2020,2200812768,648.15,Telent Technology Services Limited
http://statistics.data.gov.uk/id/local-authority/38,Oxfordshire County Council,,1325,Attachment of Earnings,06/11/2020,3110849445,648.65,DWP DEPT MANAGEMENT
http://statistics.data.gov.uk/id/local-authority/38,Oxfordshire County Council,Support at Home 65+ Physical Support,5689,,10/11/2020,3110850821,648.98,Lifecarers Limited
http://statistics.data.gov.uk/id/local-authority/38,Oxfordshire County Council,,1441,Uncleared Misc Income Receipts,30/11/2020,3110862973,649.20,NYS CORPORATE LTD
http://statistics.data.gov.uk/id/local-authority/38,Oxfordshire County Council,Urgent Response,5689,,10/11/2020,3110850535,649.31,Day and Nightcare Assistance
http://statistics.data.gov.uk/id/local-authority/38,Oxfordshire County Council,Support at Home 65+ Physical Support,5698,,04/11/2020,3110848271,649.51,Bridges Home Care Ltd
http://statistics.data.gov.uk/id/local-authority/38,Oxfordshire County Council,Support at Home U65 Autism /Abated,5691,,17/11/2020,3110857669,649.60,Style Acre
http://statistics.data.gov.uk/id/local-authority/38,Oxfordshire County Council,ELECTRIC AVENUE,4111,Security Costs,03/11/2020,2200811633,649.75,Securipol Ltd
http://statistics.data.gov.uk/id/local-authority/38,Oxfordshire County Council,INCIDENT RESPONSE,4531,Materials,23/11/2020,2200818170,650.00,AJB Tree Care
http://statistics.data.gov.uk/id/local-authority/38,Oxfordshire County Council,Support at Home U65 Physical Support,5899,Social Care - Direct Payments,24/11/2020,3110859644,650.00,Redacted Personal Data
http://statistics.data.gov.uk/id/local-authority/38,Oxfordshire County Council,TRAFF SIGNALS MTCE,5526,Payments to Private Contractors,27/11/2020,2200820090,650.00,JSTSM Ltd
http://statistics.data.gov.uk/id/local-authority/38,Oxfordshire County Council,LANDLORD & TENANT,3945,Rent,01/11/2020,3500073701,650.00,Old Marston Village Hall
http://statistics.data.gov.uk/id/local-authority/38,Oxfordshire County Council,MAINSTREAM-SECONDARY,4322,"Season Tickets - Bus, Rail & Ferry",27/11/2020,3110862896,650.00,Pulham & Sons (Coaches) Ltd
http://statistics.data.gov.uk/id/local-authority/38,Oxfordshire County Council,Support at Home 65+ Memory & Cognition,5689,,10/11/2020,3110850991,650.04,Pechiv Ltd
http://statistics.data.gov.uk/id/local-authority/38,Oxfordshire County Council,Planned preventative Maintenance,3787,Premises Repairs,26/11/2020,2200819493,650.10,Windrush Door & Window Services Ltd
http://statistics.data.gov.uk/id/local-authority/38,Oxfordshire County Council,Support at Home U65 Physical Support,5899,Social Care - Direct Payments,25/11/2020,3110861131,650.24,Purple Conversation Com In Co (DP)
http://statistics.data.gov.uk/id/local-authority/38,Oxfordshire County Council,Support at Home 65+ Physical Support,5693,,04/11/2020,3110847918,650.44,T.HOW HOMELY LTD
http://statistics.data.gov.uk/id/local-authority/38,Oxfordshire County Council,Support at Home 65+ Physical Support,5693,,04/11/2020,3110847919,650.44,T.HOW HOMELY LTD
http://statistics.data.gov.uk/id/local-authority/38,Oxfordshire County Council,Support at Home U65 Memory & Cognition,5899,Social Care - Direct Payments,25/11/2020,3110861303,650.92,Purple Conversation Com In Co (DP)
http://statistics.data.gov.uk/id/local-authority/38,Oxfordshire County Council,ICT Operations & Maintenance,5072,Telephone - Equipment,25/11/2020,2200819218,650.97,Vodafone
http://statistics.data.gov.uk/id/local-authority/38,Oxfordshire County Council,Support at Home 65+ Physical Support,5689,,10/11/2020,3110850333,651.38,Care Outlook Ltd
http://statistics.data.gov.uk/id/local-authority/38,Oxfordshire County Council,Support at Home 65+ Physical Support,5698,,04/11/2020,3110848247,651.84,Bridges Home Care Ltd
http://statistics.data.gov.uk/id/local-authority/38,Oxfordshire County Council,Support at Home 65+ Physical Support,5698,,04/11/2020,3110848351,651.90,Charterville Care At Home Ltd
http://statistics.data.gov.uk/id/local-authority/38,Oxfordshire County Council,Support at Home 65+ Physical Support,5689,,10/11/2020,3110850615,652.42,Goldsmith Personnel Ltd
http://statistics.data.gov.uk/id/local-authority/38,Oxfordshire County Council,PMO,5039,ICT Services,10/11/2020,2200813989,652.82,INSIGHT DIRECT (UK) LIMITED
http://statistics.data.gov.uk/id/local-authority/38,Oxfordshire County Council,Support at Home U65 MH OBC Contract,5689,,10/11/2020,3110851121,652.88,Response Organisation
http://statistics.data.gov.uk/id/local-authority/38,Oxfordshire County Council,COMM DRAWDOWN FUNDNG,8004,Design Consultant,26/11/2020,2200819779,653.00,Skanska Construction UK Ltd Sp
http://statistics.data.gov.uk/id/local-authority/38,Oxfordshire County Council,Support at Home U65 Physical Support,5689,,10/11/2020,3110850195,653.21,Alina Homecare
http://statistics.data.gov.uk/id/local-authority/38,Oxfordshire County Council,Support at Home U65 Learning Disability,5688,,11/11/2020,3110853544,653.91,Mencap Contracts
http://statistics.data.gov.uk/id/local-authority/38,Oxfordshire County Council,Support at Home 65+ Physical Support,5689,,10/11/2020,3110850341,654.00,Care Outlook Ltd
http://statistics.data.gov.uk/id/local-authority/38,Oxfordshire County Council,Support at Home 65+ Sensory Support,5698,,04/11/2020,3110848602,654.75,KCARE NURSING AGENCY
http://statistics.data.gov.uk/id/local-authority/38,Oxfordshire County Council,Support at Home 65+ Physical Support,5689,,10/11/2020,3110850331,654.94,Care Outlook Ltd
http://statistics.data.gov.uk/id/local-authority/38,Oxfordshire County Council,Support at Home 65+ Physical Support,5696,,03/11/2020,3110846683,655.16,Orders of St John Care Trust
http://statistics.data.gov.uk/id/local-authority/38,Oxfordshire County Council,Support at Home 65+ Physical Support,5698,,04/11/2020,3110848398,655.89,Charterville Care At Home Ltd
http://statistics.data.gov.uk/id/local-authority/38,Oxfordshire County Council,Support at Home U65 Learning Disability,5899,Social Care - Direct Payments,24/11/2020,3110859708,656.00,Redacted Personal Data
http://statistics.data.gov.uk/id/local-authority/38,Oxfordshire County Council,SEN TRANSPORT,5227,Other Transport Arrangements,06/11/2020,3110849388,656.00,OMC GLOBAL LIMITED
http://statistics.data.gov.uk/id/local-authority/38,Oxfordshire County Council,SEN TRANSPORT,5227,Other Transport Arrangements,06/11/2020,3110849145,656.00,Oxon Transport Services Ltd
http://statistics.data.gov.uk/id/local-authority/38,Oxfordshire County Council,Support at Home 65+ Mental Health,5899,Social Care - Direct Payments,25/11/2020,3110861594,656.00,Purple Conversation Com In Co (DP)
http://statistics.data.gov.uk/id/local-authority/38,Oxfordshire County Council,Support at Home U65 Physical Support,5698,,04/11/2020,3110848391,656.01,Charterville Care At Home Ltd
http://statistics.data.gov.uk/id/local-authority/38,Oxfordshire County Council,UASC 16&17,5604,,25/11/2020,3110861892,657.14,KEY2 FUTURES LTD
http://statistics.data.gov.uk/id/local-authority/38,Oxfordshire County Council,Support at Home U65 Physical Support,5689,,10/11/2020,3110850833,657.14,Lifecarers Limited
http://statistics.data.gov.uk/id/local-authority/38,Oxfordshire County Council,Support at Home 65+ Memory & Cognition,5689,,10/11/2020,3110850754,657.53,Home Helpers Care Ltd
http://statistics.data.gov.uk/id/local-authority/38,Oxfordshire County Council,Support at Home 65+ Physical Support,5689,,10/11/2020,3110850757,657.93,Home Helpers Care Ltd
http://statistics.data.gov.uk/id/local-authority/38,Oxfordshire County Council,Support at Home 65+ Learning Disability,5899,Social Care - Direct Payments,25/11/2020,3110861491,658.00,Purple Conversation Com In Co (DP)
http://statistics.data.gov.uk/id/local-authority/38,Oxfordshire County Council,Support at Home 65+ Physical Support,5689,,10/11/2020,3110850678,658.13,Greigcare Home Service
http://statistics.data.gov.uk/id/local-authority/38,Oxfordshire County Council,VACANT PROPERTY,4000,Council Tax,26/11/2020,3500073977,659.00,SODC - Council Tax
http://statistics.data.gov.uk/id/local-authority/38,Oxfordshire County Council,Support at Home U65 Memory & Cognition,5899,Social Care - Direct Payments,25/11/2020,3110861636,659.20,Purple Conversation Com In Co (DP)
http://statistics.data.gov.uk/id/local-authority/38,Oxfordshire County Council,Support at Home U65 Physical Support,5698,,04/11/2020,3110848324,659.33,Charterville Care At Home Ltd
http://statistics.data.gov.uk/id/local-authority/38,Oxfordshire County Council,Support at Home 65+ Physical Support,5689,,10/11/2020,3110850395,659.45,Caremark (West Oxfordshire & Cherwe
http://statistics.data.gov.uk/id/local-authority/38,Oxfordshire County Council,Support at Home 65+ Physical Support,5698,,04/11/2020,3110848390,659.71,Charterville Care At Home Ltd
http://statistics.data.gov.uk/id/local-authority/38,Oxfordshire County Council,RECRUITMENT+MEDICALS,4859,Medical and Counselling Fees,10/11/2020,2200813978,659.75,People Asset Management
http://statistics.data.gov.uk/id/local-authority/38,Oxfordshire County Council,RECRUITMENT+MEDICALS,4859,Medical and Counselling Fees,20/11/2020,2200817705,659.75,People Asset Management
http://statistics.data.gov.uk/id/local-authority/38,Oxfordshire County Council,Support at Home 65+ Physical Support,5698,,04/11/2020,3110848676,659.79,Oxford Private Care
http://statistics.data.gov.uk/id/local-authority/38,Oxfordshire County Council,,1441,Uncleared Misc Income Receipts,27/11/2020,3110862769,660.00,Buckinghamshire Learning Trust
http://statistics.data.gov.uk/id/local-authority/38,Oxfordshire County Council,Support at Home U65 MH OBC Contract,5899,Social Care - Direct Payments,12/11/2020,3110856717,660.00,Redacted Personal Data
http://statistics.data.gov.uk/id/local-authority/38,Oxfordshire County Council,Support at Home 65+ Other /Soc Isolation,5899,Social Care - Direct Payments,24/11/2020,3110859737,660.00,Redacted Personal Data
http://statistics.data.gov.uk/id/local-authority/38,Oxfordshire County Council,SEN TRANSPORT,5227,Other Transport Arrangements,06/11/2020,3110849173,660.00,Oxon Transport Services Ltd
http://statistics.data.gov.uk/id/local-authority/38,Oxfordshire County Council,L&D CORE PROGRAMME,3100,Educational and Vocational Training,13/11/2020,2200815438,660.00,Premier Partnership
http://statistics.data.gov.uk/id/local-authority/38,Oxfordshire County Council,Support at Home U65 Learning Disability,5899,Social Care - Direct Payments,25/11/2020,3110861021,660.00,Purple Conversation Com In Co (DP)
http://statistics.data.gov.uk/id/local-authority/38,Oxfordshire County Council,Support at Home 65+ Physical Support,5899,Social Care - Direct Payments,25/11/2020,3110861568,660.00,Purple Conversation Com In Co (DP)
http://statistics.data.gov.uk/id/local-authority/38,Oxfordshire County Council,SEN TRANSPORT,5227,Other Transport Arrangements,17/11/2020,3110857357,660.00,R & S Travel Services Ltd T/A A 2 Z
http://statistics.data.gov.uk/id/local-authority/38,Oxfordshire County Council,COMM DRAWDOWN FUNDNG,8004,Design Consultant,26/11/2020,2200819630,660.00,Skanska Construction UK Ltd Sp
http://statistics.data.gov.uk/id/local-authority/38,Oxfordshire County Council,COVID 19 Infection Control 2,5689,,30/11/2020,3110863003,660.00,The Camden Society
http://statistics.data.gov.uk/id/local-authority/38,Oxfordshire County Council,SEN TRANSPORT,4330,Transport to School Activities,19/11/2020,3110858894,660.00,The Oxfordshire Taxi Company Ltd T/
http://statistics.data.gov.uk/id/local-authority/38,Oxfordshire County Council,COVID 19 Infection Control 2,5689,,30/11/2020,3110863014,660.00,We-Care-Recruitment Ltd
http://statistics.data.gov.uk/id/local-authority/38,Oxfordshire County Council,Support at Home 65+ Physical Support,5689,,10/11/2020,3110850606,660.23,Goldsmith Personnel Ltd
http://statistics.data.gov.uk/id/local-authority/38,Oxfordshire County Council,Support at Home 65+ Physical Support,5689,,10/11/2020,3110850669,660.38,Greigcare Home Service
http://statistics.data.gov.uk/id/local-authority/38,Oxfordshire County Council,Support at Home 65+ Physical Support,5689,,10/11/2020,3110850190,660.56,Alina Homecare
http://statistics.data.gov.uk/id/local-authority/38,Oxfordshire County Council,CONTRACT MANAGEMENT,4001,Uniform Business Rates,26/11/2020,3500073921,661.00,Cherwell District Council
http://statistics.data.gov.uk/id/local-authority/38,Oxfordshire County Council,LANDLORD & TENANT,4001,Uniform Business Rates,26/11/2020,3500074072,661.00,Vale of White Horse District Counci
http://statistics.data.gov.uk/id/local-authority/38,Oxfordshire County Council,Support at Home 65+ Memory & Cognition,5689,,10/11/2020,3110850627,661.05,Goldsmith Personnel Ltd
http://statistics.data.gov.uk/id/local-authority/38,Oxfordshire County Council,Support at Home U65 Physical Support,5899,Social Care - Direct Payments,25/11/2020,3110861111,661.32,Purple Conversation Com In Co (DP)
http://statistics.data.gov.uk/id/local-authority/38,Oxfordshire County Council,TRANSPORT COSTS,4330,Transport to School Activities,19/11/2020,3110858858,663.00,The Oxfordshire Taxi Company Ltd T/
http://statistics.data.gov.uk/id/local-authority/38,Oxfordshire County Council,Support at Home 65+ Physical Support,5698,,04/11/2020,3110848306,663.09,Bridges Home Care Ltd
http://statistics.data.gov.uk/id/local-authority/38,Oxfordshire County Council,NURSERY ED FUND,5537,Payments to Other Establishments,09/11/2020,3110849707,663.32,Elizabeth Lyons
http://statistics.data.gov.uk/id/local-authority/38,Oxfordshire County Council,Contingency Home Care,5689,,10/11/2020,3110850930,663.36,Oxford University Hospitals NHS FT
